{"text_format":"1","workbook":"xlsx","n_sheets":6,"sheets":["REGISTRO","Hoja1","ESTADISTICAS1","ESTADISTICAS2","ESTADISTICAS3","ESTADISTICAS4"],"not_rendered":{"charts":9,"images":0,"macros":1,"external_links":0,"defined_names":1,"comments":0,"pivot_tables":9},"unopened":[],"bounds":{"document_bytes":16777216,"sheet_cells":100000,"rows_first":2000,"rows_last":500,"rows_between":2000,"halvings":0,"cell_chars":16384,"cell_head_chars":4096},"cells_cut":0,"cells_raw":0,"read":"whole","date_system":"1900"}

{"sheet":"REGISTRO","index":0,"n_rows":294,"n_cols":16,"rows_kept":294,"cut":false,"hidden":false,"merged":[]}
[null,"CODIGO:","10-FT-024","VERSION:2",null,null,null,null,null,"2015-08-24","08:51:00"]
["Nº","FECHA SOLICITUD","HORA SOLICITUD","USUARIO SOLICITANTE","AREA SOLICITANTE","EQUIPO BIOMÉDICO INTERVENIDO","MEDIO DE CONTACTO","DESCRIPCIÓN INCIDENCIA","PRIORIDAD","DESCRIPCIÓN SOLUCIÓN","FECHA SOLUCIÓN","HORA SOLUCIÓN","TIEMPO TOTAL","RESUMEN INCIDENCIA ATENDIDA","INTERVENSION REALIZADA POR","REPORTE EVENTO ADVERSO"]
[1,"2015-07-01","07:00:00","Área de Hospitalización","HOSPITALIZACION-2","ASPIRADOR","CORREO","Revisión Aspirador de secreciones.","MEDIA ","Se realiza revisión del aspirador de secreciones debido a que no esta mostrando el nivel de vacio en el manometro, se realiza chequeo evidenciando que la aguja se encuentra pegada.","2015-07-01","08:00:00",{"$f":"((K3+L3)-(B3+C3))","v":4.1666666671517305E-2},{"$f":"H3&\",\"&J3","v":"Revisión Aspirador de secreciones.,Se realiza revisión del aspirador de secreciones debido a que no esta mostrando el nivel de vacio en el manometro, se realiza chequeo evidenciando que la aguja se encuentra pegada."}]
[2,"2015-07-01","08:00:00","Area de biotecnologia","AREA DE BIOTECNOLOGÍA","OTROS","PERSONAL","Revisión guias de reacción inmediata.","MEDIA ","Se inician ejecutando las guias de reacción inmediata de equipos medicos.","2015-07-01","12:40:00",0.19444444444525288,"Revisión guias de reacción inmediata.,Se inician ejecutando las guias de reacción inmediata de equipos medicos."]
[3,"2015-07-01","13:30:00","Área de Cuidados Intensivos","UCI","CAMA ELÉCTRICA","PERSONAL","Revisión cama electrica.","ALTA ","Se realiza revisión de una cama electrica debido a que no esta subiendo, se realizan ajustes a los cables de la unidad de control quedando en perfectas condiciones de uso.","2015-07-01","14:00:00",2.0833333335758653E-2,"Revisión cama electrica.,Se realiza revisión de una cama electrica debido a que no esta subiendo, se realizan ajustes a los cables de la unidad de control quedando en perfectas condiciones de uso."]
[4,"2015-07-01","14:00:00","Área de Cuidados Intensivos","UCI","MONITOR SIGNOS VITALES","PERSONAL","Revisión monitor de signos vitales.","ALTA ","Se realiza revisión de un monitor de signos vitales debido a que no esta monitorizando la presión no invasiva, se realiza chequo donde se evidencia que el brazalete tiene una fuga, se realiza la reposición encontrandose en perfectas condiciones de uso.","2015-07-01","14:20:00",1.3888888883229811E-2,"Revisión monitor de signos vitales.,Se realiza revisión de un monitor de signos vitales debido a que no esta monitorizando la presión no invasiva, se realiza chequo donde se evidencia que el brazalete tiene una fuga, se realiza la reposición encontrandose en perfectas condiciones de uso."]
[5,"2015-07-01","14:40:00","Area de biotecnologia","AREA DE BIOTECNOLOGÍA","OTROS","PERSONAL","Revisión guias de reacción inmediata.","MEDIA ","Se continua con la revisión de las guias de reacción inmediata de los equipos medicos.","2015-07-01","17:00:00",9.7222222226264421E-2,"Revisión guias de reacción inmediata.,Se continua con la revisión de las guias de reacción inmediata de los equipos medicos."]
[6,"2015-07-01","17:00:00","Área de Cirugía","CIRUGÍA","AUTOCLAVE","TELEFÓNICO","Revisión autoclave a vapor.","MEDIA ","Se realiza revisión del autoclave a vapor debido a que la presión de la camara no baja, se realiza chequeo interno quedando en perfectas condiciones de uso.","2015-07-01","21:00:00",0.16666666666424135,"Revisión autoclave a vapor.,Se realiza revisión del autoclave a vapor debido a que la presión de la camara no baja, se realiza chequeo interno quedando en perfectas condiciones de uso."]
[7,"2015-07-02","07:00:00","Area de biotecnologia","AREA DE BIOTECNOLOGÍA","OTROS","PERSONAL","Verificación ventiladores mecanicos.","MEDIA ","Se realiza verificación de disponibilidad de ventiladores mecanicos.","2015-07-02","08:00:00",4.1666666671517305E-2,"Verificación ventiladores mecanicos.,Se realiza verificación de disponibilidad de ventiladores mecanicos."]
[8,"2015-07-02","08:00:00","Area de biotecnologia","AREA DE BIOTECNOLOGÍA","OTROS","PERSONAL","Comité farmacia.","BAJA","Se asiste al comité de farmacia.","2015-07-02","08:40:00",2.7777777773735579E-2,"Comité farmacia.,Se asiste al comité de farmacia."]
[9,"2015-07-02","08:40:00","Área de Consulta Externa","CONSULTORIO5","ECOCARDIÓGRAFO","TELEFÓNICO","Revisión ecocardiografo por interferencia.","MEDIA ","Se realiza revisión del ecocardiografo debido a que esta presentando interferencia, se evidencia que el equipo no se encuentra conectado , se realiza chequeo encontrando que el equipo s encuentra en perfectaas condicionesde uso.","2015-07-02","10:00:00",5.5555555554747116E-2,{"$f":"J11&\",\"&#REF!","v":{"$error":"#REF!"}}]
[10,"2015-07-02","10:00:00","Área de Cuidados Intensivos","UCI","CAMA ELÉCTRICA","PERSONAL","Revisión cama electrica.","MEDIA ","Se realiza revisión de una cama electrica debido a que no esta realizando ningun movimiento, se realizan ajustes a los cables de la unidad de control quedando en perfectas condiciones de uso.","2015-07-02","10:30:00",2.0833333335758653E-2,"Revisión cama electrica.,Se realiza revisión de una cama electrica debido a que no esta realizando ningun movimiento, se realizan ajustes a los cables de la unidad de control quedando en perfectas condiciones de uso."]
[11,"2015-07-02","10:40:00","Área de Cuidados Intensivos","UCI","MONITOR SIGNOS VITALES","PERSONAL","Revisión monitor de signos vitales.","ALTA ","Se realiza revisión de un monitor de signos vitales debido a que no esta monitorizando la presión no invasiva, se realiza chequo donde se evidencia que el brazalete tiene una fuga, se realiza la reposición encontrandose en perfectas condiciones de uso.","2015-07-02","11:00:00",1.3888888890505768E-2,"Revisión monitor de signos vitales.,Se realiza revisión de un monitor de signos vitales debido a que no esta monitorizando la presión no invasiva, se realiza chequo donde se evidencia que el brazalete tiene una fuga, se realiza la reposición encontrandose en perfectas condiciones de uso."]
[12,"2015-07-02","11:00:00","Área de Hospitalización","HOSPITALIZACION-2","TENSIÓMETRO","TELEFÓNICO","Tensiometro desajustado.","MEDIA ","Se realiza revisión de un tensiometro que se encuentra desajustado en el manometro, se realizan ajsutes quedanddo en oerefcas condiciones de uso.","2015-07-02","11:30:00",2.0833333328482695E-2,"Tensiometro desajustado.,Se realiza revisión de un tensiometro que se encuentra desajustado en el manometro, se realizan ajsutes quedanddo en oerefcas condiciones de uso."]
[13,"2015-07-02","11:30:00","Area de biotecnologia","AREA DE BIOTECNOLOGÍA","OTROS","PERSONAL","Gestión documental.","MEDIA ","Gestión documental.","2015-07-02","12:40:00",4.8611111116770189E-2,"Gestión documental.,Gestión documental."]
[14,"2015-07-02","13:30:00","Area de biotecnologia","AREA DE BIOTECNOLOGÍA","OTROS","PERSONAL","Revisión guias de reacción inmediata.","MEDIA ","Revisión guias de reacción inmediata.","2015-07-02","19:30:00",0.25,"Revisión guias de reacción inmediata.,Revisión guias de reacción inmediata."]
[15,"2015-07-02","16:00:00","Área de Cirugía","CIRUGÍA","AUTOCLAVE","PERSONAL","Revisión autoclave a vapor.","MEDIA ","Se realiza revisión del autoclave a vapor debido a que la presión de la camara no baja, se realiza chequeo interno quedando en perfectas condiciones de uso.","2015-07-02","16:00:00",0,"Revisión autoclave a vapor.,Se realiza revisión del autoclave a vapor debido a que la presión de la camara no baja, se realiza chequeo interno quedando en perfectas condiciones de uso."]
[16,"2015-07-03","07:00:00","Area de biotecnologia","AREA DE BIOTECNOLOGÍA","OTROS","PERSONAL","Revisión guias de reacción inmediata.","MEDIA ","Revisión guias de reacción inmediata.","2015-07-03","10:00:00",0.125,"Revisión guias de reacción inmediata.,Revisión guias de reacción inmediata."]
[17,"2015-07-03","10:00:00","Area de biotecnologia","AREA DE BIOTECNOLOGÍA","OTROS","PERSONAL","Solicitud cotizaciónes.","MEDIA ","Se realiza solicitud de cotización para la adquisición de una manta termica.","2015-07-03","10:30:00",2.0833333335758653E-2,"Solicitud cotizaciónes.,Se realiza solicitud de cotización para la adquisición de una manta termica."]
[18,"2015-07-03","10:40:00","Área de Cuidados Intensivos","UCI","CAMA ELÉCTRICA","PERSONAL","Revisión cama electrica.","ALTA ","Se realiza revisión de una cama electrica debido a que no esta subiendo, se realizan ajustes a los cables de la unidad de control quedando en perfectas condiciones de uso.","2015-07-03","11:30:00",3.4722222218988463E-2,"Revisión cama electrica.,Se realiza revisión de una cama electrica debido a que no esta subiendo, se realizan ajustes a los cables de la unidad de control quedando en perfectas condiciones de uso."]
[19,"2015-07-03","11:30:00","Area de biotecnologia","AREA DE BIOTECNOLOGÍA","OTROS","PERSONAL","Verificación ventiladores mecanicos.","MEDIA ","Se realiza verificación de disponibilidad de ventiladores mecanicos.","2015-07-03","11:50:00",1.3888888890505768E-2,"Verificación ventiladores mecanicos.,Se realiza verificación de disponibilidad de ventiladores mecanicos."]
[20,"2015-07-03","12:00:00","Area de biotecnologia","AREA DE BIOTECNOLOGÍA","OTROS","PERSONAL","Entrega desfibrilador hospitalización.","MEDIA ","Se realiza entrega de un desfibrilador en perfectas condiciones de uso.","2015-07-03","13:30:00",6.25E-2,"Entrega desfibrilador hospitalización.,Se realiza entrega de un desfibrilador en perfectas condiciones de uso."]
[21,"2015-07-03","14:40:00","Área de Cuidados Intensivos","UCI","MONITOR SIGNOS VITALES","PERSONAL","Revisión monitor de signos vitales.","ALTA ","Se realiza revisión de un monitor de signos vitales debido a que no esta monitorizando la presión no invasiva, se realiza chequo donde se evidencia que el brazalete tiene una fuga, se realiza la reposición encontrandose en perfectas condiciones de uso.","2015-07-03","15:20:00",2.7777777781011537E-2,"Revisión monitor de signos vitales.,Se realiza revisión de un monitor de signos vitales debido a que no esta monitorizando la presión no invasiva, se realiza chequo donde se evidencia que el brazalete tiene una fuga, se realiza la reposición encontrandose en perfectas condiciones de uso."]
[22,"2015-07-03","15:30:00","Área de Hospitalización","HOSPITALIZACION-2","TENSIÓMETRO","TELEFÓNICO","Revisión documentación tensiometro.","MEDIA ","Se  realiza revisión de un tensiometro que fue adquirido para el area de hospitalización.","2015-07-03","16:00:00",2.0833333328482695E-2,"Revisión documentación tensiometro.,Se  realiza revisión de un tensiometro que fue adquirido para el area de hospitalización."]
[23,"2015-07-03","16:00:00","Area de biotecnologia","AREA DE BIOTECNOLOGÍA","OTROS","PERSONAL","Verificación funcionamiento Autoclave,","MEDIA ","Se realiza revisión del funcionamiento del autoclave.","2015-07-03","16:30:00",2.0833333335758653E-2,"Verificación funcionamiento Autoclave,,Se realiza revisión del funcionamiento del autoclave."]
[24,"2015-07-03","16:40:00","Área de Cirugía","CIRUGÍA","MONITOR SIGNOS VITALES","PERSONAL","Revisión monitor de signos vitales.","ALTA ","Se realiza revisión del monitor de signos vitales debido a que no esta monitorizando la saturación dde oxigeno, se realiza chequeo encontrando que el pulsoximetro no se encuentra bien puesto, se realizan ajustes quedadno en perfectas condiciones de uso.","2015-07-03","17:20:00",2.7777777773735579E-2,"Revisión monitor de signos vitales.,Se realiza revisión del monitor de signos vitales debido a que no esta monitorizando la saturación dde oxigeno, se realiza chequeo encontrando que el pulsoximetro no se encuentra bien puesto, se realizan ajustes quedadno en perfectas condiciones de uso."]
[25,"2015-07-03","17:30:00","Area de biotecnologia","AREA DE BIOTECNOLOGÍA","OTROS","PERSONAL","Revisión guias de reacción inmediata.","MEDIA ","Revisión guias de reacción inmediata.","2015-07-03","20:00:00",0.10416666667151731,"Revisión guias de reacción inmediata.,Revisión guias de reacción inmediata."]
[26,"2015-07-04","10:00:00","Area de biotecnologia","AREA DE BIOTECNOLOGÍA","OTROS","PERSONAL","Revisión guias de reacción inmediata.","MEDIA ","Revisión guias de reacción inmediata.","2015-07-04","11:30:00",6.25E-2,"Revisión guias de reacción inmediata.,Revisión guias de reacción inmediata."]
[27,"2015-07-04","11:40:00","Área de Cirugía","CIRUGÍA","AUTOCLAVE","PERSONAL","Revisión autoclave a vapor.","ALTA ","Se realiza revisión del autoclave a vapor debido a que la presión de la camara no baja, se realiza chequeo interno quedando en perfectas condiciones de uso.","2015-07-04","14:00:00",9.7222222226264421E-2,"Revisión autoclave a vapor.,Se realiza revisión del autoclave a vapor debido a que la presión de la camara no baja, se realiza chequeo interno quedando en perfectas condiciones de uso."]
[28,"2015-07-04","14:00:00","Area de biotecnologia","AREA DE BIOTECNOLOGÍA","OTROS","PERSONAL","Revisión guias de reacción inmediata.","MEDIA ","Revisión guias de reacción inmediata.","2015-07-04","18:30:00",0.1875,"Revisión guias de reacción inmediata.,Revisión guias de reacción inmediata."]
[29,"2015-07-05","11:00:00","Area de biotecnologia","AREA DE BIOTECNOLOGÍA","OTROS","PERSONAL","Revisión guias de reacción inmediata.","MEDIA ","Revisión guias de reacción inmediata.","2015-07-05","15:00:00",0.16666666666424135,"Revisión guias de reacción inmediata.,Revisión guias de reacción inmediata."]
[30,"2015-07-06","07:00:00","Area de biotecnologia","AREA DE BIOTECNOLOGÍA","OTROS","PERSONAL","Revisión guias de reacción inmediata.","MEDIA ","Revisión guias de reacción inmediata.","2015-07-06","12:40:00",0.23611111111677019,"Revisión guias de reacción inmediata.,Revisión guias de reacción inmediata."]
[31,"2015-07-06","13:30:00","Area de biotecnologia","AREA DE BIOTECNOLOGÍA","OTROS","PERSONAL","Programación capacitaciones.","MEDIA ","Se programan capacitaciones para el mes de Julio.","2015-07-06","14:30:00",4.1666666664241347E-2,"Programación capacitaciones.,Se programan capacitaciones para el mes de Julio."]
[32,"2015-07-06","14:30:00","Area de biotecnologia","AREA DE BIOTECNOLOGÍA","OTROS","PERSONAL","Verificación matenimiento correctivo Angiografo.","MEDIA ","Se realiza revisión del mantenimiento correctivo ejecutado por proveedor externo.","2015-07-06","14:50:00",1.3888888890505768E-2,"Verificación matenimiento correctivo Angiografo.,Se realiza revisión del mantenimiento correctivo ejecutado por proveedor externo."]
[33,"2015-07-06","15:00:00","Area de biotecnologia","AREA DE BIOTECNOLOGÍA","OTROS","PERSONAL","Ejecución ordenes de compra.","MEDIA ","Se ejecutan ordenes de compra pendientes.","2015-07-06","15:40:00",2.7777777781011537E-2,"Ejecución ordenes de compra.,Se ejecutan ordenes de compra pendientes."]
[34,"2015-07-06","15:50:00","Área de Cuidados Intensivos","UCI","CAMA ELÉCTRICA","PERSONAL","Revisión cama electrica.","ALTA ","Se realiza revisión de una cama electrica debido a que no esta subiendo, se realizan ajustes a los cables de la unidad de control quedando en perfectas condiciones de uso.","2015-07-06","16:20:00",2.0833333335758653E-2,"Revisión cama electrica.,Se realiza revisión de una cama electrica debido a que no esta subiendo, se realizan ajustes a los cables de la unidad de control quedando en perfectas condiciones de uso."]
[35,"2015-07-06","16:20:00","Área de Cirugía","CIRUGÍA","MONITOR SIGNOS VITALES","PERSONAL","Revisión monitor de signos vitales.","MEDIA ","Se realiza revisión del monitor de signos vitales debido a que no esta monitorizando la presión no invasiva, se realiza cheqeuo encontrando que el brazalete se encuentra con fuga, se realiza cambio quedando en perfectas condiciones de uso.","2015-07-06","17:30:00",4.8611111109494232E-2,"Revisión monitor de signos vitales.,Se realiza revisión del monitor de signos vitales debido a que no esta monitorizando la presión no invasiva, se realiza cheqeuo encontrando que el brazalete se encuentra con fuga, se realiza cambio quedando en perfectas condiciones de uso."]
[36,"2015-07-06","17:30:00","Area de biotecnologia","AREA DE BIOTECNOLOGÍA","OTROS","PERSONAL","Revisión guias de reacción inmediata.","MEDIA ","Revisión guias de reacción inmediata.","2015-07-06","18:10:00",2.7777777781011537E-2,"Revisión guias de reacción inmediata.,Revisión guias de reacción inmediata."]
[37,"2015-07-07","07:00:00","Area de biotecnologia","AREA DE BIOTECNOLOGÍA","OTROS","PERSONAL","Socialización guias de reacción inmediata.","MEDIA ","Se realiza socialización de las guias de reacción inmediata en el area de Cuidados intensivos.","2015-07-07","08:00:00",4.1666666671517305E-2,"Socialización guias de reacción inmediata.,Se realiza socialización de las guias de reacción inmediata en el area de Cuidados intensivos."]
[38,"2015-07-07","08:00:00","Area de biotecnologia","AREA DE BIOTECNOLOGÍA","OTROS","PERSONAL","Revisión guias de reacción inmediata.","MEDIA ","Revisión guias de reacción inmediata.","2015-07-07","12:40:00",0.19444444444525288,"Revisión guias de reacción inmediata.,Revisión guias de reacción inmediata."]
[39,"2015-07-07","13:30:00","Área de Cuidados Intensivos","UCI","MONITOR SIGNOS VITALES","PERSONAL","Revisión monitor de signos vitales.","ALTA ","Se realiza revisión de un monitor de signos vitales debido a que no esta monitorizando la presión no invasiva, se realiza chequo donde se evidencia que el brazalete tiene una fuga, se realiza la reposición encontrandose en perfectas condiciones de uso.","2015-07-07","14:00:00",2.0833333335758653E-2,"Revisión monitor de signos vitales.,Se realiza revisión de un monitor de signos vitales debido a que no esta monitorizando la presión no invasiva, se realiza chequo donde se evidencia que el brazalete tiene una fuga, se realiza la reposición encontrandose en perfectas condiciones de uso."]
[40,"2015-07-07","14:00:00","Area de biotecnologia","AREA DE BIOTECNOLOGÍA","OTROS","PERSONAL","Revisión disponibilidad ventiladores mecanicos.","MEDIA ","Se realiza verificación de disponibilidad de ventiladores mecanicos.","2015-07-07","14:40:00",2.7777777773735579E-2,"Revisión disponibilidad ventiladores mecanicos.,Se realiza verificación de disponibilidad de ventiladores mecanicos."]
[41,"2015-07-07","15:00:00","Area de biotecnologia","AREA DE BIOTECNOLOGÍA","OTROS","PERSONAL","Revisión y ajustes diapositivas.","MEDIA ","Se realizan ajustes a las diapositivas sobe el buen uso de equipos médicos y el riesgo asociado al uso de equipos médicos.","2015-07-07","18:30:00",0.14583333333575865,"Revisión y ajustes diapositivas.,Se realizan ajustes a las diapositivas sobe el buen uso de equipos médicos y el riesgo asociado al uso de equipos médicos."]
[42,"2015-07-08","07:00:00","Area de biotecnologia","AREA DE BIOTECNOLOGÍA","OTROS","PERSONAL","Socialización guias de reacción inmediata.","MEDIA ","Se realiza socialización de las guias de reacción inmediata en el area de Cuidados intensivos.","2015-07-08","08:00:00",4.1666666671517305E-2,"Socialización guias de reacción inmediata.,Se realiza socialización de las guias de reacción inmediata en el area de Cuidados intensivos."]
[43,"2015-07-08","08:00:00","Área de Cuidados Intensivos","UCI","MONITOR SIGNOS VITALES","PERSONAL","Revisión monitor de signos vitales.","ALTA ","Se realiza revisión de un monitor de signos vitales debido a que no esta monitorizando la presión no invasiva, se realiza chequo donde se evidencia que el brazalete tiene una fuga, se realiza la reposición encontrandose en perfectas condiciones de uso.","2015-07-08","08:40:00",2.7777777773735579E-2,"Revisión monitor de signos vitales.,Se realiza revisión de un monitor de signos vitales debido a que no esta monitorizando la presión no invasiva, se realiza chequo donde se evidencia que el brazalete tiene una fuga, se realiza la reposición encontrandose en perfectas condiciones de uso."]
[44,"2015-07-08","09:00:00","Área de Hospitalización","HOSPITALIZACION1","TENSIÓMETRO","TELEFÓNICO","Verificacón tensiometro.","MEDIA ","Se realiza realiza ajuste al tensiometro de hospitalización.","2015-07-08","09:40:00",2.7777777781011537E-2,"Verificacón tensiometro.,Se realiza realiza ajuste al tensiometro de hospitalización."]
[45,"2015-07-08","09:40:00","Area de biotecnologia","AREA DE BIOTECNOLOGÍA","OTROS","PERSONAL","Revisión guias de reacción inmediata.","MEDIA ","Revisión guias de reacción inmediata.","2015-07-08","12:30:00",0.11805555555474712,"Revisión guias de reacción inmediata.,Revisión guias de reacción inmediata."]
[46,"2015-07-08","12:30:00","Area de biotecnologia","AREA DE BIOTECNOLOGÍA","OTROS","PERSONAL","Revisión y ajustes diapositivas.","MEDIA ","Se realizan ajustes a las diapositivas sobe el buen uso de equipos médicos y el riesgo asociado al uso de equipos médicos.","2015-07-08","18:00:00",0.22916666666424135,"Revisión y ajustes diapositivas.,Se realizan ajustes a las diapositivas sobe el buen uso de equipos médicos y el riesgo asociado al uso de equipos médicos."]
[47,"2015-07-08","18:00:00","Area de biotecnologia","AREA DE BIOTECNOLOGÍA","OTROS","PERSONAL","Se realiza capacitación.","MEDIA ","Se realiza capacitación sobre el buen uso de equipos medicos y el riesgo asociado a usuarios para el area de cirugía.","2015-07-08","19:00:00",4.1666666664241347E-2,"Se realiza capacitación.,Se realiza capacitación sobre el buen uso de equipos medicos y el riesgo asociado a usuarios para el area de cirugía."]
[48,"2015-07-08","19:00:00","Área de Cuidados Intensivos","UCI","VENTILADOR MECÁNICO","TELEFÓNICO","Revisión ventilador mecanico.","ALTA ","Se realiza revisión del ventilador mecanico debido a que se encuentra con fuga, se realizan ajustes quedando en perfectas condiciones de uso.","2015-07-08","19:40:00",2.7777777781011537E-2,"Revisión ventilador mecanico.,Se realiza revisión del ventilador mecanico debido a que se encuentra con fuga, se realizan ajustes quedando en perfectas condiciones de uso."]
[49,"2015-07-09","07:00:00","Área de Cuidados Intensivos","UCI","GLUCÓMETRO","TELEFÓNICO","Revisión glucometro.","MEDIA ","Se realiza revisión de un glucometro debido a que estq presentando un error al momento de realizar la toma de glucometria, se realiza control de calidad quedadno en perfectas condiciones de uso.","2015-07-09","07:40:00",2.7777777781011537E-2,"Revisión glucometro.,Se realiza revisión de un glucometro debido a que estq presentando un error al momento de realizar la toma de glucometria, se realiza control de calidad quedadno en perfectas condiciones de uso."]
[50,"2015-07-09","07:40:00","Area de biotecnologia","AREA DE BIOTECNOLOGÍA","OTROS","PERSONAL","Socialización guias de reacción inmediata.","MEDIA ","Se realiza socialización de las guias de reacción inmediata en el area de Cirugía.","2015-07-09","08:20:00",2.7777777773735579E-2,"Socialización guias de reacción inmediata.,Se realiza socialización de las guias de reacción inmediata en el area de Cirugía."]
[51,"2015-07-09","08:20:00","Area de biotecnologia","AREA DE BIOTECNOLOGÍA","OTROS","PERSONAL","Verificación asistencia.","MEDIA ","Se realiza verificación de la asistencia sobre socializaciones al area de cuidados intensivos.","2015-07-09","08:40:00",1.3888888890505768E-2,"Verificación asistencia.,Se realiza verificación de la asistencia sobre socializaciones al area de cuidados intensivos."]
[52,"2015-07-09","08:50:00","Área de Cuidados Intensivos","UCI","CAMA ELÉCTRICA","PERSONAL","Revisión cama electrica.","ALTA ","Se realiza revisión de una cama electrica debido a que no esta subiendo, se realizan ajustes a los cables de la unidad de control quedando en perfectas condiciones de uso.","2015-07-09","09:20:00",2.0833333335758653E-2,"Revisión cama electrica.,Se realiza revisión de una cama electrica debido a que no esta subiendo, se realizan ajustes a los cables de la unidad de control quedando en perfectas condiciones de uso."]
[53,"2015-07-09","09:20:00","Area de biotecnologia","AREA DE BIOTECNOLOGÍA","OTROS","PERSONAL","Gestión documental.","MEDIA ","Gestión documental.","2015-07-09","10:30:00",4.8611111109494232E-2,"Gestión documental.,Gestión documental."]
[54,"2015-07-09","10:40:00","Area de biotecnologia","AREA DE BIOTECNOLOGÍA","OTROS","PERSONAL","Impresión guias de reacción inmediata.","MEDIA ","Impresión y ajsutes guias de reacción inmediata cirugía.","2015-07-09","12:20:00",6.9444444445252884E-2,"Impresión guias de reacción inmediata.,Impresión y ajsutes guias de reacción inmediata cirugía."]
[55,"2015-07-09","13:30:00","Área de Cuidados Intensivos","UCI","ACCESORIOS","TELEFÓNICO","Se realiza revisión de un pulsoximetro.","MEDIA ","Se realiza revisiónn de un pulsoxiemtro debido a que no esta sensando, se realizan ajustes donde se evidencia que no esta detectando la señal, se realiza cambio del accesorio.","2015-07-09","14:20:00",3.4722222218988463E-2,"Se realiza revisión de un pulsoximetro.,Se realiza revisiónn de un pulsoxiemtro debido a que no esta sensando, se realizan ajustes donde se evidencia que no esta detectando la señal, se realiza cambio del accesorio."]
[56,"2015-07-09","14:40:00","Área de Consulta Externa","MEGACONSUL2","TENSIÓMETRO","CORREO","Revisión tensiometro.","MEDIA ","Se realiza revisión del tensiometro debido a que no esta insuflando, se realiza chequeo  donde se evidencia que hay una fuga en la manguera, se recorta quedando en perfectas condiciones de uso.","2015-07-09","15:30:00",3.4722222226264421E-2,"Revisión tensiometro.,Se realiza revisión del tensiometro debido a que no esta insuflando, se realiza chequeo  donde se evidencia que hay una fuga en la manguera, se recorta quedando en perfectas condiciones de uso."]
[57,"2015-07-09","15:30:00","Área de Cuidados Intensivos","UCI","MONITOR SIGNOS VITALES","PERSONAL","Revisión monitor de signos vitales.","ALTA ","Se realiza revisión de un monitor de signos vitales debido a que no esta monitorizando la presión no invasiva, se realiza chequo donde se evidencia que el brazalete tiene una fuga, se realiza la reposición encontrandose en perfectas condiciones de uso.","2015-07-09","16:00:00",2.0833333328482695E-2,"Revisión monitor de signos vitales.,Se realiza revisión de un monitor de signos vitales debido a que no esta monitorizando la presión no invasiva, se realiza chequo donde se evidencia que el brazalete tiene una fuga, se realiza la reposición encontrandose en perfectas condiciones de uso."]
[58,"2015-07-09","16:00:00","Área de Cuidados Intensivos","UCI","MARCAPASO BICAMERAL TEMPORAL","TELEFÓNICO","Revisión generador marcapasos.","MEDIA ","Se realiza revisión de un generador de marcapasos debido a que no detecto señal de un paciente, se realiza verifcación externa donde todo se encuentra en perfectas condiciones de uso, se realiza gestión con el proveedor para ser revisado con el simulador.","2015-07-09","16:20:00",1.3888888890505768E-2,"Revisión generador marcapasos.,Se realiza revisión de un generador de marcapasos debido a que no detecto señal de un paciente, se realiza verifcación externa donde todo se encuentra en perfectas condiciones de uso, se realiza gestión con el proveedor para ser revisado con el simulador."]
[59,"2015-07-09","16:30:00","Area de biotecnologia","AREA DE BIOTECNOLOGÍA","OTROS","PERSONAL","Revisión capacitación.","MEDIA ","Se realiza revisión de las capacitaciones sobre el buen uso de equipos medicos y el riesgo asociado a usuarios.","2015-07-09","17:10:00",2.7777777781011537E-2,"Revisión capacitación.,Se realiza revisión de las capacitaciones sobre el buen uso de equipos medicos y el riesgo asociado a usuarios."]
[60,"2015-07-09","17:15:00","Area de biotecnologia","AREA DE BIOTECNOLOGÍA","OTROS","PERSONAL","Ejecución guias de reacción inmediata.","MEDIA ","Se inicia con la ejecucion de las guiass de reaccion de los equipos de hospitalización.","2015-07-09","18:30:00",5.2083333335758653E-2,"Ejecución guias de reacción inmediata.,Se inicia con la ejecucion de las guiass de reaccion de los equipos de hospitalización."]
[61,"2015-07-09","18:30:00","Area de biotecnologia","AREA DE BIOTECNOLOGÍA","OTROS","PERSONAL","Se realiza capacitación.","MEDIA ","Se realiza capacitación sobre el buen uso de equipos medicos y el riesgo asociado a usuarios para el area de cirugía.","2015-07-09","19:00:00",2.0833333328482695E-2,"Se realiza capacitación.,Se realiza capacitación sobre el buen uso de equipos medicos y el riesgo asociado a usuarios para el area de cirugía."]
[62,"2015-07-09","19:00:00","Area de biotecnologia","AREA DE BIOTECNOLOGÍA","OTROS","PERSONAL","Ejecución guias de reacción inmediata.","MEDIA ","Se continua con la ejecución de las guias de reacción inmediata del area de hospitalización.","2015-07-09","20:00:00",4.1666666671517305E-2,"Ejecución guias de reacción inmediata.,Se continua con la ejecución de las guias de reacción inmediata del area de hospitalización."]
[63,"2015-07-10","07:00:00","Area de biotecnologia","AREA DE BIOTECNOLOGÍA","OTROS","PERSONAL","Socialización guias de reacción inmediata.","MEDIA ","Se realiza socialización de las guias de reacción inmediata de los equipos medicos al area de cirugía.","2015-07-10","09:30:00",0.10416666667151731,"Socialización guias de reacción inmediata.,Se realiza socialización de las guias de reacción inmediata de los equipos medicos al area de cirugía."]
[64,"2015-07-10","09:40:00","Area de biotecnologia","AREA DE BIOTECNOLOGÍA","OTROS","PERSONAL","Verificación disponibilidad ventiladores mecanicos. ","MEDIA ","Se realiza verificación sobre la disponibilidad de los equipos medicos.","2015-07-10","10:00:00",1.3888888883229811E-2,"Verificación disponibilidad ventiladores mecanicos. ,Se realiza verificación sobre la disponibilidad de los equipos medicos."]
[65,"2015-07-10","10:00:00","Area de biotecnologia","AREA DE BIOTECNOLOGÍA","OTROS","PERSONAL","Guia de reacción pulsoximetro.","MEDIA ","Se realiza guia de reacción inmediata del pulsoximetro.","2015-07-10","10:30:00",2.0833333335758653E-2,"Guia de reacción pulsoximetro.,Se realiza guia de reacción inmediata del pulsoximetro."]
[66,"2015-07-10","10:40:00","Área de Cirugía","CIRUGÍA","MICROSCOPIOS","TELEFÓNICO","Revisión microscopio.","MEDIA ","Se realiza revisión del microscopio debido a que no enciende un bombillo, se realiza verificación y se realiza la consecución de un bombillo.","2015-07-10","11:00:00",1.3888888890505768E-2,"Revisión microscopio.,Se realiza revisión del microscopio debido a que no enciende un bombillo, se realiza verificación y se realiza la consecución de un bombillo."]
[67,"2015-07-10","11:10:00","Area de biotecnologia","AREA DE BIOTECNOLOGÍA","OTROS","PERSONAL","Gestión documental.","MEDIA ","Gestión documental.","2015-07-10","13:30:00",{"$f":"((K69+L69)-(B69+C69))","v":9.7222222218988463E-2},"Gestión documental.,Gestión documental."]
[68,"2015-07-10","14:00:00","Área de Cuidados Intensivos","UCI","TENSIÓMETRO","TELEFÓNICO","Revisión tensiometro.","MEDIA ","Se realiza revisión del tensiometro debido a que  se encuentra desajustado, se realiza chequo y se evidencia que se encuentra reventado el diafragma interno, por lo que se le debe dar de baja a el equipo.","2015-07-10","15:30:00",6.25E-2,"Revisión tensiometro.,Se realiza revisión del tensiometro debido a que  se encuentra desajustado, se realiza chequo y se evidencia que se encuentra reventado el diafragma interno, por lo que se le debe dar de baja a el equipo."]
[69,"2015-07-10","15:40:00",null,"TRANSFUSION","TERMÓMETROS DIGITAL","TELEFÓNICO","Revisión termometro.","MEDIA ","Se realiza revisión de un termometro debido a que se encuentra muy estable la temperatura, se realiza cambio de pila quedando en perfectas condiciones de uso.","2015-07-10","16:20:00",2.7777777773735579E-2,"Revisión termometro.,Se realiza revisión de un termometro debido a que se encuentra muy estable la temperatura, se realiza cambio de pila quedando en perfectas condiciones de uso."]
[70,"2015-07-10","17:00:00","Area de biotecnologia","AREA DE BIOTECNOLOGÍA","OTROS","PERSONAL","Revisión control de temperatura.","MEDIA ","Se realiza verificación de la instalación del control de temperatura en el area de  la farmacia.","2015-07-10","18:30:00",6.25E-2,"Revisión control de temperatura.,Se realiza verificación de la instalación del control de temperatura en el area de  la farmacia."]
[71,"2015-07-11","10:30:00","Area de biotecnologia","AREA DE BIOTECNOLOGÍA","OTROS","PERSONAL","Revisión hojas de vida y guias de reacción inmediata.","MEDIA ","Revisión hojas de vida y guias de raccioón inmediata.","2015-07-11","19:00:00",0.35416666666424135,"Revisión hojas de vida y guias de reacción inmediata.,Revisión hojas de vida y guias de raccioón inmediata."]
[72,"2015-07-13","07:00:00","Area de biotecnologia","AREA DE BIOTECNOLOGÍA","OTROS","PERSONAL","Revisión ventilador mecanico.","MEDIA ","Se realiza revisión de un ventilador que se encuentra fuera de servicio por una alarma en una falla tecnica.","2015-07-13","08:00:00",4.1666666671517305E-2,"Revisión ventilador mecanico.,Se realiza revisión de un ventilador que se encuentra fuera de servicio por una alarma en una falla tecnica."]
[73,"2015-07-13","08:00:00","Area de biotecnologia","AREA DE BIOTECNOLOGÍA","OTROS","PERSONAL","Revisión Aspirador de secreciones.","MEDIA ","Se realiza revisión de un aspirador de secreciones que se encuentra fuera de servicio, se realiza chequeo y se identifica que se debe cambiar el manometro.","2015-07-13","08:30:00",2.0833333328482695E-2,"Revisión Aspirador de secreciones.,Se realiza revisión de un aspirador de secreciones que se encuentra fuera de servicio, se realiza chequeo y se identifica que se debe cambiar el manometro."]
[74,"2015-07-13","08:40:00","Area de biotecnologia","AREA DE BIOTECNOLOGÍA","OTROS","PERSONAL","Veirficación asistencia a capacitación.","MEDIA ","Se realiza verificación del personal que asistio a lacapacitación del buen uso de equipos medicos.","2015-07-13","09:20:00",2.7777777781011537E-2,"Veirficación asistencia a capacitación.,Se realiza verificación del personal que asistio a lacapacitación del buen uso de equipos medicos."]
[75,"2015-07-13","09:30:00","Area de biotecnologia","AREA DE BIOTECNOLOGÍA","OTROS","PERSONAL","Entrega accesorios al area de cirugía.","MEDIA ","Se realiza entrega de accesorios para monitores al area de cirugía.","2015-07-13","09:40:00",6.9444444452528842E-3,"Entrega accesorios al area de cirugía.,Se realiza entrega de accesorios para monitores al area de cirugía."]
[76,"2015-07-13","09:50:00","Área de Cuidados Intensivos","UCI","VENTILADOR MECÁNICO","TELEFÓNICO","Revisión ventilador mecanico.","ALTA ","Se realiza revisión de un ventilador mecanico que se encuentra en arrendamiento debido a que esta presentando un error, se evidencia que el toma de gases medicinales tiene una fuga.","2015-07-13","10:40:00",3.4722222226264421E-2,"Revisión ventilador mecanico.,Se realiza revisión de un ventilador mecanico que se encuentra en arrendamiento debido a que esta presentando un error, se evidencia que el toma de gases medicinales tiene una fuga."]
[77,"2015-07-13","10:40:00","Area de biotecnologia","AREA DE BIOTECNOLOGÍA","OTROS","PERSONAL","Solicitud cotización","MEDIA ","Se solicita cotización para la adquisición de una manta termica.","2015-07-13","10:55:00",1.0416666664241347E-2,"Solicitud cotización,Se solicita cotización para la adquisición de una manta termica."]
[78,"2015-07-13","11:00:00","Area de biotecnologia","AREA DE BIOTECNOLOGÍA","OTROS","PERSONAL","Informe de gestión.","MEDIA ","Se inicia realizando el informe de gestión.","2015-07-13","13:30:00",0.10416666666424135,"Informe de gestión.,Se inicia realizando el informe de gestión."]
[79,"2015-07-13","14:00:00","Área de Consulta Externa","CONSULTORIO1","HOLTER","PERSONAL","Revisión grabadora de  holter.","MEDIA ","Se realiza revisión deuna grabadora de holter, se evidencia que los calbes estan muy desgastados, se realiza gestión para la compra.","2015-07-13","14:30:00",2.0833333328482695E-2,"Revisión grabadora de  holter.,Se realiza revisión deuna grabadora de holter, se evidencia que los calbes estan muy desgastados, se realiza gestión para la compra."]
[80,"2015-07-13","14:30:00","Area de biotecnologia","AREA DE BIOTECNOLOGÍA","OTROS","PERSONAL","Entrega ventilador mecancio.","MEDIA ","Se realiza entrega de un ventilador mecanico que se encontraba en arrendamiento.","2015-07-13","15:00:00",2.0833333335758653E-2,"Entrega ventilador mecancio.,Se realiza entrega de un ventilador mecanico que se encontraba en arrendamiento."]
[81,"2015-07-13","15:00:00","Area de biotecnologia","AREA DE BIOTECNOLOGÍA","OTROS","PERSONAL","Revisión y ajustes diapositivas.","MEDIA ","Se realizan ajustes a las diapositivas sobe el buen uso de equipos médicos y el riesgo asociado al uso de equipos médicos.","2015-07-13","17:30:00",0.10416666666424135,"Revisión y ajustes diapositivas.,Se realizan ajustes a las diapositivas sobe el buen uso de equipos médicos y el riesgo asociado al uso de equipos médicos."]
[82,"2015-07-13","17:35:00","Area de biotecnologia","AREA DE BIOTECNOLOGÍA","OTROS","PERSONAL","Gestión documental.","MEDIA ","Gestión documental.","2015-07-13","18:15:00",2.7777777773735579E-2,"Gestión documental.,Gestión documental."]
[83,"2015-07-14","07:00:00","Área de Cirugía","CIRUGÍA","ACCESORIOS","TELEFÓNICO","Revisón sensor de flujo.","ALTA ","Se realiza revisión del sensor de flujo de la maquina de anestesia debido a que se encuentra fracturado, se evidencia que se debe realizar la reposición.","2015-07-14","08:00:00",4.1666666671517305E-2,"Revisón sensor de flujo.,Se realiza revisión del sensor de flujo de la maquina de anestesia debido a que se encuentra fracturado, se evidencia que se debe realizar la reposición."]
[84,"2015-07-14","08:00:00","Area de biotecnologia","AREA DE BIOTECNOLOGÍA","OTROS","PERSONAL","Revisión ventilador mecanico.","MEDIA ","Se realiza revisión de un ventilador que se encuentra fuera de servicio por una alarma en una falla tecnica.","2015-07-14","11:30:00",0.14583333332848269,{"$f":"H86&\",\"&J86","v":"Revisión ventilador mecanico.,Se realiza revisión de un ventilador que se encuentra fuera de servicio por una alarma en una falla tecnica."}]
[85,"2015-07-14","11:30:00","Área de Hospitalización","HOSPITALIZACION2","ASPIRADOR","TELEFÓNICO","Revisión Aspirador de secreciones.","MEDIA ","Se realiza revisión del aspirador de secreciones debido a que no esta mostrando el nivel de vacio en el manometro, se realiza chequeo evidenciando que la aguja se encuentra pegada.","2015-07-14","12:00:00",2.0833333335758653E-2,"Revisión Aspirador de secreciones.,Se realiza revisión del aspirador de secreciones debido a que no esta mostrando el nivel de vacio en el manometro, se realiza chequeo evidenciando que la aguja se encuentra pegada."]
[86,"2015-07-14","12:00:00","Area de biotecnologia","AREA DE BIOTECNOLOGÍA","OTROS","PERSONAL","Verificación disponibilidad ventiladores mecanicos. ","MEDIA ","Se realiza verificación de la disponibilidad de los ventiladores.","2015-07-14","12:30:00",2.0833333335758653E-2,"Verificación disponibilidad ventiladores mecanicos. ,Se realiza verificación de la disponibilidad de los ventiladores."]
[87,"2015-07-14","13:30:00","Area de biotecnologia","AREA DE BIOTECNOLOGÍA","OTROS","PERSONAL","Listado equipos medicos.","MEDIA ","Se envia listado de los equipos medicos para la ejecución del mantenimiento preventivo.","2015-07-14","14:30:00",4.1666666664241347E-2,"Listado equipos medicos.,Se envia listado de los equipos medicos para la ejecución del mantenimiento preventivo."]
[88,"2015-07-14","14:30:00","Área de Hospitalización","HOSPITALIZACION1","ELECTROCARDIÓGRAFO","TELEFÓNICO","Revisión electrocardiografo.","MEDIA ","Se realiza revisión del electrocardiografo del area de hospitalización debido a que no esta tomando el electrocardiograma completo, se realiza chequeo y se evidencia que se encuentra descargado.","2015-07-14","15:00:00",2.0833333335758653E-2,"Revisión electrocardiografo.,Se realiza revisión del electrocardiografo del area de hospitalización debido a que no esta tomando el electrocardiograma completo, se realiza chequeo y se evidencia que se encuentra descargado."]
[89,"2015-07-14","15:30:00","Area de biotecnologia","AREA DE BIOTECNOLOGÍA","OTROS","PERSONAL","Gestión documental.","MEDIA ","Gestión documental.","2015-07-14","16:00:00",2.0833333328482695E-2,"Gestión documental.,Gestión documental."]
[90,"2015-07-14","16:00:00","Área de Cirugía","CIRUGÍA","OTROS","TELEFÓNICO","Revisión sierra de cardio.","MEDIA ","Se realiza revisión de la sierra de cardio debido a que se esta apagando en medio del procedimiento, se realiza cheqeuo donde se evidencia que el cable de alimentación se encuentra defectuoso.","2015-07-14","18:30:00",0.10416666667151731,"Revisión sierra de cardio.,Se realiza revisión de la sierra de cardio debido a que se esta apagando en medio del procedimiento, se realiza cheqeuo donde se evidencia que el cable de alimentación se encuentra defectuoso."]
[91,"2015-07-14","18:40:00","Area de biotecnologia","AREA DE BIOTECNOLOGÍA","OTROS","PERSONAL","Ejecución bitacora de actividades mes de Julio.","MEDIA ","Se inicia con la ejecución de la bitacora de actividades para el mes de Julio.","2015-07-14","19:00:00",1.3888888883229811E-2,"Ejecución bitacora de actividades mes de Julio.,Se inicia con la ejecución de la bitacora de actividades para el mes de Julio."]
[92,"2015-07-15","07:00:00","Area de biotecnologia","AREA DE BIOTECNOLOGÍA","OTROS","PERSONAL","Socialización guias de reacción inmediata.","MEDIA ","Se realiza socialización de las guias de reacción inmediata al area de hospitalización.","2015-07-15","08:00:00",4.1666666671517305E-2,"Socialización guias de reacción inmediata.,Se realiza socialización de las guias de reacción inmediata al area de hospitalización."]
[93,"2015-07-15","08:00:00","Area de biotecnologia","AREA DE BIOTECNOLOGÍA","OTROS","PERSONAL","Verificación disponibilidad ventiladores mecanicos. ","MEDIA ","Se realiza verificación sobre la disponibilidad de los ventiladores mecanicos.","2015-07-15","08:30:00",2.0833333328482695E-2,"Verificación disponibilidad ventiladores mecanicos. ,Se realiza verificación sobre la disponibilidad de los ventiladores mecanicos."]
[null,"2015-07-15","08:40:00","Área de Hospitalización","HOSPITALIZACION-2","BOMBA DE INFUSIÓN","TELEFÓNICO","Revisión bombas de infusión.","ALTA ","Se realiza revisión de una bomba de infusión la cual se encuentra disfuncional.","2015-07-15","10:00:00",5.5555555554747116E-2,"Revisión bombas de infusión.,Se realiza revisión de una bomba de infusión la cual se encuentra disfuncional."]
[94,"2015-07-15","10:00:00","Area de biotecnologia","AREA DE BIOTECNOLOGÍA","OTROS","PERSONAL","Entrega vaporizador.","MEDIA ","Se realiza entrega de un vaporizador a representante de ABBVIE.","2015-07-15","10:30:00",2.0833333335758653E-2,"Entrega vaporizador.,Se realiza entrega de un vaporizador a representante de ABBVIE."]
[95,"2015-07-15","10:40:00","Area de biotecnologia","AREA DE BIOTECNOLOGÍA","OTROS","PERSONAL","Revisión ventilador mecanico.","MEDIA ","Se realiza revisión de un ventilador mecanico que se encuentra en arrendamiento debido a que esta presentando un error, se evidencia que el toma de gases medicinales tiene una fuga.","2015-07-15","11:40:00",4.1666666664241347E-2,"Revisión ventilador mecanico.,Se realiza revisión de un ventilador mecanico que se encuentra en arrendamiento debido a que esta presentando un error, se evidencia que el toma de gases medicinales tiene una fuga."]
[96,"2015-07-15","11:50:00","Area de biotecnologia","AREA DE BIOTECNOLOGÍA","OTROS","PERSONAL","Socialización guias de reacción inmediata.","MEDIA ","Se realiza socialización de las guias de reacción inmediata al area de cirugía.","2015-07-15","12:30:00",2.7777777781011537E-2,"Socialización guias de reacción inmediata.,Se realiza socialización de las guias de reacción inmediata al area de cirugía."]
[null,"2015-07-15","13:30:00","Area de biotecnologia","AREA DE BIOTECNOLOGÍA","OTROS","PERSONAL","Comunicado bombas de infusión.","MEDIA ","Se socializa comunicado sobre la capacitación del buen uso en las bombas de infusion.","2015-07-15","13:40:00",6.9444444452528842E-3,"Comunicado bombas de infusión.,Se socializa comunicado sobre la capacitación del buen uso en las bombas de infusion."]
[null,"2015-07-15","13:40:00","Área de Cuidados Intensivos","UCI","VENTILADOR MECÁNICO","TELEFÓNICO","Revisión ventilador mécanico.","ALTA ","Se realiza revisión de un ventilador mecanico debido a que se encuentra autociclando cuando se conecta al paciente realiza autociclando, se revisan parametros y se encuentra en buen estado, se conecta otro equipo a el paciente y se evidnecia que ocurreo lo mismo, se deduce que el inconveniente es presentado en el paciente.","2015-07-15","14:20:00",2.7777777773735579E-2,"Revisión ventilador mécanico.,Se realiza revisión de un ventilador mecanico debido a que se encuentra autociclando cuando se conecta al paciente realiza autociclando, se revisan parametros y se encuentra en buen estado, se conecta otro equipo a el paciente y se evidnecia que ocurreo lo mismo, se deduce que el inconveniente es presentado en el paciente."]
[null,"2015-07-15","14:30:00","Area de biotecnologia","AREA DE BIOTECNOLOGÍA","OTROS","PERSONAL","Consecución ventilador mecanico.","ALTA ","Se realiza consecución de un ventilador mecanico que se requiere en la U.C.I.","2015-07-15","15:00:00",2.0833333335758653E-2,"Consecución ventilador mecanico.,Se realiza consecución de un ventilador mecanico que se requiere en la U.C.I."]
[null,"2015-07-15","15:00:00","Area de biotecnologia","AREA DE BIOTECNOLOGÍA","OTROS","PERSONAL","Revisión ventilador mécanico.","MEDIA ","Se realiza nuevamente la revisión del ventilador mecanico por solicitud del medico de turno para definir si el autociclado era procedente de la paciente.","2015-07-15","16:30:00",6.25E-2,"Revisión ventilador mécanico.,Se realiza nuevamente la revisión del ventilador mecanico por solicitud del medico de turno para definir si el autociclado era procedente de la paciente."]
[null,"2015-07-15","16:40:00","Area de biotecnologia","AREA DE BIOTECNOLOGÍA","OTROS","PERSONAL","Gestión documental.","MEDIA ","Gestión documental.","2015-07-15","17:20:00",2.7777777773735579E-2,"Gestión documental.,Gestión documental."]
[97,"2015-07-15","17:30:00","Área de Cuidados Intensivos","UCI","MONITOR SIGNOS VITALES","PERSONAL","Revisión monitor de signos vitales.","ALTA ","Se realiza revisión de un monitor de signos vitales debido a que no esta monitorizando la presión no invasiva, se realiza chequo donde se evidencia que el brazalete tiene una fuga, se realiza la reposición encontrandose en perfectas condiciones de uso.","2015-07-15","18:40:00",4.8611111116770189E-2,"Revisión monitor de signos vitales.,Se realiza revisión de un monitor de signos vitales debido a que no esta monitorizando la presión no invasiva, se realiza chequo donde se evidencia que el brazalete tiene una fuga, se realiza la reposición encontrandose en perfectas condiciones de uso."]
[null,"2015-07-15","18:40:00","Area de biotecnologia","AREA DE BIOTECNOLOGÍA","OTROS","PERSONAL","Gestión documental.","MEDIA ","Gestión documental.","2015-07-15","19:00:00",1.3888888883229811E-2,"Gestión documental.,Gestión documental."]
[98,"2015-07-15","19:00:00","Area de biotecnologia","AREA DE BIOTECNOLOGÍA","OTROS","PERSONAL","Revisión ventilador mecanico.","MEDIA ","Se realiza revisión de un ventilador mecanico debido a que se encuentra fuera de servicio por una falla tecnica.","2015-07-15","19:40:00",2.7777777781011537E-2,"Revisión ventilador mecanico.,Se realiza revisión de un ventilador mecanico debido a que se encuentra fuera de servicio por una falla tecnica."]
[99,"2015-07-16","07:00:00","Area de biotecnologia","AREA DE BIOTECNOLOGÍA","OTROS","PERSONAL","Socialización guias de reacción inmediata.","MEDIA ","Se realiza socialización de las guias de reacción inmediata de los equipos medicos al area de cirugía.","2015-07-16","08:00:00",4.1666666671517305E-2,"Socialización guias de reacción inmediata.,Se realiza socialización de las guias de reacción inmediata de los equipos medicos al area de cirugía."]
[100,"2015-07-16","08:00:00","Area de biotecnologia","AREA DE BIOTECNOLOGÍA","OTROS","PERSONAL","Listado equipos medicos.","MEDIA ","Se adjunta listado de equipos medicos para la ejecución del mantenimiento.","2015-07-16","09:30:00",6.25E-2,"Listado equipos medicos.,Se adjunta listado de equipos medicos para la ejecución del mantenimiento."]
[101,"2015-07-16","09:40:00","Área de Cuidados Intensivos","UCI","VENTILADOR MECÁNICO","TELEFÓNICO","Revisión ventilador mécanico.","ALTA ","Se realiza revisión de un ventilador mecanico  debido a que esta presentando fuga, se realiza chequeo y se evidencia que es el toma de oxigeno se realiza cambio qeudando en perfectas condiciones de uso.","2015-07-16","11:30:00",7.6388888883229811E-2,"Revisión ventilador mécanico.,Se realiza revisión de un ventilador mecanico  debido a que esta presentando fuga, se realiza chequeo y se evidencia que es el toma de oxigeno se realiza cambio qeudando en perfectas condiciones de uso."]
[102,"2015-07-16","11:40:00","Area de biotecnologia","AREA DE BIOTECNOLOGÍA","OTROS","PERSONAL","Revisión guias de reacción inmediata.","MEDIA ","Se realiza revisión de las guias de reacción inmediata de los equipos medicos de cirugía.","2015-07-16","13:30:00",7.6388888890505768E-2,"Revisión guias de reacción inmediata.,Se realiza revisión de las guias de reacción inmediata de los equipos medicos de cirugía."]
[103,"2015-07-16","13:30:00","Area de biotecnologia","AREA DE BIOTECNOLOGÍA","VENTILADOR MECÁNICO","PERSONAL","Revisión ventilador mecanico.","MEDIA ","Se pone a ciclar el ventilador que se encuentra fuera de uso para verificar su comportamiento, se realizan pruebas de funcionamiento superandolas  todas.","2015-07-16","15:00:00",6.25E-2,"Revisión ventilador mecanico.,Se pone a ciclar el ventilador que se encuentra fuera de uso para verificar su comportamiento, se realizan pruebas de funcionamiento superandolas  todas."]
[104,"2015-07-16","15:00:00","Area de biotecnologia","AREA DE BIOTECNOLOGÍA","OTROS","PERSONAL","Consecución ventilador mecanico.","ALTA ","Se realiza consecución de un ventilador mecanico que se requiere en la U.C.I.","2015-07-16","16:00:00",4.1666666664241347E-2,"Consecución ventilador mecanico.,Se realiza consecución de un ventilador mecanico que se requiere en la U.C.I."]
[105,"2015-07-16","16:10:00","Area de biotecnologia","AREA DE BIOTECNOLOGÍA","OTROS","PERSONAL","Informe de gestión.","MEDIA ","Se inicia ejecutando el informe de gestión.","2015-07-16","18:30:00",9.7222222226264421E-2,"Informe de gestión.,Se inicia ejecutando el informe de gestión."]
[106,"2015-07-16","18:40:00","Area de biotecnologia","AREA DE BIOTECNOLOGÍA","VENTILADOR MECÁNICO","PERSONAL","Revisión ventilador mecanico.","MEDIA ","Se realiza nuevamente chequeo sobre el funcionamiento del ventilador mécanico que se encuentraba fuera de servicio y se evidencia que se encuentra en perfectas condiciones de uso.","2015-07-16","19:20:00",2.7777777773735579E-2,"Revisión ventilador mecanico.,Se realiza nuevamente chequeo sobre el funcionamiento del ventilador mécanico que se encuentraba fuera de servicio y se evidencia que se encuentra en perfectas condiciones de uso."]
[107,"2015-07-17","07:00:00","Área de Cuidados Intensivos","UCI","VENTILADOR MECÁNICO","PERSONAL","Socialización guias de reacción inmediata.","MEDIA ","Se realiza socialización de las guias de reacción inmediata de los equipos medicos al area de cirugía.","2015-07-17","08:00:00",4.1666666671517305E-2,"Socialización guias de reacción inmediata.,Se realiza socialización de las guias de reacción inmediata de los equipos medicos al area de cirugía."]
[108,"2015-07-17","08:15:00","Área de Cuidados Intensivos","UCI","GLUCÓMETRO","TELEFÓNICO","Revisión glucometro.","MEDIA ","Se realiza revisión del glucometro debido a que esta presentando un error, se identifica que es debido a que no se habia realizado la espectiva configuración con el lote de tiras que se estaba utilizando.","2015-07-17","08:40:00",1.7361111109494232E-2,"Revisión glucometro.,Se realiza revisión del glucometro debido a que esta presentando un error, se identifica que es debido a que no se habia realizado la espectiva configuración con el lote de tiras que se estaba utilizando."]
[109,"2015-07-17","08:40:00","Área de Hospitalización","HOSPITALIZACION-2","PULSOXÍMETRO","PERSONAL","Revisión pulsoximetro.","MEDIA ","Se realiza revisión del pulsoximetro de hospitalización debido a que no enciende, se realiza chequeo y se identifica que es debido a que las pilas se encuentran descargadas.","2015-07-17","09:10:00",2.0833333335758653E-2,"Revisión pulsoximetro.,Se realiza revisión del pulsoximetro de hospitalización debido a que no enciende, se realiza chequeo y se identifica que es debido a que las pilas se encuentran descargadas."]
[null,"2015-07-17","09:20:00","Area de biotecnologia","AREA DE BIOTECNOLOGÍA","OTROS","PERSONAL","Informe de gestión.","MEDIA ","Se continua ejecutando el informe de gestión.","2015-07-17","10:30:00",4.8611111109494232E-2]
[110,"2015-07-17","10:40:00","Área de Cuidados Intensivos","UCI","VENTILADOR MECÁNICO","PERSONAL","Revisión ventilador mecanico.","ALTA ","Se realiza chequeo deun vnetilador mecanico debido a que sale una alarma de un error interno.","2015-07-17","11:00:00",1.3888888890505768E-2,"Revisión ventilador mecanico.,Se realiza chequeo deun vnetilador mecanico debido a que sale una alarma de un error interno."]
[null,"2015-07-17","11:00:00","Area de biotecnologia","AREA DE BIOTECNOLOGÍA","OTROS","PERSONAL","Informe de gestión.","MEDIA ","Se continua ejecutando el informe de gestión.","2015-07-17","13:00:00",8.3333333328482695E-2,"Informe de gestión.,Se continua ejecutando el informe de gestión."]
[111,"2015-07-17","14:00:00","Area de biotecnologia","AREA DE BIOTECNOLOGÍA","VENTILADOR MECÁNICO","PERSONAL","Consecución ventilador mecanico.","ALTA ","Se realiza consecución de un ventilador mecanico que se requiere en la U.C.I.","2015-07-17","14:40:00",2.7777777773735579E-2,"Consecución ventilador mecanico.,Se realiza consecución de un ventilador mecanico que se requiere en la U.C.I."]
[112,"2015-07-17","15:00:00","Area de biotecnologia","AREA DE BIOTECNOLOGÍA","VENTILADOR MECÁNICO","PERSONAL","Gestión documental.","MEDIA ","Gestión documental.","2015-07-17","16:10:00",4.8611111109494232E-2,"Gestión documental.,Gestión documental."]
[113,"2015-07-17","16:10:00","Área de Hospitalización","HOSPITALIZACION-2","ELECTROCARDIÓGRAFO","TELEFÓNICO","Revisión electrocardiografo.","ALTA ","Se ejecuta revisión del electrocardiografo debido a que no toma EKG, se evidnecia que es debido a que el equipo se encuentra descargado.","2015-07-17","17:00:00",3.4722222226264421E-2,"Revisión electrocardiografo.,Se ejecuta revisión del electrocardiografo debido a que no toma EKG, se evidnecia que es debido a que el equipo se encuentra descargado."]
[114,"2015-07-17","17:00:00","Area de biotecnologia","AREA DE BIOTECNOLOGÍA","VENTILADOR MECÁNICO","PERSONAL","Gestión documental.","MEDIA ","Gestión documental.","2015-07-17","18:00:00",4.1666666664241347E-2,"Gestión documental.,Gestión documental."]
[115,"2015-07-21","07:00:00","Area de biotecnologia","AREA DE BIOTECNOLOGÍA","OTROS","PERSONAL","Verificación disponibilidad ventiladores mecanicos. ","MEDIA ","Se realiza verificación sobrr la disponibilidad de ventiladores.","2015-07-21","07:40:00",2.7777777781011537E-2,"Verificación disponibilidad ventiladores mecanicos. ,Se realiza verificación sobrr la disponibilidad de ventiladores."]
[116,"2015-07-21","07:40:00","Area de biotecnologia","AREA DE BIOTECNOLOGÍA","OTROS","PERSONAL","Atención representante covidien.","MEDIA ","Se realiza atención a representante de covidien.","2015-07-21","11:00:00",0.13888888889050577,"Atención representante covidien.,Se realiza atención a representante de covidien."]
[117,"2015-07-21","11:00:00","Area de biotecnologia","AREA DE BIOTECNOLOGÍA","OTROS","PERSONAL","Revisión cronograma de mantenimiento.","MEDIA ","Se ejecuta revisión del gronograma de mantenimiento del area de biotecnologia.","2015-07-21","12:00:00",4.1666666664241347E-2,"Revisión cronograma de mantenimiento.,Se ejecuta revisión del gronograma de mantenimiento del area de biotecnologia."]
[118,"2015-07-21","12:00:00","Area de biotecnologia","AREA DE BIOTECNOLOGÍA","OTROS","PERSONAL","Solicitud cotizaciones.","MEDIA ","Se solicitan cotizaciones pendientes.","2015-07-21","12:40:00",2.7777777781011537E-2,"Solicitud cotizaciones.,Se solicitan cotizaciones pendientes."]
[119,"2015-07-21","12:40:00","Area de biotecnologia","AREA DE BIOTECNOLOGÍA","OTROS","PERSONAL","Presentación comité.","MEDIA ","Se realiza presentación para el comité de gestión.","2015-07-21","13:30:00",3.4722222218988463E-2,"Presentación comité.,Se realiza presentación para el comité de gestión."]
[120,"2015-07-21","14:00:00","Área de Cirugía","CIRUGÍA","ACCESORIOS","TELEFÓNICO","Revisión vaporizador.","ALTA ","Se realiza revisión del vaporizador debido a que en un cirugia se desperto el paciente , se realiza chequeo y se evidencia que el vaporizador se encuentra mal instalado, se realiza la respectiva instalación quedando en perfectas condiciones de uso.","2015-07-21","15:00:00",4.1666666664241347E-2,"Revisión vaporizador.,Se realiza revisión del vaporizador debido a que en un cirugia se desperto el paciente , se realiza chequeo y se evidencia que el vaporizador se encuentra mal instalado, se realiza la respectiva instalación quedando en perfectas condiciones de uso."]
[121,"2015-07-21","15:00:00","Area de biotecnologia","AREA DE BIOTECNOLOGÍA","OTROS","PERSONAL","Funcionamiento equipos covidien.","MEDIA ","Se supervisa el funcionamiento de los equipos de covidien.","2015-07-21","16:00:00",4.1666666664241347E-2,"Funcionamiento equipos covidien.,Se supervisa el funcionamiento de los equipos de covidien."]
[122,"2015-07-21","16:40:00","Area de biotecnologia","AREA DE BIOTECNOLOGÍA","OTROS","PERSONAL","Ejecución capacitación.","MEDIA ","Se realiza capacitación sobre el uso de bombas de infusión y buen uso de equipos medicos.","2015-07-21","18:30:00",7.6388888890505768E-2,"Ejecución capacitación.,Se realiza capacitación sobre el uso de bombas de infusión y buen uso de equipos medicos."]
[123,"2015-07-21","18:40:00","Area de biotecnologia","AREA DE BIOTECNOLOGÍA","OTROS","PERSONAL","Gestión documental.","MEDIA ","Gestión documental.","2015-07-21","19:00:00",1.3888888883229811E-2,"Gestión documental.,Gestión documental."]
[124,"2015-07-22","07:00:00","Area de biotecnologia","AREA DE BIOTECNOLOGÍA","OTROS","PERSONAL","Verificación disponibilidad ventiladores mecanicos. ","MEDIA ","Se realiza verificación sobre la  disponibilidad de los ventiladores mecanicos.","2015-07-22","07:30:00",2.0833333335758653E-2,"Verificación disponibilidad ventiladores mecanicos. ,Se realiza verificación sobre la  disponibilidad de los ventiladores mecanicos."]
[125,"2015-07-22","07:30:00","Area de biotecnologia","AREA DE BIOTECNOLOGÍA","OTROS","PERSONAL","Se realiza entrega de un generador de marcapasos.","MEDIA ","Se realiza entrega de un generador de marcapasos al area de la U.C.I en perfectas condiciones de uso.","2015-07-22","07:50:00",1.3888888890505768E-2,"Se realiza entrega de un generador de marcapasos.,Se realiza entrega de un generador de marcapasos al area de la U.C.I en perfectas condiciones de uso."]
[126,"2015-07-22","08:20:00","Area de biotecnologia","AREA DE BIOTECNOLOGÍA","OTROS","PERSONAL","Entrega equipos en demostración.","MEDIA ","se relaiza entrega a representantes de Covidien sobre los equipos que se encuentran en demostración.","2015-07-22","08:40:00",1.3888888890505768E-2,"Entrega equipos en demostración.,se relaiza entrega a representantes de Covidien sobre los equipos que se encuentran en demostración."]
[127,"2015-07-22","09:00:00","Area de biotecnologia","AREA DE BIOTECNOLOGÍA","OTROS","PERSONAL","verificación listado del personal de cirugía.","MEDIA ","Se verifica asistencia del personal del area de cirugía.","2015-07-22","10:30:00",6.25E-2,"verificación listado del personal de cirugía.,Se verifica asistencia del personal del area de cirugía."]
[128,"2015-07-22","10:40:00","Area de biotecnologia","AREA DE BIOTECNOLOGÍA","OTROS","PERSONAL","Gestión documental.","MEDIA ","Gestión documental.","2015-07-22","12:00:00",5.5555555554747116E-2,"Gestión documental.,Gestión documental."]
[129,"2015-07-22","12:00:00","Area de biotecnologia","AREA DE BIOTECNOLOGÍA","OTROS","PERSONAL","Calificación evaluaciones.","MEDIA ","Se realiza calificación de las evaluaciones realizadas en las capacitaciones.","2015-07-22","13:00:00",4.1666666664241347E-2,"Calificación evaluaciones.,Se realiza calificación de las evaluaciones realizadas en las capacitaciones."]
[130,"2015-07-22","14:00:00","Área de Cirugía","CIRUGÍA","OTROS","TELEFÓNICO","Revisión infusor.","MEDIA ","Se realiza revisión de un infusor del area de ciruiga debido a que le hace falta el controlador de vacio, se realiza chequo y se repone la piza quedadno en perfectas condiciones de uso.","2015-07-22","14:40:00",2.7777777773735579E-2,"Revisión infusor.,Se realiza revisión de un infusor del area de ciruiga debido a que le hace falta el controlador de vacio, se realiza chequo y se repone la piza quedadno en perfectas condiciones de uso."]
[131,"2015-07-22","14:40:00","Area de biotecnologia","AREA DE BIOTECNOLOGÍA","OTROS","PERSONAL","Revisión listado del personal que asistieron a las socializaciones.","MEDIA ","Se relaiza revisión del listado del personal que ha asistido a las capacitaciones.","2015-07-22","15:20:00",{"$f":"((K142+L142)-(B142+C142))","v":2.7777777781011537E-2},"Revisión listado del personal que asistieron a las socializaciones.,Se relaiza revisión del listado del personal que ha asistido a las capacitaciones."]
[132,"2015-07-22","15:40:00","Area de biotecnologia","AREA DE BIOTECNOLOGÍA","OTROS","PERSONAL","Gestión documental.","MEDIA ","Gestión documental.","2015-07-22","16:40:00",4.1666666664241347E-2,"Gestión documental.,Gestión documental."]
[133,"2015-07-22","16:40:00","Area de biotecnologia","AREA DE BIOTECNOLOGÍA","OTROS","PERSONAL","Revisión guias de reacción inmediata.","MEDIA ","Se continua revisando las guias de reaccion inmediata.","2015-07-22","18:30:00",7.6388888890505768E-2,"Revisión guias de reacción inmediata.,Se continua revisando las guias de reaccion inmediata."]
[134,"2015-07-22","18:40:00","Area de biotecnologia","AREA DE BIOTECNOLOGÍA","OTROS","PERSONAL","Socialización guias de reacción inmediata.","MEDIA ","Se continua socializando las guias de reacción inmediata.","2015-07-22","19:40:00",4.1666666664241347E-2,"Socialización guias de reacción inmediata.,Se continua socializando las guias de reacción inmediata."]
[135,"2015-07-23","06:30:00","Area de biotecnologia","AREA DE BIOTECNOLOGÍA","OTROS","PERSONAL","Traslado ecocardiografo.","MEDIA ","Se traslado el ecocardiografo hacia Megacentro para realizar la consulta de ecos pediatricos.","2015-07-23","08:30:00",8.3333333328482695E-2,"Traslado ecocardiografo.,Se traslado el ecocardiografo hacia Megacentro para realizar la consulta de ecos pediatricos."]
[136,"2015-07-23","08:40:00","Area de biotecnologia","AREA DE BIOTECNOLOGÍA","OTROS","PERSONAL","Entrega STIMUPLEX.","MEDIA ","Se realiza entrega del STIMUPLEX que se encontraba en mantenimiento.","2015-07-23","09:00:00",1.3888888890505768E-2,"Entrega STIMUPLEX.,Se realiza entrega del STIMUPLEX que se encontraba en mantenimiento."]
[137,"2015-07-23","09:00:00","Area de biotecnologia","AREA DE BIOTECNOLOGÍA","OTROS","PERSONAL","Socialización guias de reacción inmediata.","MEDIA ","Se continua socializando las guias de reacción inmediata.","2015-07-23","09:30:00",2.0833333335758653E-2,"Socialización guias de reacción inmediata.,Se continua socializando las guias de reacción inmediata."]
[138,"2015-07-23","09:40:00","Area de biotecnologia","AREA DE BIOTECNOLOGÍA","OTROS","PERSONAL","Consecución electrocardiografo.","MEDIA ","Se realiza consecución de un electrocardiografo para el area de recuperación de pacientes ubicada en la ciudad de Armenia.","2015-07-23","11:20:00",6.9444444437976927E-2,"Consecución electrocardiografo.,Se realiza consecución de un electrocardiografo para el area de recuperación de pacientes ubicada en la ciudad de Armenia."]
[139,"2015-07-23","11:30:00","Area de biotecnologia","AREA DE BIOTECNOLOGÍA","OTROS","PERSONAL","Ejecución manteninientos preventivos.","MEDIA ","Se inicia realizando los mantenimietnos preventivoa al area de hospitalización.","2015-07-23","12:30:00",4.1666666671517305E-2,{"$f":"H150&\",\"&J150","v":"Ejecución manteninientos preventivos.,Se inicia realizando los mantenimietnos preventivoa al area de hospitalización."}]
[140,"2015-07-23","15:00:00","Area de biotecnologia","AREA DE BIOTECNOLOGÍA","OTROS","PERSONAL","Verificación disponibilidad ventiladores mecanicos. ","MEDIA ","Se realiza revisión de la disponibilidad de ventiladores.","2015-07-23","15:30:00",2.0833333335758653E-2,"Verificación disponibilidad ventiladores mecanicos. ,Se realiza revisión de la disponibilidad de ventiladores."]
[141,"2015-07-23","03:40:00","Area de biotecnologia","AREA DE BIOTECNOLOGÍA","OTROS","PERSONAL","Consecución ventiladores mecanicos.","ALTA ","Se realiza consecuciónde un ventilador mecancio para  alquilarlo.","2015-07-23","16:00:00",0.51388888888322981,"Consecución ventiladores mecanicos.,Se realiza consecuciónde un ventilador mecancio para  alquilarlo."]
[142,"2015-07-23","16:20:00","Área de Cuidados Intensivos","UCI","CAMA ELÉCTRICA","TELEFÓNICO","Revisión cama electrica.","MEDIA ","Se realiza revisión de una cama electrica debido a que no quiere subir la cabecera, se realiza chequeo y se ajustan los cables de la unidad de control quedando en perfectas condiciones de uso.","2015-07-23","17:15:00",3.8194444445252884E-2,"Revisión cama electrica.,Se realiza revisión de una cama electrica debido a que no quiere subir la cabecera, se realiza chequeo y se ajustan los cables de la unidad de control quedando en perfectas condiciones de uso."]
[143,"2015-07-23","17:20:00","Area de biotecnologia","AREA DE BIOTECNOLOGÍA","OTROS","PERSONAL","Consecución equipos médicos.","MEDIA ","Se realiza gestión para la comsecución de un desfibrilador y u8n electrobisturi pero no es posible realizar la consecución para el mismo dia.","2015-07-23","18:30:00",4.8611111116770189E-2,"Consecución equipos médicos.,Se realiza gestión para la comsecución de un desfibrilador y u8n electrobisturi pero no es posible realizar la consecución para el mismo dia."]
[144,"2015-07-23","18:40:00","Area de biotecnologia","AREA DE BIOTECNOLOGÍA","OTROS","PERSONAL","Socialización guias de reacción inmediata.","MEDIA ","Se continua socializando las guias de reacción inmediata.","2015-07-23","19:20:00",2.7777777773735579E-2,"Socialización guias de reacción inmediata.,Se continua socializando las guias de reacción inmediata."]
[145,"2015-07-24","07:00:00","Area de biotecnologia","AREA DE BIOTECNOLOGÍA","OTROS","PERSONAL","Verificación disponibilidad ventiladores mecanicos. ","MEDIA ","Se realiza verificación sobre la disponibilidad de los ventiladores mecanicos.","2015-07-24","07:40:00",2.7777777781011537E-2,"Verificación disponibilidad ventiladores mecanicos. ,Se realiza verificación sobre la disponibilidad de los ventiladores mecanicos."]
[146,"2015-07-24","07:50:00","Area de biotecnologia","AREA DE BIOTECNOLOGÍA","OTROS","PERSONAL","Reunión Dirección medica.","MEDIA ","Se realiza reunión en dirección médica.","2015-07-24","08:30:00",2.7777777773735579E-2,"Reunión Dirección medica.,Se realiza reunión en dirección médica."]
[147,"2015-07-24","08:30:00","Área de Cuidados Intensivos","UCI","MONITOR SIGNOS VITALES","TELEFÓNICO","Revisión monitor de signos vitales.","ALTA ","Se realiza revisión  de un monitor de signos vitales debido a que no  esta monitorizando la presion no invasiva, se realiza chequeo quedando en perfectas condiciones de uso.","2015-07-24","08:50:00",1.3888888890505768E-2,"Revisión monitor de signos vitales.,Se realiza revisión  de un monitor de signos vitales debido a que no  esta monitorizando la presion no invasiva, se realiza chequeo quedando en perfectas condiciones de uso."]
[148,"2015-07-24","09:00:00","Área de Cuidados Intensivos","UCI","VENTILADOR MECÁNICO","TELEFÓNICO","Revisión ventilador mecanico.","MEDIA ","Se realiza revisión de un ventilador mécanico debido a que se encuentra fuera de servicio.","2015-07-24","09:40:00",2.7777777781011537E-2,"Revisión ventilador mecanico.,Se realiza revisión de un ventilador mécanico debido a que se encuentra fuera de servicio."]
[149,"2015-07-24","09:50:00","Area de biotecnologia","AREA DE BIOTECNOLOGÍA","OTROS","PERSONAL","Consecución ventiladores mecanicos.","MEDIA ","Se realiza consecución de un ventilador mecanico que se requiere en la U.C.I.","2015-07-24","10:30:00",2.7777777781011537E-2,"Consecución ventiladores mecanicos.,Se realiza consecución de un ventilador mecanico que se requiere en la U.C.I."]
[150,"2015-07-24","10:50:00","Area de biotecnologia","AREA DE BIOTECNOLOGÍA","OTROS","PERSONAL","Gestión documental.","MEDIA ","Gestión documental.","2015-07-24","11:30:00",2.7777777773735579E-2,"Gestión documental.,Gestión documental."]
[151,"2015-07-24","11:40:00","Area de biotecnologia","AREA DE BIOTECNOLOGÍA","OTROS","PERSONAL","Revisión y cambio de vaporizadores.","MEDIA ","Se realiza cambio de vaporizadores en el area de cirugía.","2015-07-24","12:50:00",4.8611111109494232E-2,"Revisión y cambio de vaporizadores.,Se realiza cambio de vaporizadores en el area de cirugía."]
[152,"2015-07-24","12:50:00","Area de biotecnologia","AREA DE BIOTECNOLOGÍA","OTROS","PERSONAL","Socialización guias de reacción inmediata.","MEDIA ","Se continua socializando las guias de reacción inmediata.","2015-07-24","13:30:00",2.7777777781011537E-2,"Socialización guias de reacción inmediata.,Se continua socializando las guias de reacción inmediata."]
[153,"2015-07-24","14:00:00","Área de Cuidados Intensivos","UCI","ACCESORIOS","TELEFÓNICO","Revisión pulsoximetro.","MEDIA ","Se realiza revisión de un pulsoxiemtro del area de cuidados intensivos debido a que un esta interpretando la saturación del paciente.","2015-07-24","14:30:00",2.0833333328482695E-2,"Revisión pulsoximetro.,Se realiza revisión de un pulsoxiemtro del area de cuidados intensivos debido a que un esta interpretando la saturación del paciente."]
[154,"2015-07-24","14:40:00","Área de Hospitalización","HOSPITALIZACION1","CAMA ELÉCTRICA","TELEFÓNICO","Revisión cama electrica.","MEDIA ","Se realiza revisión de una cama electrica debido a que no tiene ningun movimiento, se realiza chequeo y se evidencia que la clavija para conectar a la red electrica se encuentra disfuncional.","2015-07-24","15:10:00",2.0833333335758653E-2,"Revisión cama electrica.,Se realiza revisión de una cama electrica debido a que no tiene ningun movimiento, se realiza chequeo y se evidencia que la clavija para conectar a la red electrica se encuentra disfuncional."]
[155,"2015-07-24","15:10:00","Area de biotecnologia","AREA DE BIOTECNOLOGÍA","OTROS","PERSONAL","Ejecución hojas de vida equipos medicos.","MEDIA ","Se realizan hojas de vida de los vaporizadores que ingresan nuevos a la institución.","2015-07-24","16:30:00",5.5555555554747116E-2,"Ejecución hojas de vida equipos medicos.,Se realizan hojas de vida de los vaporizadores que ingresan nuevos a la institución."]
[156,"2015-07-24","16:40:00","Area de biotecnologia","AREA DE BIOTECNOLOGÍA","OTROS","PERSONAL","Cotización pendiente.","MEDIA ","Se realiza cotización y orden de compra para la adquisición de un bombillo para el microscopio de oftalmologia.","2015-07-24","17:20:00",2.7777777773735579E-2,"Cotización pendiente.,Se realiza cotización y orden de compra para la adquisición de un bombillo para el microscopio de oftalmologia."]
[157,"2015-07-24","17:20:00","Area de biotecnologia","AREA DE BIOTECNOLOGÍA","OTROS","PERSONAL","Entrega ventilador mecancio.","MEDIA ","Se realiza entrega de un ventilador mecanico que se encontraba en arrendamiento.","2015-07-24","17:50:00",2.0833333335758653E-2,"Entrega ventilador mecancio.,Se realiza entrega de un ventilador mecanico que se encontraba en arrendamiento."]
[158,"2015-07-24","20:30:00","Área de Cuidados Intensivos","UCI","VENTILADOR MECÁNICO","TELEFÓNICO","Revisión ventilador mecanico.","ALTA ","Se realiza revisión de un ventilador mecanico debido a que no permite conectarlo a la red de gases, se realiza chequeo pero se evidencia que la manguera de conección se encuentra dusfuncional, se ralizan ajustes quedando igual, se sostituye por otra manguera.","2015-07-24","22:00:00",6.25E-2,"Revisión ventilador mecanico.,Se realiza revisión de un ventilador mecanico debido a que no permite conectarlo a la red de gases, se realiza chequeo pero se evidencia que la manguera de conección se encuentra dusfuncional, se ralizan ajustes quedando igual, se sostituye por otra manguera."]
[159,"2015-07-25","10:00:00","Área de Cuidados Intensivos","UCI","VENTILADOR MECÁNICO","TELEFÓNICO","Revisión ventilador mecanico.","ALTA ","Se  realiza revisión de un ventilador mécanico para realizar cambio de la manguera de aire nuevamente.","2015-07-25","11:30:00",6.25E-2,"Revisión ventilador mecanico.,Se  realiza revisión de un ventilador mécanico para realizar cambio de la manguera de aire nuevamente."]
[160,"2015-07-25","11:30:00","Area de biotecnologia","AREA DE BIOTECNOLOGÍA","OTROS","PERSONAL","Ejecución guias de reacción inmediata.","MEDIA ","Se continua realizando las guias de reacción inmediata","2015-07-25","15:30:00",0.16666666667151731,"Ejecución guias de reacción inmediata.,Se continua realizando las guias de reacción inmediata"]
[161,"2015-07-27","07:00:00","Area de biotecnologia","AREA DE BIOTECNOLOGÍA","OTROS","PERSONAL","Verificación disponibilidad ventiladores mecanicos. ","MEDIA ","Se realiza verifiacación de la disponibilidad de los ventiladores mecanicos.","2015-07-27","07:20:00",1.3888888890505768E-2,"Verificación disponibilidad ventiladores mecanicos. ,Se realiza verifiacación de la disponibilidad de los ventiladores mecanicos."]
[162,"2015-07-27","07:20:00","Area de biotecnologia","AREA DE BIOTECNOLOGÍA","OTROS","PERSONAL","Solicitud  cotizaciones pendientes.","MEDIA ","Se realiza solicitud de las cotizaciones pendientes.","2015-07-27","07:40:00",1.3888888890505768E-2,"Solicitud  cotizaciones pendientes.,Se realiza solicitud de las cotizaciones pendientes."]
[163,"2015-07-27","07:40:00","Area de biotecnologia","AREA DE BIOTECNOLOGÍA","OTROS","PERSONAL","Gestión documental.","MEDIA ","Gestión documental.","27/07/02015","08:30:00",{"$error":"#VALUE!"},"Gestión documental.,Gestión documental."]
[164,"2015-07-27","08:30:00","Area de biotecnologia","AREA DE BIOTECNOLOGÍA","OTROS","PERSONAL","Ejecución orden de compra.","MEDIA ","Se realiza ejecución sobre la orden de compra para lineas de muestreo.","2015-07-27","08:40:00",6.9444444452528842E-3,"Ejecución orden de compra.,Se realiza ejecución sobre la orden de compra para lineas de muestreo."]
[165,"2015-07-27","08:40:00","Area de biotecnologia","AREA DE BIOTECNOLOGÍA","OTROS","PERSONAL","Revisión guias de reacción inmediata.","MEDIA ","Se continua revisando las guias de reaccion inmediata.","2015-07-27","11:30:00",0.11805555555474712,"Revisión guias de reacción inmediata.,Se continua revisando las guias de reaccion inmediata."]
[166,"2015-07-27","11:30:00","Area de biotecnologia","AREA DE BIOTECNOLOGÍA","OTROS","PERSONAL","Socialización guias de reacción inmediata.","MEDIA ","Se continua realizando la socialización de las guias de reacción inmediata.","2015-07-27","12:20:00",3.4722222226264421E-2,"Socialización guias de reacción inmediata.,Se continua realizando la socialización de las guias de reacción inmediata."]
[167,"2015-07-27","12:20:00","Área de Cuidados Intensivos","UCI","MONITOR SIGNOS VITALES","TELEFÓNICO","Revisión monitor de signos vitales.","MEDIA ","Se realiza revisión  de un monitor de signos vitales debido a que no  esta monitorizando la presion no invasiva, se realiza chequeo quedando en perfectas condiciones de uso.","2015-07-27","13:30:00",4.8611111109494232E-2,"Revisión monitor de signos vitales.,Se realiza revisión  de un monitor de signos vitales debido a que no  esta monitorizando la presion no invasiva, se realiza chequeo quedando en perfectas condiciones de uso."]
[168,"2015-07-27","14:00:00","Área de Cuidados Intensivos","UCI","VENTILADOR MECÁNICO","TELEFÓNICO","Revisión ventilador mecanico.","ALTA ","Se realiza revisión de un ventilador mecanico debido a que esta mostrando una alarma, se evidencia que el diafragma esta mal instalada en el sensor de flujo.","2015-07-27","15:00:00",4.1666666664241347E-2,"Revisión ventilador mecanico.,Se realiza revisión de un ventilador mecanico debido a que esta mostrando una alarma, se evidencia que el diafragma esta mal instalada en el sensor de flujo."]
[169,"2015-07-27","15:00:00","Area de biotecnologia","AREA DE BIOTECNOLOGÍA","OTROS","PERSONAL","Guias de reacción inmediata.","MEDIA ","Se continua socializando las guias de reacción inmediata.","2015-07-27","16:30:00",6.25E-2,"Guias de reacción inmediata.,Se continua socializando las guias de reacción inmediata."]
[170,"2015-07-27","16:30:00","Área de Consulta Externa","MEGACONSUL8","TENSIÓMETRO","CORREO","Revisión tensiometro.","MEDIA ","Se realiza revisión de un tensiometro que se encuentra desajustado en el manometro, se realizan ajsutes quedanddo en perfectas condiciones de uso.","2015-07-27","17:00:00",2.0833333335758653E-2,"Revisión tensiometro.,Se realiza revisión de un tensiometro que se encuentra desajustado en el manometro, se realizan ajsutes quedanddo en perfectas condiciones de uso."]
[171,"2015-07-27","17:00:00","Area de biotecnologia","AREA DE BIOTECNOLOGÍA","OTROS","PERSONAL","Gestión documental.","MEDIA ","Gestión documental.","2015-07-27","18:00:00",4.1666666664241347E-2,"Gestión documental.,Gestión documental."]
[172,"2015-07-28","07:00:00","Area de biotecnologia","AREA DE BIOTECNOLOGÍA","OTROS","PERSONAL","Verificación disponibilidad ventiladores mecanicos. ","MEDIA ","Se realiza verificación de la disponibilidad de los ventiladores.","2015-07-28","07:15:00",1.0416666671517305E-2,"Verificación disponibilidad ventiladores mecanicos. ,Se realiza verificación de la disponibilidad de los ventiladores."]
[173,"2015-07-28","07:15:00","Area de biotecnologia","AREA DE BIOTECNOLOGÍA","OTROS","PERSONAL","Socialización buen uso de equipos médicos.","MEDIA ","Se realiza socialización sobre el buen uso de equipos médicos al area de U.C.I","2015-07-28","08:30:00",5.2083333328482695E-2,"Socialización buen uso de equipos médicos.,Se realiza socialización sobre el buen uso de equipos médicos al area de U.C.I"]
[174,"2015-07-28","09:00:00","Area de biotecnologia","AREA DE BIOTECNOLOGÍA","OTROS","PERSONAL","Comité de gestión.","MEDIA ","Se asite a el comité de gestión.","2015-07-28","11:30:00",0.10416666666424135,"Comité de gestión.,Se asite a el comité de gestión."]
[175,"2015-07-28","11:40:00","Área de Cirugía","CIRUGÍA","MONITOR SIGNOS VITALES","TELEFÓNICO","Revisión monitor de signos vitales.","MEDIA ","Se  realiza revisión de un monitor de signos vitales el cual fue averiado por usuario en la zona de recuperación.","2015-07-28","12:40:00",4.1666666671517305E-2,"Revisión monitor de signos vitales.,Se  realiza revisión de un monitor de signos vitales el cual fue averiado por usuario en la zona de recuperación."]
[176,"2015-07-28","13:30:00","Area de biotecnologia","AREA DE BIOTECNOLOGÍA","OTROS","PERSONAL","Revisión evaluaciones.","MEDIA ","Revisión evaluaciones sobre temas socializados.","2015-07-28","14:20:00",3.4722222218988463E-2,"Revisión evaluaciones.,Revisión evaluaciones sobre temas socializados."]
[177,"2015-07-28","14:20:00","Area de biotecnologia","AREA DE BIOTECNOLOGÍA","OTROS","PERSONAL","Revisión ventiladores mecanicos.","MEDIA ","Se realiza revisión de dos ventiladores mecanicos los cuales se encuentran disfuncionales.","2015-07-28","16:30:00",9.0277777781011537E-2,"Revisión ventiladores mecanicos.,Se realiza revisión de dos ventiladores mecanicos los cuales se encuentran disfuncionales."]
[178,"2015-07-28","16:30:00","Area de biotecnologia","AREA DE BIOTECNOLOGÍA","OTROS","PERSONAL","Atención a proveedor externo.","MEDIA ","Se realiza atención a representante de J.M.","2015-07-28","17:30:00",4.1666666664241347E-2,"Atención a proveedor externo.,Se realiza atención a representante de J.M."]
[179,"2015-07-28","17:30:00","Área de Cirugía","CIRUGÍA","MONITOR SIGNOS VITALES","TELEFÓNICO","Revisión monitor de signos vitales.","MEDIA ","Se efectua revisión de dos monitores de signos vitales debido a que el conector del pulsoximetro se encuentra dentro del equipo por mala manipulación, se realizan ajustes quedando en perfectas condiciones de uso.","2015-07-28","18:30:00",4.1666666671517305E-2,"Revisión monitor de signos vitales.,Se efectua revisión de dos monitores de signos vitales debido a que el conector del pulsoximetro se encuentra dentro del equipo por mala manipulación, se realizan ajustes quedando en perfectas condiciones de uso."]
[180,"2015-07-28","18:40:00","Area de biotecnologia","AREA DE BIOTECNOLOGÍA","OTROS","PERSONAL","Socialización buen uso de equipos médicos.","MEDIA ","Se realiza socialización sobre el buen uso de equipos médicos al area de cirugía.","2015-07-28","19:40:00",4.1666666664241347E-2,"Socialización buen uso de equipos médicos.,Se realiza socialización sobre el buen uso de equipos médicos al area de cirugía."]
[181,"2015-07-29","07:00:00","Area de biotecnologia","AREA DE BIOTECNOLOGÍA","OTROS","PERSONAL","Verificación disponibilidad ventiladores mecanicos. ","MEDIA ","Se verifica disponibilidad de ventiladores mécanicos.","2015-07-29","07:15:00",{"$f":"((K192+L192)-(B192+C192))","v":1.0416666671517305E-2},{"$f":"H192&\",\"&J192","v":"Verificación disponibilidad ventiladores mecanicos. ,Se verifica disponibilidad de ventiladores mécanicos."}]
[182,"2015-07-29","07:15:00","Area de biotecnologia","AREA DE BIOTECNOLOGÍA","OTROS","PERSONAL","Socialización guias de reacción inmediata.","MEDIA ","Se continua socializando las guias de reacción inmediata.","2015-07-29","08:30:00",5.2083333328482695E-2,"Socialización guias de reacción inmediata.,Se continua socializando las guias de reacción inmediata."]
[183,"2015-07-29","08:30:00","Area de biotecnologia","AREA DE BIOTECNOLOGÍA","OTROS","PERSONAL","Solicitud cotizaciones.","MEDIA ","Se solicitan cotizaciones pendientes.","2015-07-29","09:00:00",2.0833333335758653E-2,"Solicitud cotizaciones.,Se solicitan cotizaciones pendientes."]
[184,"2015-07-29","09:00:00","Area de biotecnologia","AREA DE BIOTECNOLOGÍA","OTROS","PERSONAL","Revisión accesorios.","MEDIA ","Se realiza una revisión de accesorios dados de baja.","2015-07-29","10:00:00",4.1666666664241347E-2,"Revisión accesorios.,Se realiza una revisión de accesorios dados de baja."]
[185,"2015-07-29","10:00:00","Area de biotecnologia","AREA DE BIOTECNOLOGÍA","OTROS","PERSONAL","Socialización guias de reacción inmediata.","MEDIA ","Se continua socializando las guias de reacción inmediata.","2015-07-29","10:40:00",2.7777777781011537E-2,"Socialización guias de reacción inmediata.,Se continua socializando las guias de reacción inmediata."]
[186,"2015-07-29","10:50:00","Area de biotecnologia","AREA DE BIOTECNOLOGÍA","OTROS","PERSONAL","Ejecución orden de compra y formato de adquisición ventilador mécanico.","ALTA ","Se realiza ejecución de la orden de compra y el formato de adquisición para ventiladores mécanicos.","2015-07-29","12:00:00",4.8611111109494232E-2,"Ejecución orden de compra y formato de adquisición ventilador mécanico.,Se realiza ejecución de la orden de compra y el formato de adquisición para ventiladores mécanicos."]
[187,"2015-07-29","12:00:00","Área de Hospitalización","HOSPITALIZACION2","ELECTROCARDIÓGRAFO","CORREO","Revisión electrocardiografo.","ALTA ","Se realiza revisión del electrocardiografo del area de hospitalización debido a que no esta tomando el electrocardiograma completo, se realiza chequeo y se evidencia que se encuentra descargado.","2015-07-29","12:40:00",2.7777777781011537E-2,"Revisión electrocardiografo.,Se realiza revisión del electrocardiografo del area de hospitalización debido a que no esta tomando el electrocardiograma completo, se realiza chequeo y se evidencia que se encuentra descargado."]
[188,"2015-07-29","13:30:00","Area de biotecnologia","AREA DE BIOTECNOLOGÍA","OTROS","PERSONAL","Socialización guias de reacción inmediata.","MEDIA ","Se continua socializando las guias de reacción inmediata.","2015-07-29","14:00:00",2.0833333335758653E-2,"Socialización guias de reacción inmediata.,Se continua socializando las guias de reacción inmediata."]
[189,"2015-07-29","14:00:00","Area de biotecnologia","AREA DE BIOTECNOLOGÍA","OTROS","PERSONAL","Consecución cable de poder.","MEDIA ","Se realiza consecución del cable de poder  del monitor de Admisiones ","2015-07-29","14:40:00",2.7777777773735579E-2,"Consecución cable de poder.,Se realiza consecución del cable de poder  del monitor de Admisiones "]
[190,"2015-07-29","14:40:00","Area de biotecnologia","AREA DE BIOTECNOLOGÍA","OTROS","PERSONAL","Atención proveedor externo.","MEDIA ","Se realiza atención a representante de ingenieria hospitalaria.","2015-07-29","15:30:00",3.4722222226264421E-2,"Atención proveedor externo.,Se realiza atención a representante de ingenieria hospitalaria."]
[191,"2015-07-29","15:40:00","Area de biotecnologia","AREA DE BIOTECNOLOGÍA","OTROS","PERSONAL","Socialización productos de desinfección.","MEDIA ","Se asiste a la socialización de los productos de desinfección.","2015-07-29","16:10:00",2.0833333328482695E-2,"Socialización productos de desinfección.,Se asiste a la socialización de los productos de desinfección."]
[192,"2015-07-29","16:40:00","Área de Hospitalización","HOSPITALIZACION2","TENSIÓMETRO","TELEFÓNICO","Revisión tensiometro.","MEDIA ","Se realiza revisión de un tensiometro del area de hospitalización debido a que se encuentra desajustado se realiza cheqeuo quedando en perfectas condiciones de uso.","2015-07-29","17:20:00",2.7777777773735579E-2,"Revisión tensiometro.,Se realiza revisión de un tensiometro del area de hospitalización debido a que se encuentra desajustado se realiza cheqeuo quedando en perfectas condiciones de uso."]
[193,"2015-07-29","17:20:00","Área de Hospitalización","HOSPITALIZACION-2","BOMBA DE INFUSIÓN","CORREO","Revisión bomba de infusion.","MEDIA ","Se realiza revisión de una bomba de infusión debido a que no enciende, se realiza chequeo y se verifica que se encuentra descargada, se devuelve en perfectas condiciones de uso de uso.","2015-07-29","17:40:00",1.3888888890505768E-2,"Revisión bomba de infusion.,Se realiza revisión de una bomba de infusión debido a que no enciende, se realiza chequeo y se verifica que se encuentra descargada, se devuelve en perfectas condiciones de uso de uso."]
[194,"2015-07-29","17:50:00","Area de biotecnologia","AREA DE BIOTECNOLOGÍA","OTROS","PERSONAL","Revisión evaluaciones.","MEDIA ","Se continua revisando las evaluaciones pendientes.","2015-07-29","18:50:00",4.1666666664241347E-2,"Revisión evaluaciones.,Se continua revisando las evaluaciones pendientes."]
[195,null,null,null,null,null,null,null,null,null,null,null,0,","]
[196]
[197]
[198]
[199]
[200]
[201]
[202]
[203]
[204]
[205]
[206]
[207,"2015-08-02","17:03:00",null,null,null,null,null,null,"2015-08-02","17:03:00"]
[208]
[209]
[210]
[211]
[212]
[213]
[214]
[215]
[216]
[217]
[218]
[219]
[220]
[221]
[222]
[223]
[224]
[225]
[226]
[227]
[228]
[229]
[230]
[231]
[232]
[233]
[234]
[235]
[236]
[237]
[238]
[239]
[240]
[241]
[242]
[243]
[244]
[245]
[246]
[247]
[248]
[249]
[250]
[251]
[252]
[253]
[254]
[255]
[256]
[257]
[258]
[259]
[260]
[261]
[262]
[263]
[264]
[265]
[266]
[267]
[268]
[269]
[270]
[271]
[272]
[273]
[274]
[275]
[276]
[277]
[278]
[279]
[280]
[281]
[282]
[null,null,null,null,null,null,null,null,"X","2015-03-02","15:21:00"]

{"sheet":"Hoja1","index":1,"n_rows":3,"n_cols":1,"rows_kept":3,"cut":false,"hidden":true,"merged":[]}
["ALTA "]
["MEDIA "]
["BAJA"]

{"sheet":"ESTADISTICAS1","index":2,"n_rows":36,"n_cols":10,"rows_kept":36,"cut":false,"hidden":false,"merged":[[0,0,0,4],[34,1,34,3],[33,4,34,4],[33,0,34,0]]}
["Número de Incidentes en el mes"]
["FECHA","CORREO","TELEFÓNICO","PERSONAL","Total"]
["2015-07-01",{"$f":"COUNTIFS(REGISTRO!$B$3:$B$294,A3,REGISTRO!$G$3:$G$294,\"CORREO\")","v":1},{"$f":"COUNTIFS(REGISTRO!$B$3:$B$294,A3,REGISTRO!$G$3:$G$294,\"TELEFÓNICO\")","v":1},{"$f":"COUNTIFS(REGISTRO!$B$3:$B$294,A3,REGISTRO!$G$3:$G$294,\"PERSONAL\")","v":4},{"$f":"SUM(B3:D3)","v":6},null,"Etiquetas de fila","Suma de CORREO","Suma de TELEFÓNICO","Suma de PERSONAL"]
["2015-07-02",{"$f":"COUNTIFS(REGISTRO!$B$3:$B$294,A4,REGISTRO!$G$3:$G$294,\"CORREO\")","v":0},{"$f":"COUNTIFS(REGISTRO!$B$3:$B$294,A4,REGISTRO!$G$3:$G$294,\"TELEFÓNICO\")","v":2},{"$f":"COUNTIFS(REGISTRO!$B$3:$B$294,A4,REGISTRO!$G$3:$G$294,\"PERSONAL\")","v":7},{"$f":"SUM(B4:D4)","v":9},null,"2015-07-01",1,1,4]
["2015-07-03",{"$f":"COUNTIFS(REGISTRO!$B$3:$B$294,A5,REGISTRO!$G$3:$G$294,\"CORREO\")","v":0},{"$f":"COUNTIFS(REGISTRO!$B$3:$B$294,A5,REGISTRO!$G$3:$G$294,\"TELEFÓNICO\")","v":1},{"$f":"COUNTIFS(REGISTRO!$B$3:$B$294,A5,REGISTRO!$G$3:$G$294,\"PERSONAL\")","v":9},10,null,"2015-07-02",0,2,7]
["2015-07-04",{"$f":"COUNTIFS(REGISTRO!$B$3:$B$294,A6,REGISTRO!$G$3:$G$294,\"CORREO\")","v":0},{"$f":"COUNTIFS(REGISTRO!$B$3:$B$294,A6,REGISTRO!$G$3:$G$294,\"TELEFÓNICO\")","v":0},{"$f":"COUNTIFS(REGISTRO!$B$3:$B$294,A6,REGISTRO!$G$3:$G$294,\"PERSONAL\")","v":3},3,null,"2015-07-03",0,1,9]
["2015-07-05",{"$f":"COUNTIFS(REGISTRO!$B$3:$B$294,A7,REGISTRO!$G$3:$G$294,\"CORREO\")","v":0},{"$f":"COUNTIFS(REGISTRO!$B$3:$B$294,A7,REGISTRO!$G$3:$G$294,\"TELEFÓNICO\")","v":0},{"$f":"COUNTIFS(REGISTRO!$B$3:$B$294,A7,REGISTRO!$G$3:$G$294,\"PERSONAL\")","v":1},1,null,"2015-07-04",0,0,3]
["2015-07-06",{"$f":"COUNTIFS(REGISTRO!$B$3:$B$294,A8,REGISTRO!$G$3:$G$294,\"CORREO\")","v":0},{"$f":"COUNTIFS(REGISTRO!$B$3:$B$294,A8,REGISTRO!$G$3:$G$294,\"TELEFÓNICO\")","v":0},{"$f":"COUNTIFS(REGISTRO!$B$3:$B$294,A8,REGISTRO!$G$3:$G$294,\"PERSONAL\")","v":7},7,null,"2015-07-05",0,0,1]
["2015-07-07",{"$f":"COUNTIFS(REGISTRO!$B$3:$B$294,A9,REGISTRO!$G$3:$G$294,\"CORREO\")","v":0},{"$f":"COUNTIFS(REGISTRO!$B$3:$B$294,A9,REGISTRO!$G$3:$G$294,\"TELEFÓNICO\")","v":0},{"$f":"COUNTIFS(REGISTRO!$B$3:$B$294,A9,REGISTRO!$G$3:$G$294,\"PERSONAL\")","v":5},5,null,"2015-07-06",0,0,7]
["2015-07-08",{"$f":"COUNTIFS(REGISTRO!$B$3:$B$294,A10,REGISTRO!$G$3:$G$294,\"CORREO\")","v":0},{"$f":"COUNTIFS(REGISTRO!$B$3:$B$294,A10,REGISTRO!$G$3:$G$294,\"TELEFÓNICO\")","v":2},{"$f":"COUNTIFS(REGISTRO!$B$3:$B$294,A10,REGISTRO!$G$3:$G$294,\"PERSONAL\")","v":5},7,null,"2015-07-07",0,0,5]
["2015-07-09",{"$f":"COUNTIFS(REGISTRO!$B$3:$B$294,A11,REGISTRO!$G$3:$G$294,\"CORREO\")","v":1},{"$f":"COUNTIFS(REGISTRO!$B$3:$B$294,A11,REGISTRO!$G$3:$G$294,\"TELEFÓNICO\")","v":3},{"$f":"COUNTIFS(REGISTRO!$B$3:$B$294,A11,REGISTRO!$G$3:$G$294,\"PERSONAL\")","v":10},14,null,"2015-07-08",0,2,5]
["2015-07-10",{"$f":"COUNTIFS(REGISTRO!$B$3:$B$294,A12,REGISTRO!$G$3:$G$294,\"CORREO\")","v":0},{"$f":"COUNTIFS(REGISTRO!$B$3:$B$294,A12,REGISTRO!$G$3:$G$294,\"TELEFÓNICO\")","v":3},{"$f":"COUNTIFS(REGISTRO!$B$3:$B$294,A12,REGISTRO!$G$3:$G$294,\"PERSONAL\")","v":5},8,null,"2015-07-09",1,3,10]
["2015-07-11",{"$f":"COUNTIFS(REGISTRO!$B$3:$B$294,A13,REGISTRO!$G$3:$G$294,\"CORREO\")","v":0},{"$f":"COUNTIFS(REGISTRO!$B$3:$B$294,A13,REGISTRO!$G$3:$G$294,\"TELEFÓNICO\")","v":0},{"$f":"COUNTIFS(REGISTRO!$B$3:$B$294,A13,REGISTRO!$G$3:$G$294,\"PERSONAL\")","v":1},1,null,"2015-07-10",0,3,5]
["2015-07-12",{"$f":"COUNTIFS(REGISTRO!$B$3:$B$294,A14,REGISTRO!$G$3:$G$294,\"CORREO\")","v":0},{"$f":"COUNTIFS(REGISTRO!$B$3:$B$294,A14,REGISTRO!$G$3:$G$294,\"TELEFÓNICO\")","v":0},{"$f":"COUNTIFS(REGISTRO!$B$3:$B$294,A14,REGISTRO!$G$3:$G$294,\"PERSONAL\")","v":0},0,null,"2015-07-11",0,0,1]
["2015-07-13",{"$f":"COUNTIFS(REGISTRO!$B$3:$B$294,A15,REGISTRO!$G$3:$G$294,\"CORREO\")","v":0},{"$f":"COUNTIFS(REGISTRO!$B$3:$B$294,A15,REGISTRO!$G$3:$G$294,\"TELEFÓNICO\")","v":1},{"$f":"COUNTIFS(REGISTRO!$B$3:$B$294,A15,REGISTRO!$G$3:$G$294,\"PERSONAL\")","v":10},11,null,"2015-07-12",0,0,0]
["2015-07-14",{"$f":"COUNTIFS(REGISTRO!$B$3:$B$294,A16,REGISTRO!$G$3:$G$294,\"CORREO\")","v":0},{"$f":"COUNTIFS(REGISTRO!$B$3:$B$294,A16,REGISTRO!$G$3:$G$294,\"TELEFÓNICO\")","v":4},{"$f":"COUNTIFS(REGISTRO!$B$3:$B$294,A16,REGISTRO!$G$3:$G$294,\"PERSONAL\")","v":5},9,null,"2015-07-13",0,1,10]
["2015-07-15",{"$f":"COUNTIFS(REGISTRO!$B$3:$B$294,A17,REGISTRO!$G$3:$G$294,\"CORREO\")","v":0},{"$f":"COUNTIFS(REGISTRO!$B$3:$B$294,A17,REGISTRO!$G$3:$G$294,\"TELEFÓNICO\")","v":2},{"$f":"COUNTIFS(REGISTRO!$B$3:$B$294,A17,REGISTRO!$G$3:$G$294,\"PERSONAL\")","v":12},14,null,"2015-07-14",0,4,5]
["2015-07-16",{"$f":"COUNTIFS(REGISTRO!$B$3:$B$294,A18,REGISTRO!$G$3:$G$294,\"CORREO\")","v":0},{"$f":"COUNTIFS(REGISTRO!$B$3:$B$294,A18,REGISTRO!$G$3:$G$294,\"TELEFÓNICO\")","v":1},{"$f":"COUNTIFS(REGISTRO!$B$3:$B$294,A18,REGISTRO!$G$3:$G$294,\"PERSONAL\")","v":7},8,null,"2015-07-15",0,2,12]
["2015-07-17",{"$f":"COUNTIFS(REGISTRO!$B$3:$B$294,A19,REGISTRO!$G$3:$G$294,\"CORREO\")","v":0},{"$f":"COUNTIFS(REGISTRO!$B$3:$B$294,A19,REGISTRO!$G$3:$G$294,\"TELEFÓNICO\")","v":2},{"$f":"COUNTIFS(REGISTRO!$B$3:$B$294,A19,REGISTRO!$G$3:$G$294,\"PERSONAL\")","v":8},10,null,"2015-07-16",0,1,7]
["2015-07-18",{"$f":"COUNTIFS(REGISTRO!$B$3:$B$294,A20,REGISTRO!$G$3:$G$294,\"CORREO\")","v":0},{"$f":"COUNTIFS(REGISTRO!$B$3:$B$294,A20,REGISTRO!$G$3:$G$294,\"TELEFÓNICO\")","v":0},{"$f":"COUNTIFS(REGISTRO!$B$3:$B$294,A20,REGISTRO!$G$3:$G$294,\"PERSONAL\")","v":0},0,null,"2015-07-17",0,2,8]
["2015-07-19",{"$f":"COUNTIFS(REGISTRO!$B$3:$B$294,A21,REGISTRO!$G$3:$G$294,\"CORREO\")","v":0},{"$f":"COUNTIFS(REGISTRO!$B$3:$B$294,A21,REGISTRO!$G$3:$G$294,\"TELEFÓNICO\")","v":0},{"$f":"COUNTIFS(REGISTRO!$B$3:$B$294,A21,REGISTRO!$G$3:$G$294,\"PERSONAL\")","v":0},0,null,"2015-07-18",0,0,0]
["2015-07-20",{"$f":"COUNTIFS(REGISTRO!$B$3:$B$294,A22,REGISTRO!$G$3:$G$294,\"CORREO\")","v":0},{"$f":"COUNTIFS(REGISTRO!$B$3:$B$294,A22,REGISTRO!$G$3:$G$294,\"TELEFÓNICO\")","v":0},{"$f":"COUNTIFS(REGISTRO!$B$3:$B$294,A22,REGISTRO!$G$3:$G$294,\"PERSONAL\")","v":0},0,null,"2015-07-19",0,0,0]
["2015-07-21",{"$f":"COUNTIFS(REGISTRO!$B$3:$B$294,A23,REGISTRO!$G$3:$G$294,\"CORREO\")","v":0},{"$f":"COUNTIFS(REGISTRO!$B$3:$B$294,A23,REGISTRO!$G$3:$G$294,\"TELEFÓNICO\")","v":1},{"$f":"COUNTIFS(REGISTRO!$B$3:$B$294,A23,REGISTRO!$G$3:$G$294,\"PERSONAL\")","v":8},9,null,"2015-07-20",0,0,0]
["2015-07-22",{"$f":"COUNTIFS(REGISTRO!$B$3:$B$294,A24,REGISTRO!$G$3:$G$294,\"CORREO\")","v":0},{"$f":"COUNTIFS(REGISTRO!$B$3:$B$294,A24,REGISTRO!$G$3:$G$294,\"TELEFÓNICO\")","v":1},{"$f":"COUNTIFS(REGISTRO!$B$3:$B$294,A24,REGISTRO!$G$3:$G$294,\"PERSONAL\")","v":10},11,null,"2015-07-21",0,1,8]
["2015-07-23",{"$f":"COUNTIFS(REGISTRO!$B$3:$B$294,A25,REGISTRO!$G$3:$G$294,\"CORREO\")","v":0},{"$f":"COUNTIFS(REGISTRO!$B$3:$B$294,A25,REGISTRO!$G$3:$G$294,\"TELEFÓNICO\")","v":1},{"$f":"COUNTIFS(REGISTRO!$B$3:$B$294,A25,REGISTRO!$G$3:$G$294,\"PERSONAL\")","v":9},10,null,"2015-07-22",0,1,10]
["2015-07-24",{"$f":"COUNTIFS(REGISTRO!$B$3:$B$294,A26,REGISTRO!$G$3:$G$294,\"CORREO\")","v":0},{"$f":"COUNTIFS(REGISTRO!$B$3:$B$294,A26,REGISTRO!$G$3:$G$294,\"TELEFÓNICO\")","v":5},{"$f":"COUNTIFS(REGISTRO!$B$3:$B$294,A26,REGISTRO!$G$3:$G$294,\"PERSONAL\")","v":9},14,null,"2015-07-23",0,1,9]
["2015-07-25",{"$f":"COUNTIFS(REGISTRO!$B$3:$B$294,A27,REGISTRO!$G$3:$G$294,\"CORREO\")","v":0},{"$f":"COUNTIFS(REGISTRO!$B$3:$B$294,A27,REGISTRO!$G$3:$G$294,\"TELEFÓNICO\")","v":1},{"$f":"COUNTIFS(REGISTRO!$B$3:$B$294,A27,REGISTRO!$G$3:$G$294,\"PERSONAL\")","v":1},2,null,"2015-07-24",0,5,9]
["2015-07-26",{"$f":"COUNTIFS(REGISTRO!$B$3:$B$294,A28,REGISTRO!$G$3:$G$294,\"CORREO\")","v":0},{"$f":"COUNTIFS(REGISTRO!$B$3:$B$294,A28,REGISTRO!$G$3:$G$294,\"TELEFÓNICO\")","v":0},{"$f":"COUNTIFS(REGISTRO!$B$3:$B$294,A28,REGISTRO!$G$3:$G$294,\"PERSONAL\")","v":0},0,null,"2015-07-25",0,1,1]
["2015-07-27",{"$f":"COUNTIFS(REGISTRO!$B$3:$B$294,A29,REGISTRO!$G$3:$G$294,\"CORREO\")","v":1},{"$f":"COUNTIFS(REGISTRO!$B$3:$B$294,A29,REGISTRO!$G$3:$G$294,\"TELEFÓNICO\")","v":2},{"$f":"COUNTIFS(REGISTRO!$B$3:$B$294,A29,REGISTRO!$G$3:$G$294,\"PERSONAL\")","v":8},11,null,"2015-07-26",0,0,0]
["2015-07-28",{"$f":"COUNTIFS(REGISTRO!$B$3:$B$294,A30,REGISTRO!$G$3:$G$294,\"CORREO\")","v":0},{"$f":"COUNTIFS(REGISTRO!$B$3:$B$294,A30,REGISTRO!$G$3:$G$294,\"TELEFÓNICO\")","v":2},{"$f":"COUNTIFS(REGISTRO!$B$3:$B$294,A30,REGISTRO!$G$3:$G$294,\"PERSONAL\")","v":7},9,null,"2015-07-27",1,2,8]
["2015-07-29",{"$f":"COUNTIFS(REGISTRO!$B$3:$B$294,A31,REGISTRO!$G$3:$G$294,\"CORREO\")","v":2},{"$f":"COUNTIFS(REGISTRO!$B$3:$B$294,A31,REGISTRO!$G$3:$G$294,\"TELEFÓNICO\")","v":1},{"$f":"COUNTIFS(REGISTRO!$B$3:$B$294,A31,REGISTRO!$G$3:$G$294,\"PERSONAL\")","v":11},14,null,"2015-07-28",0,2,7]
["2015-07-30",{"$f":"COUNTIFS(REGISTRO!$B$3:$B$294,A32,REGISTRO!$G$3:$G$294,\"CORREO\")","v":0},{"$f":"COUNTIFS(REGISTRO!$B$3:$B$294,A32,REGISTRO!$G$3:$G$294,\"TELEFÓNICO\")","v":0},{"$f":"COUNTIFS(REGISTRO!$B$3:$B$294,A32,REGISTRO!$G$3:$G$294,\"PERSONAL\")","v":0},0,null,"2015-07-29",2,1,11]
["2015-07-31",{"$f":"COUNTIFS(REGISTRO!$B$3:$B$294,A33,REGISTRO!$G$3:$G$294,\"CORREO\")","v":0},{"$f":"COUNTIFS(REGISTRO!$B$3:$B$294,A33,REGISTRO!$G$3:$G$294,\"TELEFÓNICO\")","v":0},{"$f":"COUNTIFS(REGISTRO!$B$3:$B$294,A33,REGISTRO!$G$3:$G$294,\"PERSONAL\")","v":0},0,null,"2015-07-30",0,0,0]
["TOTAL",{"$f":"SUM(B3:B32)","v":5},{"$f":"SUM(C3:C32)","v":36},{"$f":"SUM(D3:D32)","v":162},{"$f":"SUM(E3:E32)","v":203},null,"2015-07-31",0,0,0]
[null,{"$f":"SUM(B34:D34)","v":203},null,null,null,null,"Total general",5,36,162]
["PORCENTAJE",{"$f":"B34/$B$35","v":2.4630541871921183E-2},{"$f":"C34/$B$35","v":0.17733990147783252},{"$f":"D34/$B$35","v":0.79802955665024633},{"$f":"SUM(B36:D36)","v":1}]

{"sheet":"ESTADISTICAS2","index":3,"n_rows":114,"n_cols":12,"rows_kept":114,"cut":false,"hidden":false,"merged":[[0,0,0,2],[32,0,32,2]]}
["ESTADÍSTICAS SEGÚN QUIEN REALIZA LA INTERVENSIÓN",null,null,null,"Etiquetas de fila","Suma de TOTAL ",null,null,null,null,"Etiquetas de fila","Suma de PORCENTAJE"]
["PORCENTAJE","INTERVENSIÓN REALIZADA POR","TOTAL ",null,"ALVECOM",0,null,null,null,null,"ALVECOM",{"$error":"#DIV/0!"}]
[{"$f":"C3/$C$28","v":{"$error":"#DIV/0!"}},"ÁREA DE BIOTECNOLOGÍA",{"$f":"COUNTIF(REGISTRO!$O$3:$O$293,B3)","v":0},null,"ÁREA DE BIOTECNOLOGÍA",0,null,null,null,null,"ÁREA DE BIOTECNOLOGÍA",{"$error":"#DIV/0!"}]
[{"$f":"C4/$C$28","v":{"$error":"#DIV/0!"}},"ALVECOM",{"$f":"COUNTIF(REGISTRO!$O$3:$O$293,B4)","v":0},null,"ASPROMÉDICA",0,null,null,null,null,"ASPROMÉDICA",{"$error":"#DIV/0!"}]
[{"$error":"#DIV/0!"},"ASPROMÉDICA",{"$f":"COUNTIF(REGISTRO!$O$3:$O$293,B5)","v":0},null,"BOSTON CIENTIFIC",0,null,null,null,null,"BOSTON CIENTIFIC",{"$error":"#DIV/0!"}]
[{"$error":"#DIV/0!"},"BOSTON CIENTIFIC",{"$f":"COUNTIF(REGISTRO!$O$3:$O$293,B6)","v":0},null,"COMERCIAL MÉDICA",0,null,null,null,null,"COMERCIAL MÉDICA",{"$error":"#DIV/0!"}]
[{"$error":"#DIV/0!"},"COMERCIAL MÉDICA",{"$f":"COUNTIF(REGISTRO!$O$3:$O$293,B7)","v":0},null,"DISCLINICA",0,null,null,null,null,"DISCLINICA",{"$error":"#DIV/0!"}]
[{"$error":"#DIV/0!"},"DISCLINICA",{"$f":"COUNTIF(REGISTRO!$O$3:$O$293,B8)","v":0},null,"DOMETAL",0,null,null,null,null,"DOMETAL",{"$error":"#DIV/0!"}]
[{"$error":"#DIV/0!"},"DOMETAL",{"$f":"COUNTIF(REGISTRO!$O$3:$O$293,B9)","v":0},null,"GBARCO",0,null,null,null,null,"GBARCO",{"$error":"#DIV/0!"}]
[{"$error":"#DIV/0!"},"GBARCO",{"$f":"COUNTIF(REGISTRO!$O$3:$O$293,B10)","v":0},null,"GEMEDCO",0,null,null,null,null,"GEMEDCO",{"$error":"#DIV/0!"}]
[{"$error":"#DIV/0!"},"GEMEDCO",{"$f":"COUNTIF(REGISTRO!$O$3:$O$293,B11)","v":0},null,"GERMAR MEDICAL",0,null,null,null,null,"GERMAR MEDICAL",{"$error":"#DIV/0!"}]
[{"$error":"#DIV/0!"},"GERMAR MEDICAL",{"$f":"COUNTIF(REGISTRO!$O$3:$O$293,B12)","v":0},null,"GLOBAL TECNOLOGY",0,null,null,null,null,"GLOBAL TECNOLOGY",{"$error":"#DIV/0!"}]
[{"$error":"#DIV/0!"},"GLOBAL TECNOLOGY",{"$f":"COUNTIF(REGISTRO!$O$3:$O$293,B13)","v":0},null,"HOSPIRA",0,null,null,null,null,"HOSPIRA",{"$error":"#DIV/0!"}]
[{"$error":"#DIV/0!"},"HOSPIRA",{"$f":"COUNTIF(REGISTRO!$O$3:$O$293,B14)","v":0},null,"HOSPIRRENTA",0,null,null,null,null,"HOSPIRRENTA",{"$error":"#DIV/0!"}]
[{"$error":"#DIV/0!"},"HOSPIRRENTA",{"$f":"COUNTIF(REGISTRO!$O$3:$O$293,B15)","v":0},null,"INGENIERÍA ELECTROMECÁNICA",0,null,null,null,null,"INGENIERÍA ELECTROMECÁNICA",{"$error":"#DIV/0!"}]
[{"$error":"#DIV/0!"},"INGENIERÍA ELECTROMECÁNICA",{"$f":"COUNTIF(REGISTRO!$O$3:$O$293,B16)","v":0},null,"INSAK",0,null,null,null,null,"INSAK",{"$error":"#DIV/0!"}]
[{"$error":"#DIV/0!"},"INSAK",{"$f":"COUNTIF(REGISTRO!$O$3:$O$293,B17)","v":0},null,"LINDE",0,null,null,null,null,"LINDE",{"$error":"#DIV/0!"}]
[{"$error":"#DIV/0!"},"LINDE",{"$f":"COUNTIF(REGISTRO!$O$3:$O$293,B18)","v":0},null,"MANTENIMIENTO",0,null,null,null,null,"MANTENIMIENTO",{"$error":"#DIV/0!"}]
[{"$error":"#DIV/0!"},"MANTENIMIENTO",{"$f":"COUNTIF(REGISTRO!$O$3:$O$293,B19)","v":0},null,"MEDTRONIC",0,null,null,null,null,"MEDTRONIC",{"$error":"#DIV/0!"}]
[{"$error":"#DIV/0!"},"MEDTRONIC",{"$f":"COUNTIF(REGISTRO!$O$3:$O$293,B20)","v":0},null,"PHILIPS",0,null,null,null,null,"PHILIPS",{"$error":"#DIV/0!"}]
[{"$error":"#DIV/0!"},"PHILIPS",{"$f":"COUNTIF(REGISTRO!$O$3:$O$293,B21)","v":0},null,"PROVEEDORES VARIOS",0,null,null,null,null,"PROVEEDORES VARIOS",{"$error":"#DIV/0!"}]
[{"$error":"#DIV/0!"},"PROVEEDORES VARIOS",{"$f":"COUNTIF(REGISTRO!$O$3:$O$293,B22)","v":0},null,"QUIRUGIL",0,null,null,null,null,"QUIRUGIL",{"$error":"#DIV/0!"}]
[{"$error":"#DIV/0!"},"QUIRUGIL",{"$f":"COUNTIF(REGISTRO!$O$3:$O$293,B23)","v":0},null,"SIEMENS",0,null,null,null,null,"SIEMENS",{"$error":"#DIV/0!"}]
[{"$error":"#DIV/0!"},"SIEMENS",{"$f":"COUNTIF(REGISTRO!$O$3:$O$293,B24)","v":0},null,"SPEEDTRONICS",0,null,null,null,null,"SPEEDTRONICS",{"$error":"#DIV/0!"}]
[{"$error":"#DIV/0!"},"SPEEDTRONICS",{"$f":"COUNTIF(REGISTRO!$O$3:$O$293,B25)","v":0},null,"UPS SERVICIOS",0,null,null,null,null,"UPS SERVICIOS",{"$error":"#DIV/0!"}]
[{"$error":"#DIV/0!"},"UPS SERVICIOS",{"$f":"COUNTIF(REGISTRO!$O$3:$O$293,B26)","v":0},null,"(en blanco)",0,null,null,null,null,"(en blanco)",{"$error":"#DIV/0!"}]
[{"$error":"#DIV/0!"},null,{"$f":"COUNTIF(REGISTRO!$O$3:$O$293,B27)","v":0},null,"Total general",0,null,null,null,null,"Total general",{"$error":"#DIV/0!"}]
[{"$f":"SUM(A3:A27)","v":{"$error":"#DIV/0!"}},"TOTAL",{"$f":"SUM(C3:C27)","v":0}]
[]
[]
[]
[]
["ESTADÍSCAS SEGÚN RECURSOS O EQUIPOS BIOMÉDICOS INTERVENIDOS",null,null,null,"Etiquetas de fila","Suma de TOTAL FEBRERO 2014",null,null,"Etiquetas de fila","Suma de PORCENTAJE"]
["PORCENTAJE","RECURSO INTERVENIDO","TOTAL FEBRERO 2014",null,"ACCESORIOS",0,null,null,"ACCESORIOS",{"$error":"#DIV/0!"}]
[{"$f":"C35/$C$93","v":9.852216748768473E-3},"ASPIRADOR",{"$f":"COUNTIF(REGISTRO!$F$3:$F$294,B35)","v":2},null,"ANGIOGRAFO",0,null,null,"ANGIOGRAFO",{"$error":"#DIV/0!"}]
[{"$f":"C36/$C$93","v":1.4778325123152709E-2},"AUTOCLAVE",{"$f":"COUNTIF(REGISTRO!$F$3:$F$294,B36)","v":3},null,"ASPIRADOR",0,null,null,"ASPIRADOR",{"$error":"#DIV/0!"}]
[{"$f":"C37/$C$93","v":0},"BALANZA",{"$f":"COUNTIF(REGISTRO!$F$3:$F$294,B37)","v":0},null,"AUTOCLAVE",0,null,null,"AUTOCLAVE",{"$error":"#DIV/0!"}]
[0,"BAÑO MARÍA",{"$f":"COUNTIF(REGISTRO!$F$3:$F$294,B38)","v":0},null,"BALANZA",0,null,null,"BALANZA",{"$error":"#DIV/0!"}]
[9.852216748768473E-3,"BOMBA DE INFUSIÓN",{"$f":"COUNTIF(REGISTRO!$F$3:$F$294,B39)","v":2},null,"BAÑO MARÍA",0,null,null,"BAÑO MARÍA",{"$error":"#DIV/0!"}]
[0,"CALENTADOR TERMOSTÁTICO",{"$f":"COUNTIF(REGISTRO!$F$3:$F$294,B40)","v":0},null,"BOMBA DE INFUSIÓN",0,null,null,"BOMBA DE INFUSIÓN",{"$error":"#DIV/0!"}]
[3.4482758620689655E-2,"CAMA ELÉCTRICA",{"$f":"COUNTIF(REGISTRO!$F$3:$F$294,B41)","v":7},null,"CALENTADOR TERMOSTÁTICO",0,null,null,"CALENTADOR TERMOSTÁTICO",{"$error":"#DIV/0!"}]
[0,"CAPNÓGRAFO",{"$f":"COUNTIF(REGISTRO!$F$3:$F$294,B42)","v":0},null,"CAMA ELÉCTRICA",0,null,null,"CAMA ELÉCTRICA",{"$error":"#DIV/0!"}]
[0,"CENTRÍFUGA",{"$f":"COUNTIF(REGISTRO!$F$3:$F$294,B43)","v":0},null,"CAPNÓGRAFO",0,null,null,"CAPNÓGRAFO",{"$error":"#DIV/0!"}]
[0,"CONGELADOR",{"$f":"COUNTIF(REGISTRO!$F$3:$F$294,B44)","v":0},null,"CENTRÍFUGA",0,null,null,"CENTRÍFUGA",{"$error":"#DIV/0!"}]
[0,"DESFRIBILADOR",{"$f":"COUNTIF(REGISTRO!$F$3:$F$294,B45)","v":0},null,"CONGELADOR",0,null,null,"CONGELADOR",{"$error":"#DIV/0!"}]
[4.9261083743842365E-3,"ECOCARDIÓGRAFO",{"$f":"COUNTIF(REGISTRO!$F$3:$F$294,B46)","v":1},null,"DESFRIBILADOR",0,null,null,"DESFRIBILADOR",{"$error":"#DIV/0!"}]
[0,"ELECTROBISTURÍ",{"$f":"COUNTIF(REGISTRO!$F$3:$F$294,B47)","v":0},null,"ECOCARDIÓGRAFO",0,null,null,"ECOCARDIÓGRAFO",{"$error":"#DIV/0!"}]
[1.4778325123152709E-2,"ELECTROCARDIÓGRAFO",{"$f":"COUNTIF(REGISTRO!$F$3:$F$294,B48)","v":3},null,"ELECTROBISTURÍ",0,null,null,"ELECTROBISTURÍ",{"$error":"#DIV/0!"}]
[0,"EQUIPO DE ULTRASONIDO",{"$f":"COUNTIF(REGISTRO!$F$3:$F$294,B49)","v":0},null,"ELECTROCARDIÓGRAFO",0,null,null,"ELECTROCARDIÓGRAFO",{"$error":"#DIV/0!"}]
[0,"FACOEMULSIFICADOR",{"$f":"COUNTIF(REGISTRO!$F$3:$F$294,B50)","v":0},null,"EQUIPO DE ULTRASONIDO",0,null,null,"EQUIPO DE ULTRASONIDO",{"$error":"#DIV/0!"}]
[0,"FONENDO",{"$f":"COUNTIF(REGISTRO!$F$3:$F$294,B51)","v":0},null,"FACOEMULSIFICADOR",0,null,null,"FACOEMULSIFICADOR",{"$error":"#DIV/0!"}]
[0,"FONENDOSCÓPIO",{"$f":"COUNTIF(REGISTRO!$F$3:$F$294,B52)","v":0},null,"FONENDO",0,null,null,"FONENDO",{"$error":"#DIV/0!"}]
[0,"FRONTO LUZ",{"$f":"COUNTIF(REGISTRO!$F$3:$F$294,B53)","v":0},null,"FONENDOSCÓPIO",0,null,null,"FONENDOSCÓPIO",{"$error":"#DIV/0!"}]
[0,"FUENTE DE LUZ",{"$f":"COUNTIF(REGISTRO!$F$3:$F$294,B54)","v":0},null,"FRONTO LUZ",0,null,null,"FRONTO LUZ",{"$error":"#DIV/0!"}]
[9.852216748768473E-3,"GLUCÓMETRO",{"$f":"COUNTIF(REGISTRO!$F$3:$F$294,B55)","v":2},null,"FUENTE DE LUZ",0,null,null,"FUENTE DE LUZ",{"$error":"#DIV/0!"}]
[4.9261083743842365E-3,"HOLTER",{"$f":"COUNTIF(REGISTRO!$F$3:$F$294,B56)","v":1},null,"GLUCÓMETRO",0,null,null,"GLUCÓMETRO",{"$error":"#DIV/0!"}]
[0,"INCUBADORA",{"$f":"COUNTIF(REGISTRO!$F$3:$F$294,B57)","v":0},null,"HOLTER",0,null,null,"HOLTER",{"$error":"#DIV/0!"}]
[0,"LÁMPARA CIELÍTICA",{"$f":"COUNTIF(REGISTRO!$F$3:$F$294,B58)","v":0},null,"INCUBADORA",0,null,null,"INCUBADORA",{"$error":"#DIV/0!"}]
[0,"LÁMPARA DE HEMOCLASIFICACIÓN ",{"$f":"COUNTIF(REGISTRO!$F$3:$F$294,B59)","v":0},null,"LÁMPARA CIELÍTICA",0,null,null,"LÁMPARA CIELÍTICA",{"$error":"#DIV/0!"}]
[0,"LÁMPARA DE HENDIDURA",{"$f":"COUNTIF(REGISTRO!$F$3:$F$294,B60)","v":0},null,"LÁMPARA DE HEMOCLASIFICACIÓN ",0,null,null,"LÁMPARA DE HEMOCLASIFICACIÓN ",{"$error":"#DIV/0!"}]
[0,"LARINGOSCÓPIO",{"$f":"COUNTIF(REGISTRO!$F$3:$F$294,B61)","v":0},null,"LÁMPARA DE HENDIDURA",0,null,null,"LÁMPARA DE HENDIDURA",{"$error":"#DIV/0!"}]
[0,"MÁQUINA ANESTESIA",{"$f":"COUNTIF(REGISTRO!$F$3:$F$294,B62)","v":0},null,"LARINGOSCÓPIO",0,null,null,"LARINGOSCÓPIO",{"$error":"#DIV/0!"}]
[0,"MÁQUINA EXTRACORPÓREA",{"$f":"COUNTIF(REGISTRO!$F$3:$F$294,B63)","v":0},null,"MÁQUINA ANESTESIA",0,null,null,"MÁQUINA ANESTESIA",{"$error":"#DIV/0!"}]
[4.9261083743842365E-3,"MARCAPASO BICAMERAL TEMPORAL",{"$f":"COUNTIF(REGISTRO!$F$3:$F$294,B64)","v":1},null,"MÁQUINA EXTRACORPÓREA",0,null,null,"MÁQUINA EXTRACORPÓREA",{"$error":"#DIV/0!"}]
[0,"MESA CIRUGÍA",{"$f":"COUNTIF(REGISTRO!$F$3:$F$294,B65)","v":0},null,"MARCAPASO BICAMERAL TEMPORAL",0,null,null,"MARCAPASO BICAMERAL TEMPORAL",{"$error":"#DIV/0!"}]
[0,"MESA CIRUGÍA",{"$f":"COUNTIF(REGISTRO!$F$3:$F$294,B66)","v":0},null,"MESA CIRUGÍA",0,null,null,"MESA CIRUGÍA",{"$error":"#DIV/0!"}]
[4.9261083743842365E-3,"MICROSCOPIOS",{"$f":"COUNTIF(REGISTRO!$F$3:$F$294,B67)","v":1},null,"MICROSCOPIOS",0,null,null,"MICROSCOPIOS",{"$error":"#DIV/0!"}]
[6.4039408866995079E-2,"MONITOR SIGNOS VITALES",{"$f":"COUNTIF(REGISTRO!$F$3:$F$294,B68)","v":13},null,"MONITOR SIGNOS VITALES",0,null,null,"MONITOR SIGNOS VITALES",{"$error":"#DIV/0!"}]
[0,"NEGATOSCOPIO",{"$f":"COUNTIF(REGISTRO!$F$3:$F$294,B69)","v":0},null,"NEGATOSCOPIO",0,null,null,"NEGATOSCOPIO",{"$error":"#DIV/0!"}]
[0,"NEUMOINSUFLADOR",{"$f":"COUNTIF(REGISTRO!$F$3:$F$294,B70)","v":0},null,"NEUMOINSUFLADOR",0,null,null,"NEUMOINSUFLADOR",{"$error":"#DIV/0!"}]
[0,"NEVERA",{"$f":"COUNTIF(REGISTRO!$F$3:$F$294,B71)","v":0},null,"NEVERA",0,null,null,"NEVERA",{"$error":"#DIV/0!"}]
[0,"PIPETAS",{"$f":"COUNTIF(REGISTRO!$F$3:$F$294,B72)","v":0},null,"OTROS",0,null,null,"OTROS",{"$error":"#DIV/0!"}]
[0,"PRUEBA DE ESFUERZO",{"$f":"COUNTIF(REGISTRO!$F$3:$F$294,B73)","v":0},null,"PIPETAS",0,null,null,"PIPETAS",{"$error":"#DIV/0!"}]
[4.9261083743842365E-3,"PULSOXÍMETRO",{"$f":"COUNTIF(REGISTRO!$F$3:$F$294,B74)","v":1},null,"PRUEBA DE ESFUERZO",0,null,null,"PRUEBA DE ESFUERZO",{"$error":"#DIV/0!"}]
[0,"PULSOXIMETRO PORTATIL",{"$f":"COUNTIF(REGISTRO!$F$3:$F$294,B75)","v":0},null,"PULSOXÍMETRO",0,null,null,"PULSOXÍMETRO",{"$error":"#DIV/0!"}]
[0,"QUERATÓMETRO",{"$f":"COUNTIF(REGISTRO!$F$3:$F$294,B76)","v":0},null,"PULSOXIMETRO PORTATIL",0,null,null,"PULSOXIMETRO PORTATIL",{"$error":"#DIV/0!"}]
[0,"REGLA BIOMÉTRICA",{"$f":"COUNTIF(REGISTRO!$F$3:$F$294,B77)","v":0},null,"QUERATÓMETRO",0,null,null,"QUERATÓMETRO",{"$error":"#DIV/0!"}]
[0,"SUCCIONADOR",{"$f":"COUNTIF(REGISTRO!$F$3:$F$294,B78)","v":0},null,"REGLA BIOMÉTRICA",0,null,null,"REGLA BIOMÉTRICA",{"$error":"#DIV/0!"}]
[3.4482758620689655E-2,"TENSIÓMETRO",{"$f":"COUNTIF(REGISTRO!$F$3:$F$294,B79)","v":7},null,"SUCCIONADOR",0,null,null,"SUCCIONADOR",{"$error":"#DIV/0!"}]
[0,"TERMO NITRÓGENO LÍQUIDO",{"$f":"COUNTIF(REGISTRO!$F$3:$F$294,B80)","v":0},null,"TENSIÓMETRO",0,null,null,"TENSIÓMETRO",{"$error":"#DIV/0!"}]
[0,"TERMOHIGRÓMETROS",{"$f":"COUNTIF(REGISTRO!$F$3:$F$294,B81)","v":0},null,"TERMO NITRÓGENO LÍQUIDO",0,null,null,"TERMO NITRÓGENO LÍQUIDO",{"$error":"#DIV/0!"}]
[4.9261083743842365E-3,"TERMÓMETROS DIGITAL",{"$f":"COUNTIF(REGISTRO!$F$3:$F$294,B82)","v":1},null,"TERMOHIGRÓMETROS",0,null,null,"TERMOHIGRÓMETROS",{"$error":"#DIV/0!"}]
[0,"TOPRRE LAPAROSCOPIA",{"$f":"COUNTIF(REGISTRO!$F$3:$F$294,B83)","v":0},null,"TERMÓMETROS DIGITAL",0,null,null,"TERMÓMETROS DIGITAL",{"$error":"#DIV/0!"}]
[0,"UNIDAD OFTALMOLÓGICA",{"$f":"COUNTIF(REGISTRO!$F$3:$F$294,B84)","v":0},null,"TOPRRE LAPAROSCOPIA",0,null,null,"TOPRRE LAPAROSCOPIA",{"$error":"#DIV/0!"}]
[0,"UNIDAD OPTOMETRÍA",{"$f":"COUNTIF(REGISTRO!$F$3:$F$294,B85)","v":0},null,"UNIDAD OFTALMOLÓGICA",0,null,null,"UNIDAD OFTALMOLÓGICA",{"$error":"#DIV/0!"}]
[0,"UPS",{"$f":"COUNTIF(REGISTRO!$F$3:$F$294,B86)","v":0},null,"UNIDAD OPTOMETRÍA",0,null,null,"UNIDAD OPTOMETRÍA",{"$error":"#DIV/0!"}]
[0,"VACUM",{"$f":"COUNTIF(REGISTRO!$F$3:$F$294,B87)","v":0},null,"UPS",0,null,null,"UPS",{"$error":"#DIV/0!"}]
[7.3891625615763554E-2,"VENTILADOR MECÁNICO",{"$f":"COUNTIF(REGISTRO!$F$3:$F$294,B88)","v":15},null,"VACUM",0,null,null,"VACUM",{"$error":"#DIV/0!"}]
[0,"VIBRADOR",{"$f":"COUNTIF(REGISTRO!$F$3:$F$294,B89)","v":0},null,"VENTILADOR MECÁNICO",0,null,null,"VENTILADOR MECÁNICO",{"$error":"#DIV/0!"}]
[0,"ANGIOGRAFO",{"$f":"COUNTIF(REGISTRO!$F$3:$F$294,B90)","v":0},null,"VIBRADOR",0,null,null,"VIBRADOR",{"$error":"#DIV/0!"}]
[1.9704433497536946E-2,"ACCESORIOS",{"$f":"COUNTIF(REGISTRO!$F$3:$F$294,B91)","v":4},null,"Total general",0,null,null,"Total general",{"$error":"#DIV/0!"}]
[0.68472906403940892,"OTROS",{"$f":"COUNTIF(REGISTRO!$F$3:$F$294,B92)","v":139}]
[{"$f":"SUM(A35:A92)","v":1},"TOTAL",{"$f":"SUM(C35:C92)","v":203}]
[]
[]
[]
[]
[null,"ESTADO","NÚMERO ",null,"Etiquetas de fila","Suma de NÚMERO "]
[null,"INCIDENTES ATENDIDOS",{"$f":"CountCcolor(REGISTRO!J3:J294,B99)","v":0},null,"EN ESPERA POR PROVEEDOR EXTERNO",0]
[null,"INCIDENTES EN ESPERA",{"$f":"CountCcolor(REGISTRO!J3:J295,B100)","v":0},null,"INCIDENTES ATENDIDOS",0]
[null,"INCIDENTES NO RESUELTOS",{"$f":"CountCcolor(REGISTRO!J3:J296,B101)","v":0},null,"INCIDENTES EN ESPERA",0]
[null,"EN ESPERA POR PROVEEDOR EXTERNO",{"$f":"CountCcolor(REGISTRO!J3:J297,B102)","v":0},null,"INCIDENTES NO RESUELTOS",0]
[null,"TOTAL",{"$f":"SUM(C99:C102)","v":0},null,"Total general",0]
[]
[]
[]
[]
[]
[null,"ESTADO","NÚMERO ",null,"Etiquetas de fila","Suma de NÚMERO "]
[null,"INCIDENTES ATENDIDOS",{"$f":"C99/$C$103","v":{"$error":"#DIV/0!"}},null,"EN ESPERA POR PROVEEDOR EXTERNO",{"$error":"#DIV/0!"}]
[null,"INCIDENTES EN ESPERA",{"$f":"C100/$C$103","v":{"$error":"#DIV/0!"}},null,"INCIDENTES ATENDIDOS",{"$error":"#DIV/0!"}]
[null,"INCIDENTES NO RESUELTOS",{"$f":"C101/$C$103","v":{"$error":"#DIV/0!"}},null,"INCIDENTES EN ESPERA",{"$error":"#DIV/0!"}]
[null,"EN ESPERA POR PROVEEDOR EXTERNO",{"$f":"C102/$C$103","v":{"$error":"#DIV/0!"}},null,"INCIDENTES NO RESUELTOS",{"$error":"#DIV/0!"}]
[null,"TOTAL",{"$f":"SUM(C110:C113)","v":{"$error":"#DIV/0!"}},null,"Total general",{"$error":"#DIV/0!"}]

{"sheet":"ESTADISTICAS3","index":4,"n_rows":98,"n_cols":6,"rows_kept":98,"cut":false,"hidden":false,"merged":[[0,0,0,2],[40,0,40,2],[54,0,54,5],[77,0,77,5]]}
["MES EN CURSO",null,null,null,"Etiquetas de fila","Suma de TOTAL INCIDENCIAS POR DEPENDENCIA"]
["DEPENDENCIA SOLITANTE","TOTAL INCIDENCIAS POR DEPENDENCIA","PORCENTAJE",null,"ADMISIONES",0]
["ADMISIONES",{"$f":"COUNTIFS(REGISTRO!$E$3:$E$294,A3)","v":0},{"$f":"B3/$B$37","v":0},null,"AREA DE BIOTECNOLOGÍA",0]
["AREA DE BIOTECNOLOGÍA",{"$f":"COUNTIFS(REGISTRO!$E$3:$E$294,A4)","v":142},{"$f":"B4/$B$37","v":0.69950738916256161},null,"CIRUGÍA",0]
["CIRUGÍA",{"$f":"COUNTIFS(REGISTRO!$E$3:$E$294,A5)","v":12},5.9113300492610835E-2,null,"CONSULTORIO1",0]
["CONSULTORIO1",{"$f":"COUNTIFS(REGISTRO!$E$3:$E$294,A6)","v":1},4.9261083743842365E-3,null,"CONSULTORIO2",0]
["CONSULTORIO2",{"$f":"COUNTIFS(REGISTRO!$E$3:$E$294,A7)","v":0},0,null,"CONSULTORIO3",0]
["CONSULTORIO3",{"$f":"COUNTIFS(REGISTRO!$E$3:$E$294,A8)","v":0},0,null,"CONSULTORIO4",0]
["CONSULTORIO4",{"$f":"COUNTIFS(REGISTRO!$E$3:$E$294,A9)","v":0},0,null,"CONSULTORIO5",0]
["CONSULTORIO5",{"$f":"COUNTIFS(REGISTRO!$E$3:$E$294,A10)","v":1},4.9261083743842365E-3,null,"COORCIRUGIA",0]
["COORCIRUGIA",{"$f":"COUNTIFS(REGISTRO!$E$3:$E$294,A11)","v":0},0,null,"COORENFERMERIA",0]
["COORENFERMERIA",{"$f":"COUNTIFS(REGISTRO!$E$3:$E$294,A12)","v":0},0,null,"DIRMEDICA",0]
["DIRMEDICA",{"$f":"COUNTIFS(REGISTRO!$E$3:$E$294,A13)","v":0},0,null,"FARMACIA",0]
["FARMACIA",{"$f":"COUNTIFS(REGISTRO!$E$3:$E$294,A14)","v":0},0,null,"GERENCIA",0]
["GERENCIA",{"$f":"COUNTIFS(REGISTRO!$E$3:$E$294,A15)","v":0},0,null,"HEMODINAMIA",0]
["HEMODINAMIA",{"$f":"COUNTIFS(REGISTRO!$E$3:$E$294,A16)","v":0},0,null,"HOLTER1",0]
["HOLTER1",{"$f":"COUNTIFS(REGISTRO!$E$3:$E$294,A17)","v":0},0,null,"HOLTER2",0]
["HOLTER2",{"$f":"COUNTIFS(REGISTRO!$E$3:$E$294,A18)","v":0},0,null,"HOSPITALIZACION1",0]
["HOSPITALIZACION1",{"$f":"COUNTIFS(REGISTRO!$E$3:$E$294,A19)","v":3},1.4778325123152709E-2,null,"HOSPITALIZACION2",0]
["HOSPITALIZACION2",{"$f":"COUNTIFS(REGISTRO!$E$3:$E$294,A20)","v":3},1.4778325123152709E-2,null,"HOSPITALIZACION-2",0]
["HOSPITALIZACION-2",{"$f":"COUNTIFS(REGISTRO!$E$3:$E$294,A21)","v":7},3.4482758620689655E-2,null,"MEGAADMISIONES",0]
["MEGAADMISIONES",{"$f":"COUNTIFS(REGISTRO!$E$3:$E$294,A22)","v":0},0,null,"MEGACONSUL1",0]
["MEGACONSUL1",{"$f":"COUNTIFS(REGISTRO!$E$3:$E$294,A23)","v":0},0,null,"MEGACONSUL2",0]
["MEGACONSUL2",{"$f":"COUNTIFS(REGISTRO!$E$3:$E$294,A24)","v":1},4.9261083743842365E-3,null,"MEGACONSUL3",0]
["MEGACONSUL3",{"$f":"COUNTIFS(REGISTRO!$E$3:$E$294,A25)","v":0},0,null,"MEGACONSUL4",0]
["MEGACONSUL4",{"$f":"COUNTIFS(REGISTRO!$E$3:$E$294,A26)","v":0},0,null,"MEGACONSUL5",0]
["MEGACONSUL5",{"$f":"COUNTIFS(REGISTRO!$E$3:$E$294,A27)","v":0},0,null,"MEGACONSUL6",0]
["MEGACONSUL6",{"$f":"COUNTIFS(REGISTRO!$E$3:$E$294,A28)","v":0},0,null,"MEGACONSUL7",0]
["MEGACONSUL7",{"$f":"COUNTIFS(REGISTRO!$E$3:$E$294,A29)","v":0},0,null,"MEGACONSUL8",0]
["MEGACONSUL8",{"$f":"COUNTIFS(REGISTRO!$E$3:$E$294,A30)","v":1},4.9261083743842365E-3,null,"PROGRAMACIONCX",0]
["PROGRAMACIONCX",{"$f":"COUNTIFS(REGISTRO!$E$3:$E$294,A31)","v":0},0,null,"PROGRAMACIONCX2",0]
["PROGRAMACIONCX2",{"$f":"COUNTIFS(REGISTRO!$E$3:$E$294,A32)","v":0},0,null,"QUIROFANO3",0]
["QUIROFANO3",{"$f":"COUNTIFS(REGISTRO!$E$3:$E$294,A33)","v":0},0,null,"RECUPERACIÓN CIRUGÍA",0]
["RECUPERACIÓN CIRUGÍA",{"$f":"COUNTIFS(REGISTRO!$E$3:$E$294,A34)","v":0},0,null,"TRANSFUSION",0]
["TRANSFUSION",{"$f":"COUNTIFS(REGISTRO!$E$3:$E$294,A35)","v":1},4.9261083743842365E-3,null,"UCI",0]
["UCI",{"$f":"COUNTIFS(REGISTRO!$E$3:$E$294,A36)","v":31},0.15270935960591134,null,"Total general",0]
["TOTAL",{"$f":"SUM(B3:B36)","v":203},{"$f":"SUM(C3:C36)","v":1}]
[]
[]
[]
["TIEMPO DE RESPUESTA"]
["TIEMPO  ","NÚMERO INCIDENTES","PORCENTAJE"]
["MENOS DE 24 HORAS",{"$f":"COUNTIFS(REGISTRO!M3:M294,\"<=1\",REGISTRO!M3:M294,\">0\")","v":201},{"$f":"B43/$B$49","v":1}]
["ENTRE 24 Y 160 HORAS",{"$f":"COUNTIFS(REGISTRO!M3:M294,\"<7\",REGISTRO!M3:M294,\">=1\")","v":0},0]
["ENTRE 160 Y 720 HH",{"$f":"COUNTIFS(REGISTRO!M3:M294,\"<30\",REGISTRO!M3:M294,\">=7\")","v":0},0]
["MAS DE 720 HORAS",{"$f":"COUNTIF(REGISTRO!M3:M294,\">=30\")","v":0},0]
["PENDIENTES",{"$f":"ESTADISTICAS2!C100+ESTADISTICAS2!C101","v":0},0]
["ESPERA POR PROVEEDOR",{"$f":"ESTADISTICAS2!C102","v":0},0]
["TOTAL ",{"$f":"SUM(B43:B48)","v":201},{"$f":"SUM(B49)","v":201}]
[]
[]
[]
[]
[]
["OPORTUNIDAD DE RESPUESTA POR PROVEEDOR EXTERNO"]
["PROVEEDOR","INCIDENTES ATENDIDOS","MENOS DE 24 HORAS","ENTRE 24 Y 160 HORAS","ENTRE 160 Y 720 HH","PENDIENTES O QUE ECCEDEN 720 HORAS DE RESPUESTA"]
["ASPROMÉDICA",{"$f":"COUNTIF(REGISTRO!$O$3:$O$294,A57)","v":0},{"$f":"COUNTIFS(REGISTRO!$O$3:$O$294,A57,REGISTRO!$M$3:$M$294,\"<=1\",REGISTRO!$M$3:$M$294,\">0\")","v":0},{"$f":"COUNTIFS(REGISTRO!$O$3:$O$294,A57,REGISTRO!$M$3:$M$294,\"<7\",REGISTRO!$M$3:$M$294,\">=1\")","v":0},{"$f":"COUNTIFS(REGISTRO!$O$3:$O$294,A57,REGISTRO!$M$3:$M$294,\"<30\",REGISTRO!$M$3:$M$294,\">=7\")","v":0},{"$f":"COUNTIFS(REGISTRO!$O$3:$O$294,A57,REGISTRO!$M$3:$M$294,\">=30\")","v":0}]
["BOSTON CIENTIFIC",{"$f":"COUNTIF(REGISTRO!$O$3:$O$294,A58)","v":0},{"$f":"COUNTIFS(REGISTRO!$O$3:$O$294,A58,REGISTRO!$M$3:$M$294,\"<=1\",REGISTRO!$M$3:$M$294,\">0\")","v":0},{"$f":"COUNTIFS(REGISTRO!$O$3:$O$294,A58,REGISTRO!$M$3:$M$294,\"<7\",REGISTRO!$M$3:$M$294,\">=1\")","v":0},{"$f":"COUNTIFS(REGISTRO!$O$3:$O$294,A58,REGISTRO!$M$3:$M$294,\"<30\",REGISTRO!$M$3:$M$294,\">=7\")","v":0},{"$f":"COUNTIFS(REGISTRO!$O$3:$O$294,A58,REGISTRO!$M$3:$M$294,\">=30\")","v":0}]
["COMERCIAL MÉDICA",{"$f":"COUNTIF(REGISTRO!$O$3:$O$294,A59)","v":0},{"$f":"COUNTIFS(REGISTRO!$O$3:$O$294,A59,REGISTRO!$M$3:$M$294,\"<=1\",REGISTRO!$M$3:$M$294,\">0\")","v":0},{"$f":"COUNTIFS(REGISTRO!$O$3:$O$294,A59,REGISTRO!$M$3:$M$294,\"<7\",REGISTRO!$M$3:$M$294,\">=1\")","v":0},{"$f":"COUNTIFS(REGISTRO!$O$3:$O$294,A59,REGISTRO!$M$3:$M$294,\"<30\",REGISTRO!$M$3:$M$294,\">=7\")","v":0},{"$f":"COUNTIFS(REGISTRO!$O$3:$O$294,A59,REGISTRO!$M$3:$M$294,\">=30\")","v":0}]
["DISCLINICA",{"$f":"COUNTIF(REGISTRO!$O$3:$O$294,A60)","v":0},{"$f":"COUNTIFS(REGISTRO!$O$3:$O$294,A60,REGISTRO!$M$3:$M$294,\"<=1\",REGISTRO!$M$3:$M$294,\">0\")","v":0},{"$f":"COUNTIFS(REGISTRO!$O$3:$O$294,A60,REGISTRO!$M$3:$M$294,\"<7\",REGISTRO!$M$3:$M$294,\">=1\")","v":0},{"$f":"COUNTIFS(REGISTRO!$O$3:$O$294,A60,REGISTRO!$M$3:$M$294,\"<30\",REGISTRO!$M$3:$M$294,\">=7\")","v":0},{"$f":"COUNTIFS(REGISTRO!$O$3:$O$294,A60,REGISTRO!$M$3:$M$294,\">=30\")","v":0}]
["DISCLINICA",{"$f":"COUNTIF(REGISTRO!$O$3:$O$294,A61)","v":0},{"$f":"COUNTIFS(REGISTRO!$O$3:$O$294,A61,REGISTRO!$M$3:$M$294,\"<=1\",REGISTRO!$M$3:$M$294,\">0\")","v":0},{"$f":"COUNTIFS(REGISTRO!$O$3:$O$294,A61,REGISTRO!$M$3:$M$294,\"<7\",REGISTRO!$M$3:$M$294,\">=1\")","v":0},{"$f":"COUNTIFS(REGISTRO!$O$3:$O$294,A61,REGISTRO!$M$3:$M$294,\"<30\",REGISTRO!$M$3:$M$294,\">=7\")","v":0},{"$f":"COUNTIFS(REGISTRO!$O$3:$O$294,A61,REGISTRO!$M$3:$M$294,\">=30\")","v":0}]
["DOMETAL",{"$f":"COUNTIF(REGISTRO!$O$3:$O$294,A62)","v":0},{"$f":"COUNTIFS(REGISTRO!$O$3:$O$294,A62,REGISTRO!$M$3:$M$294,\"<=1\",REGISTRO!$M$3:$M$294,\">0\")","v":0},{"$f":"COUNTIFS(REGISTRO!$O$3:$O$294,A62,REGISTRO!$M$3:$M$294,\"<7\",REGISTRO!$M$3:$M$294,\">=1\")","v":0},{"$f":"COUNTIFS(REGISTRO!$O$3:$O$294,A62,REGISTRO!$M$3:$M$294,\"<30\",REGISTRO!$M$3:$M$294,\">=7\")","v":0},{"$f":"COUNTIFS(REGISTRO!$O$3:$O$294,A62,REGISTRO!$M$3:$M$294,\">=30\")","v":0}]
["GBARCO",{"$f":"COUNTIF(REGISTRO!$O$3:$O$294,A63)","v":0},{"$f":"COUNTIFS(REGISTRO!$O$3:$O$294,A63,REGISTRO!$M$3:$M$294,\"<=1\",REGISTRO!$M$3:$M$294,\">0\")","v":0},{"$f":"COUNTIFS(REGISTRO!$O$3:$O$294,A63,REGISTRO!$M$3:$M$294,\"<7\",REGISTRO!$M$3:$M$294,\">=1\")","v":0},{"$f":"COUNTIFS(REGISTRO!$O$3:$O$294,A63,REGISTRO!$M$3:$M$294,\"<30\",REGISTRO!$M$3:$M$294,\">=7\")","v":0},{"$f":"COUNTIFS(REGISTRO!$O$3:$O$294,A63,REGISTRO!$M$3:$M$294,\">=30\")","v":0}]
["GEMEDCO",{"$f":"COUNTIF(REGISTRO!$O$3:$O$294,A64)","v":0},{"$f":"COUNTIFS(REGISTRO!$O$3:$O$294,A64,REGISTRO!$M$3:$M$294,\"<=1\",REGISTRO!$M$3:$M$294,\">0\")","v":0},{"$f":"COUNTIFS(REGISTRO!$O$3:$O$294,A64,REGISTRO!$M$3:$M$294,\"<7\",REGISTRO!$M$3:$M$294,\">=1\")","v":0},{"$f":"COUNTIFS(REGISTRO!$O$3:$O$294,A64,REGISTRO!$M$3:$M$294,\"<30\",REGISTRO!$M$3:$M$294,\">=7\")","v":0},{"$f":"COUNTIFS(REGISTRO!$O$3:$O$294,A64,REGISTRO!$M$3:$M$294,\">=30\")","v":0}]
["GERMALMEDICAL",{"$f":"COUNTIF(REGISTRO!$O$3:$O$294,A65)","v":0},{"$f":"COUNTIFS(REGISTRO!$O$3:$O$294,A65,REGISTRO!$M$3:$M$294,\"<=1\",REGISTRO!$M$3:$M$294,\">0\")","v":0},{"$f":"COUNTIFS(REGISTRO!$O$3:$O$294,A65,REGISTRO!$M$3:$M$294,\"<7\",REGISTRO!$M$3:$M$294,\">=1\")","v":0},{"$f":"COUNTIFS(REGISTRO!$O$3:$O$294,A65,REGISTRO!$M$3:$M$294,\"<30\",REGISTRO!$M$3:$M$294,\">=7\")","v":0},{"$f":"COUNTIFS(REGISTRO!$O$3:$O$294,A65,REGISTRO!$M$3:$M$294,\">=30\")","v":0}]
["GLOBAL TECNOLOGY",{"$f":"COUNTIF(REGISTRO!$O$3:$O$294,A66)","v":0},{"$f":"COUNTIFS(REGISTRO!$O$3:$O$294,A66,REGISTRO!$M$3:$M$294,\"<=1\",REGISTRO!$M$3:$M$294,\">0\")","v":0},{"$f":"COUNTIFS(REGISTRO!$O$3:$O$294,A66,REGISTRO!$M$3:$M$294,\"<7\",REGISTRO!$M$3:$M$294,\">=1\")","v":0},{"$f":"COUNTIFS(REGISTRO!$O$3:$O$294,A66,REGISTRO!$M$3:$M$294,\"<30\",REGISTRO!$M$3:$M$294,\">=7\")","v":0},{"$f":"COUNTIFS(REGISTRO!$O$3:$O$294,A66,REGISTRO!$M$3:$M$294,\">=30\")","v":0}]
["HOSPIRA",{"$f":"COUNTIF(REGISTRO!$O$3:$O$294,A67)","v":0},{"$f":"COUNTIFS(REGISTRO!$O$3:$O$294,A67,REGISTRO!$M$3:$M$294,\"<=1\",REGISTRO!$M$3:$M$294,\">0\")","v":0},{"$f":"COUNTIFS(REGISTRO!$O$3:$O$294,A67,REGISTRO!$M$3:$M$294,\"<7\",REGISTRO!$M$3:$M$294,\">=1\")","v":0},{"$f":"COUNTIFS(REGISTRO!$O$3:$O$294,A67,REGISTRO!$M$3:$M$294,\"<30\",REGISTRO!$M$3:$M$294,\">=7\")","v":0},{"$f":"COUNTIFS(REGISTRO!$O$3:$O$294,A67,REGISTRO!$M$3:$M$294,\">=30\")","v":0}]
["INGENIERÍA ELECTROMECÁNICA",{"$f":"COUNTIF(REGISTRO!$O$3:$O$294,A68)","v":0},{"$f":"COUNTIFS(REGISTRO!$O$3:$O$294,A68,REGISTRO!$M$3:$M$294,\"<=1\",REGISTRO!$M$3:$M$294,\">0\")","v":0},{"$f":"COUNTIFS(REGISTRO!$O$3:$O$294,A68,REGISTRO!$M$3:$M$294,\"<7\",REGISTRO!$M$3:$M$294,\">=1\")","v":0},{"$f":"COUNTIFS(REGISTRO!$O$3:$O$294,A68,REGISTRO!$M$3:$M$294,\"<30\",REGISTRO!$M$3:$M$294,\">=7\")","v":0},{"$f":"COUNTIFS(REGISTRO!$O$3:$O$294,A68,REGISTRO!$M$3:$M$294,\">=30\")","v":0}]
["INSAK",{"$f":"COUNTIF(REGISTRO!$O$3:$O$294,A69)","v":0},{"$f":"COUNTIFS(REGISTRO!$O$3:$O$294,A69,REGISTRO!$M$3:$M$294,\"<=1\",REGISTRO!$M$3:$M$294,\">0\")","v":0},{"$f":"COUNTIFS(REGISTRO!$O$3:$O$294,A69,REGISTRO!$M$3:$M$294,\"<7\",REGISTRO!$M$3:$M$294,\">=1\")","v":0},{"$f":"COUNTIFS(REGISTRO!$O$3:$O$294,A69,REGISTRO!$M$3:$M$294,\"<30\",REGISTRO!$M$3:$M$294,\">=7\")","v":0},{"$f":"COUNTIFS(REGISTRO!$O$3:$O$294,A69,REGISTRO!$M$3:$M$294,\">=30\")","v":0}]
["LINDE",{"$f":"COUNTIF(REGISTRO!$O$3:$O$294,A70)","v":0},{"$f":"COUNTIFS(REGISTRO!$O$3:$O$294,A70,REGISTRO!$M$3:$M$294,\"<=1\",REGISTRO!$M$3:$M$294,\">0\")","v":0},{"$f":"COUNTIFS(REGISTRO!$O$3:$O$294,A70,REGISTRO!$M$3:$M$294,\"<7\",REGISTRO!$M$3:$M$294,\">=1\")","v":0},{"$f":"COUNTIFS(REGISTRO!$O$3:$O$294,A70,REGISTRO!$M$3:$M$294,\"<30\",REGISTRO!$M$3:$M$294,\">=7\")","v":0},{"$f":"COUNTIFS(REGISTRO!$O$3:$O$294,A70,REGISTRO!$M$3:$M$294,\">=30\")","v":0}]
["MEDTRONIC",{"$f":"COUNTIF(REGISTRO!$O$3:$O$294,A71)","v":0},{"$f":"COUNTIFS(REGISTRO!$O$3:$O$294,A71,REGISTRO!$M$3:$M$294,\"<=1\",REGISTRO!$M$3:$M$294,\">0\")","v":0},{"$f":"COUNTIFS(REGISTRO!$O$3:$O$294,A71,REGISTRO!$M$3:$M$294,\"<7\",REGISTRO!$M$3:$M$294,\">=1\")","v":0},{"$f":"COUNTIFS(REGISTRO!$O$3:$O$294,A71,REGISTRO!$M$3:$M$294,\"<30\",REGISTRO!$M$3:$M$294,\">=7\")","v":0},{"$f":"COUNTIFS(REGISTRO!$O$3:$O$294,A71,REGISTRO!$M$3:$M$294,\">=30\")","v":0}]
["PHILIPS",{"$f":"COUNTIF(REGISTRO!$O$3:$O$294,A72)","v":0},{"$f":"COUNTIFS(REGISTRO!$O$3:$O$294,A72,REGISTRO!$M$3:$M$294,\"<=1\",REGISTRO!$M$3:$M$294,\">0\")","v":0},{"$f":"COUNTIFS(REGISTRO!$O$3:$O$294,A72,REGISTRO!$M$3:$M$294,\"<7\",REGISTRO!$M$3:$M$294,\">=1\")","v":0},{"$f":"COUNTIFS(REGISTRO!$O$3:$O$294,A72,REGISTRO!$M$3:$M$294,\"<30\",REGISTRO!$M$3:$M$294,\">=7\")","v":0},{"$f":"COUNTIFS(REGISTRO!$O$3:$O$294,A72,REGISTRO!$M$3:$M$294,\">=30\")","v":0}]
["QUIRUGIL",{"$f":"COUNTIF(REGISTRO!$O$3:$O$294,A73)","v":0},{"$f":"COUNTIFS(REGISTRO!$O$3:$O$294,A73,REGISTRO!$M$3:$M$294,\"<=1\",REGISTRO!$M$3:$M$294,\">0\")","v":0},{"$f":"COUNTIFS(REGISTRO!$O$3:$O$294,A73,REGISTRO!$M$3:$M$294,\"<7\",REGISTRO!$M$3:$M$294,\">=1\")","v":0},{"$f":"COUNTIFS(REGISTRO!$O$3:$O$294,A73,REGISTRO!$M$3:$M$294,\"<30\",REGISTRO!$M$3:$M$294,\">=7\")","v":0},{"$f":"COUNTIFS(REGISTRO!$O$3:$O$294,A73,REGISTRO!$M$3:$M$294,\">=30\")","v":0}]
["SIEMENS",{"$f":"COUNTIF(REGISTRO!$O$3:$O$294,A74)","v":0},{"$f":"COUNTIFS(REGISTRO!$O$3:$O$294,A74,REGISTRO!$M$3:$M$294,\"<=1\",REGISTRO!$M$3:$M$294,\">0\")","v":0},{"$f":"COUNTIFS(REGISTRO!$O$3:$O$294,A74,REGISTRO!$M$3:$M$294,\"<7\",REGISTRO!$M$3:$M$294,\">=1\")","v":0},{"$f":"COUNTIFS(REGISTRO!$O$3:$O$294,A74,REGISTRO!$M$3:$M$294,\"<30\",REGISTRO!$M$3:$M$294,\">=7\")","v":0},{"$f":"COUNTIFS(REGISTRO!$O$3:$O$294,A74,REGISTRO!$M$3:$M$294,\">=30\")","v":0}]
["SPEEDTRONICS",{"$f":"COUNTIF(REGISTRO!$O$3:$O$294,A75)","v":0},{"$f":"COUNTIFS(REGISTRO!$O$3:$O$294,A75,REGISTRO!$M$3:$M$294,\"<=1\",REGISTRO!$M$3:$M$294,\">0\")","v":0},{"$f":"COUNTIFS(REGISTRO!$O$3:$O$294,A75,REGISTRO!$M$3:$M$294,\"<7\",REGISTRO!$M$3:$M$294,\">=1\")","v":0},{"$f":"COUNTIFS(REGISTRO!$O$3:$O$294,A75,REGISTRO!$M$3:$M$294,\"<30\",REGISTRO!$M$3:$M$294,\">=7\")","v":0},{"$f":"COUNTIFS(REGISTRO!$O$3:$O$294,A75,REGISTRO!$M$3:$M$294,\">=30\")","v":0}]
[]
[]
["PORCENTAJE DE RESPUESTA POR PROVEEDOR EXTERNO"]
["PROVEEDOR","% INCIDENTES ATENDIDOS","% MENOS DE 24 HORAS","% ENTRE 24 Y 160 HORAS","% ENTRE 160 Y 720 HH","% PENDIENTES O QUE ECCEDEN 720 HORAS DE RESPUESTA"]
["ASPROMÉDICA",{"$f":"B57/$B$37","v":0},{"$f":"C57/B57","v":{"$error":"#DIV/0!"}},{"$f":"E57/B57","v":{"$error":"#DIV/0!"}},{"$f":"E57/C57","v":{"$error":"#DIV/0!"}},{"$f":"F57/B57","v":{"$error":"#DIV/0!"}}]
["BOSTON CIENTIFIC",{"$f":"B58/$B$37","v":0},{"$f":"C58/B58","v":{"$error":"#DIV/0!"}},{"$f":"D58/B58","v":{"$error":"#DIV/0!"}},{"$f":"E58/C58","v":{"$error":"#DIV/0!"}},{"$f":"F58/B58","v":{"$error":"#DIV/0!"}}]
["COMERCIAL MÉDICA",0,{"$f":"C59/B59","v":{"$error":"#DIV/0!"}},{"$error":"#DIV/0!"},{"$error":"#DIV/0!"},{"$error":"#DIV/0!"}]
["DISCLINICA",0,{"$error":"#DIV/0!"},{"$error":"#DIV/0!"},{"$error":"#DIV/0!"},{"$error":"#DIV/0!"}]
["DISCLINICA",0,{"$error":"#DIV/0!"},{"$error":"#DIV/0!"},{"$error":"#DIV/0!"},{"$error":"#DIV/0!"}]
["DOMETAL",0,{"$error":"#DIV/0!"},{"$error":"#DIV/0!"},{"$error":"#DIV/0!"},{"$error":"#DIV/0!"}]
["GBARCO",0,{"$error":"#DIV/0!"},{"$error":"#DIV/0!"},{"$error":"#DIV/0!"},{"$error":"#DIV/0!"}]
["GEMEDCO",0,{"$error":"#DIV/0!"},{"$error":"#DIV/0!"},{"$error":"#DIV/0!"},{"$error":"#DIV/0!"}]
["GERMALMEDICAL",0,{"$error":"#DIV/0!"},{"$error":"#DIV/0!"},{"$error":"#DIV/0!"},{"$error":"#DIV/0!"}]
["GLOBAL TECNOLOGY",0,{"$error":"#DIV/0!"},{"$error":"#DIV/0!"},{"$error":"#DIV/0!"},{"$error":"#DIV/0!"}]
["HOSPIRA",0,{"$error":"#DIV/0!"},{"$error":"#DIV/0!"},{"$error":"#DIV/0!"},{"$error":"#DIV/0!"}]
["INGENIERÍA ELECTROMECÁNICA",0,{"$error":"#DIV/0!"},{"$error":"#DIV/0!"},{"$error":"#DIV/0!"},{"$error":"#DIV/0!"}]
["INSAK",0,{"$error":"#DIV/0!"},{"$error":"#DIV/0!"},{"$error":"#DIV/0!"},{"$error":"#DIV/0!"}]
["LINDE",0,{"$error":"#DIV/0!"},{"$error":"#DIV/0!"},{"$error":"#DIV/0!"},{"$error":"#DIV/0!"}]
["MEDTRONIC",0,{"$error":"#DIV/0!"},{"$error":"#DIV/0!"},{"$error":"#DIV/0!"},{"$error":"#DIV/0!"}]
["PHILIPS",0,{"$error":"#DIV/0!"},{"$error":"#DIV/0!"},{"$error":"#DIV/0!"},{"$error":"#DIV/0!"}]
["QUIRUGIL",0,{"$error":"#DIV/0!"},{"$error":"#DIV/0!"},{"$error":"#DIV/0!"},{"$error":"#DIV/0!"}]
["SIEMENS",0,{"$error":"#DIV/0!"},{"$error":"#DIV/0!"},{"$error":"#DIV/0!"},{"$error":"#DIV/0!"}]
["SPEEDTRONICS",0,{"$error":"#DIV/0!"},{"$error":"#DIV/0!"},{"$error":"#DIV/0!"},{"$error":"#DIV/0!"}]

{"sheet":"ESTADISTICAS4","index":5,"n_rows":179,"n_cols":6,"rows_kept":179,"cut":false,"hidden":false,"merged":[]}
["NOMBRE","TOTAL INCIDENTES MES ","PORCENTAJE INCIDENTES MES"]
["Acosta Acosta Liceth Eliana",{"$f":"COUNTIFS(REGISTRO!$D$3:$D$294,A2)","v":0},{"$f":"B2/$B$179","v":0},null,"Etiquetas de fila","Suma de TOTAL INCIDENTES MES "]
["Aguirre Paque Carmen Yineth",{"$f":"COUNTIFS(REGISTRO!$D$3:$D$294,A3)","v":0},{"$f":"B3/$B$179","v":0},null,"Acosta Acosta Liceth Eliana",0]
["Aguirre Velasquez Yuly Paulin",{"$f":"COUNTIFS(REGISTRO!$D$3:$D$294,A4)","v":0},0,null,"Aguirre Paque Carmen Yineth",0]
["Alvarez Quintero Adriana ",{"$f":"COUNTIFS(REGISTRO!$D$3:$D$294,A5)","v":0},0,null,"Aguirre Velasquez Yuly Paulin",0]
["Arango Hernandez Diana Ximena",{"$f":"COUNTIFS(REGISTRO!$D$3:$D$294,A6)","v":0},0,null,"Alvarez Quintero Adriana ",0]
["Arboleda Calle Cristian Fabian",{"$f":"COUNTIFS(REGISTRO!$D$3:$D$294,A7)","v":0},0,null,"Arango Hernandez Diana Ximena",0]
["Arcila Gonzalez Karen Sofia",{"$f":"COUNTIFS(REGISTRO!$D$3:$D$294,A8)","v":0},0,null,"Arboleda Calle Cristian Fabian",0]
["Arias Esguerra Carlos Ezequiel",{"$f":"COUNTIFS(REGISTRO!$D$3:$D$294,A9)","v":0},0,null,"Arcila Gonzalez Karen Sofia",0]
["Arias ramirez Ramon yolian",{"$f":"COUNTIFS(REGISTRO!$D$3:$D$294,A10)","v":0},0,null,"Área de Administración",0]
["Arias sanchez Francisco Alejandro ",{"$f":"COUNTIFS(REGISTRO!$D$3:$D$294,A11)","v":0},0,null,"Área de Admisiones",0]
["Avella Zuluaga Luisa Fernanda",{"$f":"COUNTIFS(REGISTRO!$D$3:$D$294,A12)","v":0},0,null,"Area de biotecnologia",0]
["Bañol Restrepo Manuela",{"$f":"COUNTIFS(REGISTRO!$D$3:$D$294,A13)","v":0},0,null,"Área de Cirugía",0]
["Barberi Gonzalez Laura Marcela",{"$f":"COUNTIFS(REGISTRO!$D$3:$D$294,A14)","v":0},0,null,"Área de Consulta Externa",0]
["Bedoya Ramirez Paula Andrea",{"$f":"COUNTIFS(REGISTRO!$D$3:$D$294,A15)","v":0},0,null,"Área de Cuidados Intensivos",0]
["Botero Ceballos Luz Elena",{"$f":"COUNTIFS(REGISTRO!$D$3:$D$294,A16)","v":0},0,null,"Área de Hospitalización",0]
["Brito Correa Alejandra",{"$f":"COUNTIFS(REGISTRO!$D$3:$D$294,A17)","v":0},0,null,"Arias Esguerra Carlos Ezequiel",0]
["Bueno Blandón Hector Fabio ",{"$f":"COUNTIFS(REGISTRO!$D$3:$D$294,A18)","v":0},0,null,"Arias ramirez Ramon yolian",0]
["Bueno Brito Cesar Augusto",{"$f":"COUNTIFS(REGISTRO!$D$3:$D$294,A19)","v":0},0,null,"Arias sanchez Francisco Alejandro ",0]
["Builes Alvarez Ivan Dario",{"$f":"COUNTIFS(REGISTRO!$D$3:$D$294,A20)","v":0},0,null,"Avella Zuluaga Luisa Fernanda",0]
["Caicedo Jimenez Carol Viviana",{"$f":"COUNTIFS(REGISTRO!$D$3:$D$294,A21)","v":0},0,null,"Bañol Restrepo Manuela",0]
["Calderón Tabares Ingrid Marcela ",{"$f":"COUNTIFS(REGISTRO!$D$3:$D$294,A22)","v":0},0,null,"Barberi Gonzalez Laura Marcela",0]
["Calle Lasso Monica Johana",{"$f":"COUNTIFS(REGISTRO!$D$3:$D$294,A23)","v":0},0,null,"Bedoya Ramirez Paula Andrea",0]
["Cañas Bedoya Maria Elena",{"$f":"COUNTIFS(REGISTRO!$D$3:$D$294,A24)","v":0},0,null,"Botero Ceballos Luz Elena",0]
["Cañaveral Florez Lady Paola ",{"$f":"COUNTIFS(REGISTRO!$D$3:$D$294,A25)","v":0},0,null,"Brito Correa Alejandra",0]
["Cardenas Henao Elizabeth ",{"$f":"COUNTIFS(REGISTRO!$D$3:$D$294,A26)","v":0},0,null,"Bueno Blandón Hector Fabio ",0]
["Carreño Muñoz Durley Jhobana",{"$f":"COUNTIFS(REGISTRO!$D$3:$D$294,A27)","v":0},0,null,"Bueno Brito Cesar Augusto",0]
["Castrillon Palacio Adriana Maria",{"$f":"COUNTIFS(REGISTRO!$D$3:$D$294,A28)","v":0},0,null,"Builes Alvarez Ivan Dario",0]
["Castro Buritica Gloria Ines",{"$f":"COUNTIFS(REGISTRO!$D$3:$D$294,A29)","v":0},0,null,"Caicedo Jimenez Carol Viviana",0]
["Castro Florez Cesar Eduardo",{"$f":"COUNTIFS(REGISTRO!$D$3:$D$294,A30)","v":0},0,null,"Calderón Tabares Ingrid Marcela ",0]
["Chacon Dorado Elizabeth",{"$f":"COUNTIFS(REGISTRO!$D$3:$D$294,A31)","v":0},0,null,"Calle Lasso Monica Johana",0]
["Cifuentes Garcia Diana Carolina ",{"$f":"COUNTIFS(REGISTRO!$D$3:$D$294,A32)","v":0},0,null,"Cañas Bedoya Maria Elena",0]
["Correa Henao Diana Marcela",{"$f":"COUNTIFS(REGISTRO!$D$3:$D$294,A33)","v":0},0,null,"Cañaveral Florez Lady Paola ",0]
["Correa Palacio Nora Vanessa",{"$f":"COUNTIFS(REGISTRO!$D$3:$D$294,A34)","v":0},0,null,"Cardenas Henao Elizabeth ",0]
["Cruz Trujillo Erika Alejandra",{"$f":"COUNTIFS(REGISTRO!$D$3:$D$294,A35)","v":0},0,null,"Carreño Muñoz Durley Jhobana",0]
["Cuervo Molina Lina María ",{"$f":"COUNTIFS(REGISTRO!$D$3:$D$294,A36)","v":0},0,null,"Castrillon Palacio Adriana Maria",0]
["Duque Velez Luz Miriam ",{"$f":"COUNTIFS(REGISTRO!$D$3:$D$294,A37)","v":0},0,null,"Castro Buritica Gloria Ines",0]
["España Vasquez Jackeline",{"$f":"COUNTIFS(REGISTRO!$D$3:$D$294,A38)","v":0},0,null,"Castro Florez Cesar Eduardo",0]
["Estrada Fernandez Jorge Ivan",{"$f":"COUNTIFS(REGISTRO!$D$3:$D$294,A39)","v":0},0,null,"Chacon Dorado Elizabeth",0]
["Fernandez Echeverry Diana Patricia ",{"$f":"COUNTIFS(REGISTRO!$D$3:$D$294,A40)","v":0},0,null,"Cifuentes Garcia Diana Carolina ",0]
["Florez Calvo Heriberto",{"$f":"COUNTIFS(REGISTRO!$D$3:$D$294,A41)","v":0},0,null,"Correa Henao Diana Marcela",0]
["Franco Bedoya Luisa Fernanda",{"$f":"COUNTIFS(REGISTRO!$D$3:$D$294,A42)","v":0},0,null,"Correa Palacio Nora Vanessa",0]
["Galeano Carrillo Cindy Alana",{"$f":"COUNTIFS(REGISTRO!$D$3:$D$294,A43)","v":0},0,null,"Cruz Trujillo Erika Alejandra",0]
["Garcia Arias Dignory",{"$f":"COUNTIFS(REGISTRO!$D$3:$D$294,A44)","v":0},0,null,"Cuervo Molina Lina María ",0]
["Garcia Cardona Monica",{"$f":"COUNTIFS(REGISTRO!$D$3:$D$294,A45)","v":0},0,null,"Duque Velez Luz Miriam ",0]
["Garcia Correa Claudia Milena ",{"$f":"COUNTIFS(REGISTRO!$D$3:$D$294,A46)","v":0},0,null,"España Vasquez Jackeline",0]
["García García Hernan",{"$f":"COUNTIFS(REGISTRO!$D$3:$D$294,A47)","v":0},0,null,"Estrada Fernandez Jorge Ivan",0]
["García Tusarma Liliana Yinet",{"$f":"COUNTIFS(REGISTRO!$D$3:$D$294,A48)","v":0},0,null,"Fernandez Echeverry Diana Patricia ",0]
["Giraldo  Muñoz Eliana Ismary",{"$f":"COUNTIFS(REGISTRO!$D$3:$D$294,A49)","v":0},0,null,"Florez Calvo Heriberto",0]
["Giraldo Jaramillo Marcela",{"$f":"COUNTIFS(REGISTRO!$D$3:$D$294,A50)","v":0},0,null,"Franco Bedoya Luisa Fernanda",0]
["Giraldo taborda  Gloria Esmeralda ",{"$f":"COUNTIFS(REGISTRO!$D$3:$D$294,A51)","v":0},0,null,"Galeano Carrillo Cindy Alana",0]
["Giraldo Tamayo Diana Patricia ",{"$f":"COUNTIFS(REGISTRO!$D$3:$D$294,A52)","v":0},0,null,"Garcia Arias Dignory",0]
["Gomez Suarez Patricia ",{"$f":"COUNTIFS(REGISTRO!$D$3:$D$294,A53)","v":0},0,null,"Garcia Cardona Monica",0]
["Gomez Virgen Ivan Dario",{"$f":"COUNTIFS(REGISTRO!$D$3:$D$294,A54)","v":0},0,null,"Garcia Correa Claudia Milena ",0]
["Gonzalez Alzate Andres David ",{"$f":"COUNTIFS(REGISTRO!$D$3:$D$294,A55)","v":0},0,null,"García García Hernan",0]
["Gonzalez montes Juan Andres",{"$f":"COUNTIFS(REGISTRO!$D$3:$D$294,A56)","v":0},0,null,"García Tusarma Liliana Yinet",0]
["Gonzalez Montoya Jairo",{"$f":"COUNTIFS(REGISTRO!$D$3:$D$294,A57)","v":0},0,null,"Giraldo  Muñoz Eliana Ismary",0]
["Guerrero Saavedra Yuliana Andrea",{"$f":"COUNTIFS(REGISTRO!$D$3:$D$294,A58)","v":0},0,null,"Giraldo Jaramillo Marcela",0]
["Gutierrez  Salazar Lina Paola ",{"$f":"COUNTIFS(REGISTRO!$D$3:$D$294,A59)","v":0},0,null,"Giraldo taborda  Gloria Esmeralda ",0]
["Gutierrez Ceballos Kelly Juranny",{"$f":"COUNTIFS(REGISTRO!$D$3:$D$294,A60)","v":0},0,null,"Giraldo Tamayo Diana Patricia ",0]
["Gutierrez Naranjo Carlos Adrian",{"$f":"COUNTIFS(REGISTRO!$D$3:$D$294,A61)","v":0},0,null,"Gomez Suarez Patricia ",0]
["Hernandez Tamayo Gloria Liliana ",{"$f":"COUNTIFS(REGISTRO!$D$3:$D$294,A62)","v":0},0,null,"Gomez Virgen Ivan Dario",0]
["Herrera Hernandez Yuly",{"$f":"COUNTIFS(REGISTRO!$D$3:$D$294,A63)","v":0},0,null,"Gonzalez Alzate Andres David ",0]
["Holguin Galeano Daniela",{"$f":"COUNTIFS(REGISTRO!$D$3:$D$294,A64)","v":0},0,null,"Gonzalez montes Juan Andres",0]
["Jaramillo Gutierrez Miryam",{"$f":"COUNTIFS(REGISTRO!$D$3:$D$294,A65)","v":0},0,null,"Gonzalez Montoya Jairo",0]
["Ladino Ladino Juan David",{"$f":"COUNTIFS(REGISTRO!$D$3:$D$294,A66)","v":0},0,null,"Guerrero Saavedra Yuliana Andrea",0]
["Libreros Cardona Lina Marcela",{"$f":"COUNTIFS(REGISTRO!$D$3:$D$294,A67)","v":0},{"$f":"B67/$B$179","v":0},null,"Gutierrez  Salazar Lina Paola ",0]
["Londoño Alzate Beatriz Eugenia",{"$f":"COUNTIFS(REGISTRO!$D$3:$D$294,A68)","v":0},0,null,"Gutierrez Ceballos Kelly Juranny",0]
["Londoño Ramirez Edinson",{"$f":"COUNTIFS(REGISTRO!$D$3:$D$294,A69)","v":0},0,null,"Gutierrez Naranjo Carlos Adrian",0]
["Londoño Rincon Luisa Fernanda",{"$f":"COUNTIFS(REGISTRO!$D$3:$D$294,A70)","v":0},0,null,"Hernandez Tamayo Gloria Liliana ",0]
["Lopez Alvarez Martha Lorena",{"$f":"COUNTIFS(REGISTRO!$D$3:$D$294,A71)","v":0},0,null,"Herrera Hernandez Yuly",0]
["Lopez Jhon Hover",{"$f":"COUNTIFS(REGISTRO!$D$3:$D$294,A72)","v":0},0,null,"Holguin Galeano Daniela",0]
["Lopez Jimenez Diego Alexander ",{"$f":"COUNTIFS(REGISTRO!$D$3:$D$294,A73)","v":0},0,null,"Jaramillo Gutierrez Miryam",0]
["Marín Franco Beatriz Elena",{"$f":"COUNTIFS(REGISTRO!$D$3:$D$294,A74)","v":0},0,null,"Ladino Ladino Juan David",0]
["Marín Gomez Greicy Joanna ",{"$f":"COUNTIFS(REGISTRO!$D$3:$D$294,A75)","v":0},0,null,"Libreros Cardona Lina Marcela",0]
["Marin Marin Luis Javier",{"$f":"COUNTIFS(REGISTRO!$D$3:$D$294,A76)","v":0},0,null,"Londoño Alzate Beatriz Eugenia",0]
["Marín Ortiz Angela Patricia ",{"$f":"COUNTIFS(REGISTRO!$D$3:$D$294,A77)","v":0},0,null,"Londoño Ramirez Edinson",0]
["Marulanda Salazar Luisa Fernanda",{"$f":"COUNTIFS(REGISTRO!$D$3:$D$294,A78)","v":0},0,null,"Londoño Rincon Luisa Fernanda",0]
["Mesa Chalarca You Luciano",{"$f":"COUNTIFS(REGISTRO!$D$3:$D$294,A79)","v":0},0,null,"Lopez Alvarez Martha Lorena",0]
["Molina Becerra Luz Adriana",{"$f":"COUNTIFS(REGISTRO!$D$3:$D$294,A80)","v":0},0,null,"Lopez Jhon Hover",0]
["Molina Rengifo Adriana",{"$f":"COUNTIFS(REGISTRO!$D$3:$D$294,A81)","v":0},0,null,"Lopez Jimenez Diego Alexander ",0]
["Montoya López Jennifer",{"$f":"COUNTIFS(REGISTRO!$D$3:$D$294,A82)","v":0},0,null,"Marín Franco Beatriz Elena",0]
["Moreno Ortega Sindy Tatiana",{"$f":"COUNTIFS(REGISTRO!$D$3:$D$294,A83)","v":0},0,null,"Marín Gomez Greicy Joanna ",0]
["Moreno Zapata Yicella Andrea",{"$f":"COUNTIFS(REGISTRO!$D$3:$D$294,A84)","v":0},0,null,"Marin Marin Luis Javier",0]
["Muñoz Agudelo Edier",{"$f":"COUNTIFS(REGISTRO!$D$3:$D$294,A85)","v":0},0,null,"Marín Ortiz Angela Patricia ",0]
["Muñoz Gonzalez Carlos Augusto",{"$f":"COUNTIFS(REGISTRO!$D$3:$D$294,A86)","v":0},0,null,"Marulanda Salazar Luisa Fernanda",0]
["Nieto Barreto Monica ",{"$f":"COUNTIFS(REGISTRO!$D$3:$D$294,A87)","v":0},0,null,"Mesa Chalarca You Luciano",0]
["Ocampo Montoya Yakeline",{"$f":"COUNTIFS(REGISTRO!$D$3:$D$294,A88)","v":0},0,null,"Molina Becerra Luz Adriana",0]
["Osorio Londoño Beatriz Elena",{"$f":"COUNTIFS(REGISTRO!$D$3:$D$294,A89)","v":0},0,null,"Molina Rengifo Adriana",0]
["Ospina Garcia Ana María",{"$f":"COUNTIFS(REGISTRO!$D$3:$D$294,A90)","v":0},0,null,"Montoya López Jennifer",0]
["Pabón López Luz Elena",{"$f":"COUNTIFS(REGISTRO!$D$3:$D$294,A91)","v":0},0,null,"Moreno Ortega Sindy Tatiana",0]
["Peláez Correa Juan Carlos",{"$f":"COUNTIFS(REGISTRO!$D$3:$D$294,A92)","v":0},0,null,"Moreno Zapata Yicella Andrea",0]
["Peláez Monroy Laura Marcela",{"$f":"COUNTIFS(REGISTRO!$D$3:$D$294,A93)","v":0},0,null,"Muñoz Agudelo Edier",0]
["Perez Bolaños Carolina",{"$f":"COUNTIFS(REGISTRO!$D$3:$D$294,A94)","v":0},0,null,"Muñoz Gonzalez Carlos Augusto",0]
["Piedrahita Gonzalez Luz Andrea",{"$f":"COUNTIFS(REGISTRO!$D$3:$D$294,A95)","v":0},0,null,"Nieto Barreto Monica ",0]
["Posada Lopez Sol Angel",{"$f":"COUNTIFS(REGISTRO!$D$3:$D$294,A96)","v":0},0,null,"Ocampo Montoya Yakeline",0]
["Pulgarin Vargas Luz Marina ",{"$f":"COUNTIFS(REGISTRO!$D$3:$D$294,A97)","v":0},0,null,"Osorio Londoño Beatriz Elena",0]
["Quebrada Acevedo Gloria Ines",{"$f":"COUNTIFS(REGISTRO!$D$3:$D$294,A98)","v":0},0,null,"Ospina Garcia Ana María",0]
["Quiroz Barreto Nataly",{"$f":"COUNTIFS(REGISTRO!$D$3:$D$294,A99)","v":0},0,null,"Pabón López Luz Elena",0]
["Ramirez Correa Claudia Andrea",{"$f":"COUNTIFS(REGISTRO!$D$3:$D$294,A100)","v":0},0,null,"Peláez Correa Juan Carlos",0]
["Ramirez Múnera Luz Nancy",{"$f":"COUNTIFS(REGISTRO!$D$3:$D$294,A101)","v":0},0,null,"Peláez Monroy Laura Marcela",0]
["Ramirez Quintero Laura Daniela ",{"$f":"COUNTIFS(REGISTRO!$D$3:$D$294,A102)","v":0},0,null,"Perez Bolaños Carolina",0]
["Restrepo Holguin Luis Alberto",{"$f":"COUNTIFS(REGISTRO!$D$3:$D$294,A103)","v":0},0,null,"Piedrahita Gonzalez Luz Andrea",0]
["Rios Duque Nathaly",{"$f":"COUNTIFS(REGISTRO!$D$3:$D$294,A104)","v":0},0,null,"Posada Lopez Sol Angel",0]
["Rios Rotavista Paola Andrea",{"$f":"COUNTIFS(REGISTRO!$D$3:$D$294,A105)","v":0},0,null,"Pulgarin Vargas Luz Marina ",0]
["Rivera Cañas Karen",{"$f":"COUNTIFS(REGISTRO!$D$3:$D$294,A106)","v":0},0,null,"Quebrada Acevedo Gloria Ines",0]
["Rodriguez Sanchez Luz Mary",{"$f":"COUNTIFS(REGISTRO!$D$3:$D$294,A107)","v":0},0,null,"Quiroz Barreto Nataly",0]
["Rojo Posada Maria romelia",{"$f":"COUNTIFS(REGISTRO!$D$3:$D$294,A108)","v":0},0,null,"Ramirez Correa Claudia Andrea",0]
["Rubiano Guerrero Jhilber Julián ",{"$f":"COUNTIFS(REGISTRO!$D$3:$D$294,A109)","v":0},0,null,"Ramirez Múnera Luz Nancy",0]
["Ruiz Estrada Leonardo Fabio ",{"$f":"COUNTIFS(REGISTRO!$D$3:$D$294,A110)","v":0},0,null,"Ramirez Quintero Laura Daniela ",0]
["Ruiz Millan Carolina",{"$f":"COUNTIFS(REGISTRO!$D$3:$D$294,A111)","v":0},0,null,"Restrepo Holguin Luis Alberto",0]
["Salgado Marín Gerardo Antonio",{"$f":"COUNTIFS(REGISTRO!$D$3:$D$294,A112)","v":0},0,null,"Rios Duque Nathaly",0]
["Sanchez Oliveros Luz Carime",{"$f":"COUNTIFS(REGISTRO!$D$3:$D$294,A113)","v":0},0,null,"Rios Rotavista Paola Andrea",0]
["Sanchez Ortiz Diana Raquel ",{"$f":"COUNTIFS(REGISTRO!$D$3:$D$294,A114)","v":0},0,null,"Rivera Cañas Karen",0]
["Santa Franco Diego Alexander",{"$f":"COUNTIFS(REGISTRO!$D$3:$D$294,A115)","v":0},0,null,"Rodriguez Sanchez Luz Mary",0]
["Santa Sanchez Daniela",{"$f":"COUNTIFS(REGISTRO!$D$3:$D$294,A116)","v":0},0,null,"Rojo Posada Maria romelia",0]
["Sepulveda Montoya Laura Valentina",{"$f":"COUNTIFS(REGISTRO!$D$3:$D$294,A117)","v":0},0,null,"Rubiano Guerrero Jhilber Julián ",0]
["Serna Jaramillo Kerly Juliana",{"$f":"COUNTIFS(REGISTRO!$D$3:$D$294,A118)","v":0},0,null,"Ruiz Estrada Leonardo Fabio ",0]
["Silva Duque Juan Miguel ",{"$f":"COUNTIFS(REGISTRO!$D$3:$D$294,A119)","v":0},0,null,"Ruiz Millan Carolina",0]
["Suarez Soto Johana Andrea",{"$f":"COUNTIFS(REGISTRO!$D$3:$D$294,A120)","v":0},0,null,"Salazar Arias Juan Leonardo",0]
["Taborda López Nora Julieth",{"$f":"COUNTIFS(REGISTRO!$D$3:$D$294,A121)","v":0},0,null,"Salgado Marín Gerardo Antonio",0]
["Taborda Sepulveda Paola Andrea",{"$f":"COUNTIFS(REGISTRO!$D$3:$D$294,A122)","v":0},0,null,"Sanchez Oliveros Luz Carime",0]
["Tejada Mejia Alejandra María ",{"$f":"COUNTIFS(REGISTRO!$D$3:$D$294,A123)","v":0},0,null,"Sanchez Ortiz Diana Raquel ",0]
["Trujillo Gomez Yudy Alexandra ",{"$f":"COUNTIFS(REGISTRO!$D$3:$D$294,A124)","v":0},0,null,"Santa Franco Diego Alexander",0]
["Valencia Duque Dora Nancy",{"$f":"COUNTIFS(REGISTRO!$D$3:$D$294,A125)","v":0},0,null,"Santa Sanchez Daniela",0]
["Vara Arias Luisa Fernanda",{"$f":"COUNTIFS(REGISTRO!$D$3:$D$294,A126)","v":0},0,null,"Sepulveda Montoya Laura Valentina",0]
["Vega Arias Yefferson",{"$f":"COUNTIFS(REGISTRO!$D$3:$D$294,A127)","v":0},0,null,"Serna Jaramillo Kerly Juliana",0]
["Vela Estrada Maria Lorena",{"$f":"COUNTIFS(REGISTRO!$D$3:$D$294,A128)","v":0},0,null,"Silva Duque Juan Miguel ",0]
["Velasquez Mejia Blanca Ruby",{"$f":"COUNTIFS(REGISTRO!$D$3:$D$294,A129)","v":0},0,null,"Suarez Soto Johana Andrea",0]
["Velasquez Valencia Sandra Milena ",{"$f":"COUNTIFS(REGISTRO!$D$3:$D$294,A130)","v":0},0,null,"Taborda López Nora Julieth",0]
["Velez Sanchez Luz Yaned",{"$f":"COUNTIFS(REGISTRO!$D$3:$D$294,A131)","v":0},{"$f":"B131/$B$179","v":0},null,"Taborda Sepulveda Paola Andrea",0]
["Villalobos Posada Lady Yohana",{"$f":"COUNTIFS(REGISTRO!$D$3:$D$294,A132)","v":0},0,null,"Tejada Mejia Alejandra María ",0]
["Villamil Betancur Jorge Albeiro",{"$f":"COUNTIFS(REGISTRO!$D$3:$D$294,A133)","v":0},0,null,"Trujillo Gomez Yudy Alexandra ",0]
["Zapata Gonzalez Gyna Marcela",{"$f":"COUNTIFS(REGISTRO!$D$3:$D$294,A134)","v":0},0,null,"Valencia Duque Dora Nancy",0]
["Zapata Suaza luz Omaira",{"$f":"COUNTIFS(REGISTRO!$D$3:$D$294,A135)","v":0},0,null,"Vara Arias Luisa Fernanda",0]
["Área de Hospitalización",{"$f":"COUNTIFS(REGISTRO!$D$3:$D$294,A136)","v":13},6.4356435643564358E-2,null,"Vega Arias Yefferson",0]
["Área de Consulta Externa",{"$f":"COUNTIFS(REGISTRO!$D$3:$D$294,A137)","v":4},1.9801980198019802E-2,null,"Vela Estrada Maria Lorena",0]
["Área de Cirugía",{"$f":"COUNTIFS(REGISTRO!$D$3:$D$294,A138)","v":12},5.9405940594059403E-2,null,"Velasquez Mejia Blanca Ruby",0]
["Área de Admisiones",{"$f":"COUNTIFS(REGISTRO!$D$3:$D$294,A139)","v":0},0,null,"Velasquez Valencia Sandra Milena ",0]
["Área de Administración",{"$f":"COUNTIFS(REGISTRO!$D$3:$D$294,A140)","v":0},0,null,"Velez Sanchez Luz Yaned",0]
["Área de Cuidados Intensivos",{"$f":"COUNTIFS(REGISTRO!$D$3:$D$294,A141)","v":31},0.15346534653465346,null,"Villalobos Posada Lady Yohana",0]
["Salazar Arias Juan Leonardo",{"$f":"COUNTIFS(REGISTRO!$D$3:$D$294,A142)","v":0},0,null,"Villamil Betancur Jorge Albeiro",0]
["Area de biotecnologia",{"$f":"COUNTIFS(REGISTRO!$D$3:$D$294,A143)","v":142},0.70297029702970293,null,"Zapata Gonzalez Gyna Marcela",0]
[null,{"$f":"COUNTIFS(REGISTRO!$D$3:$D$294,A144)","v":0},0,null,"Zapata Suaza luz Omaira",0]
[null,{"$f":"COUNTIFS(REGISTRO!$D$3:$D$294,A145)","v":0},0,null,"Total general",0]
[null,{"$f":"COUNTIFS(REGISTRO!$D$3:$D$294,A146)","v":0},0]
[null,{"$f":"COUNTIFS(REGISTRO!$D$3:$D$294,A147)","v":0},0]
[null,{"$f":"COUNTIFS(REGISTRO!$D$3:$D$294,A148)","v":0},0]
[null,{"$f":"COUNTIFS(REGISTRO!$D$3:$D$294,A149)","v":0},0]
[null,{"$f":"COUNTIFS(REGISTRO!$D$3:$D$294,A150)","v":0},0]
[null,{"$f":"COUNTIFS(REGISTRO!$D$3:$D$294,A151)","v":0},0]
[null,{"$f":"COUNTIFS(REGISTRO!$D$3:$D$294,A152)","v":0},0]
[null,{"$f":"COUNTIFS(REGISTRO!$D$3:$D$294,A153)","v":0},0]
[null,{"$f":"COUNTIFS(REGISTRO!$D$3:$D$294,A154)","v":0},0]
[null,{"$f":"COUNTIFS(REGISTRO!$D$3:$D$294,A155)","v":0},0]
[null,{"$f":"COUNTIFS(REGISTRO!$D$3:$D$294,A156)","v":0},0]
[null,{"$f":"COUNTIFS(REGISTRO!$D$3:$D$294,A157)","v":0},0]
[null,{"$f":"COUNTIFS(REGISTRO!$D$3:$D$294,A158)","v":0},0]
[null,{"$f":"COUNTIFS(REGISTRO!$D$3:$D$294,A159)","v":0},0]
[null,{"$f":"COUNTIFS(REGISTRO!$D$3:$D$294,A160)","v":0},0]
[null,{"$f":"COUNTIFS(REGISTRO!$D$3:$D$294,A161)","v":0},0]
[null,{"$f":"COUNTIFS(REGISTRO!$D$3:$D$294,A162)","v":0},0]
[null,{"$f":"COUNTIFS(REGISTRO!$D$3:$D$294,A163)","v":0},0]
[null,{"$f":"COUNTIFS(REGISTRO!$D$3:$D$294,A164)","v":0},0]
[null,{"$f":"COUNTIFS(REGISTRO!$D$3:$D$294,A165)","v":0},0]
[null,{"$f":"COUNTIFS(REGISTRO!$D$3:$D$294,A166)","v":0},0]
[null,{"$f":"COUNTIFS(REGISTRO!$D$3:$D$294,A167)","v":0},0]
[null,{"$f":"COUNTIFS(REGISTRO!$D$3:$D$294,A168)","v":0},0]
[null,{"$f":"COUNTIFS(REGISTRO!$D$3:$D$294,A169)","v":0},0]
[null,{"$f":"COUNTIFS(REGISTRO!$D$3:$D$294,A170)","v":0},0]
[null,{"$f":"COUNTIFS(REGISTRO!$D$3:$D$294,A171)","v":0},0]
[null,{"$f":"COUNTIFS(REGISTRO!$D$3:$D$294,A172)","v":0},0]
[null,{"$f":"COUNTIFS(REGISTRO!$D$3:$D$294,A173)","v":0},0]
[null,{"$f":"COUNTIFS(REGISTRO!$D$3:$D$294,A174)","v":0},0]
[null,{"$f":"COUNTIFS(REGISTRO!$D$3:$D$294,A175)","v":0},0]
[null,{"$f":"COUNTIFS(REGISTRO!$D$3:$D$294,A176)","v":0},0]
[null,{"$f":"COUNTIFS(REGISTRO!$D$3:$D$294,A177)","v":0},0]
[null,{"$f":"COUNTIFS(REGISTRO!$D$3:$D$294,A178)","v":0},0]
["TOTAL",{"$f":"SUM(B2:B178)","v":202},{"$f":"SUM(C2:C178)","v":1}]